DATE OF TRANSACTION,LA DEPARTMENT INCURRING SPEND,BENEFICIARY,SUMMARY OF PURPOSEOF SPEND,AMOUNT,MERCHANT CATEGORY,,
28/06/2019,HAVEN YTH CENTRE,WWW.RU.AC.UK/ESTORE,STAFF TRAINING,30.00,"COLLEGES, UNIV, PRO SCHOOLS, JUNIOR COLLEGES",,
28/06/2019,SOLD DAY TO DAY OPERATIONS,TESCO STORE 2590,PURCHASE OF FOOD (RAW MATERIALS),85.00,"GROCERY STORES, SUPERMARKETS",,
28/06/2019,SOLD CATERING,TESCO STORE 2590,EQUIPMENT,12.00,"GROCERY STORES, SUPERMARKETS",,
28/06/2019,SOLD DAY TO DAY OPERATIONS,HALFORDS 0763,EQUIPMENT,9.00,BICYCLE SHOPS-SALES AND SERVICE,,
28/06/2019,SOLD ESTATES MANAGEMENT,B & Q 1029,DAY TO DAY MAINTENANCE,8.54,"BUILDING MATERIALS, LUMBER STORES",,
28/06/2019,SOLD DAY TO DAY OPERATIONS,SPORTSDIRECT 234,EQUIPMENT,19.96,SPORTING GOODS STORES,,
28/06/2019,RUTH HOUSE,SAINSBURYS TO YOU 0686,PURCHASE OF FOOD (RAW MATERIALS),29.10,"GROCERY STORES, SUPERMARKETS",,
28/06/2019,RUTH HOUSE,SAINSBURYS TO YOU 0686,PURCHASE OF FOOD (RAW MATERIALS),182.90,"GROCERY STORES, SUPERMARKETS",,
28/06/2019,RUTH HOUSE,ARGOS LTD,EQUIPMENT,230.29,DISCOUNT STORES,,
28/06/2019,RUTH HOUSE,ARGOS LTD,EQUIPMENT,39.99,DISCOUNT STORES,,
28/06/2019,RUTH HOUSE,ARGOS LTD,EQUIPMENT,-49.99,DISCOUNT STORES,,
28/06/2019,RUTH HOUSE,NOWTV.COM/BILLINGHELP,EDUC VISITS/HOLS/CAMPS/TOYS,7.99,"CABLE, SATELLITE, OTHER PAY TELEVISION, RADIO SVCS",,
28/06/2019,RUTH HOUSE,NOWTV.COM/BILLINGHELP,EDUC VISITS/HOLS/CAMPS/TOYS,11.99,"CABLE, SATELLITE, OTHER PAY TELEVISION, RADIO SVCS",,
28/06/2019,N REGIONAL STAFF,STAMPIT,EQUIPMENT,97.98,"OFFICE, SCHOOL SUPPLY, AND STATIONERY STORES",,
28/06/2019,ARUNDEL,TESCO STORES 5999,REFRESHMENT COSTS,180.74,"GROCERY STORES, SUPERMARKETS",,
28/06/2019,APPLEWOOD,ASDA GROCERIES ONLINE,PURCHASE OF FOOD (RAW MATERIALS),183.37,"GROCERY STORES, SUPERMARKETS",,
28/06/2019,APPLEWOOD,ASDA GROCERIES ONLINE,PURCHASE OF FOOD (RAW MATERIALS),-1.23,"GROCERY STORES, SUPERMARKETS",,
28/06/2019,MISC EDCAT SUPPORT,WAYFAIR #2715971618,PUBLICITY,99.99,DIRECT MARKETING-COMBINATION CATALOG/RETAIL MERCH.,,
28/06/2019,WOODLANDS COMMUNITY HOME,HOMEBASE LTD 084,EQUIPMENT,240.00,"BUILDING MATERIALS, LUMBER STORES",,
28/06/2019,HOPE SERVICE - WEST,SAINSBURYS SACAT(4409),NEWSPAPER AND PERIODICALS,4.95,"GROCERY STORES, SUPERMARKETS",,
28/06/2019,HOPE SERVICE - WEST,SAINSBURYS SACAT(4409),PURCHASE OF FOOD (RAW MATERIALS),0.65,"GROCERY STORES, SUPERMARKETS",,
28/06/2019,ACL CENTRAL EXPENDITURE,AMZNMKTPLACE,EQUIPMENT,6.99,MISCELLANEOUS AND SPECIALTY RETAIL STORES,,
28/06/2019,ACL CENTRAL EXPENDITURE,AMZNMKTPLACE,EQUIPMENT,21.91,MISCELLANEOUS AND SPECIALTY RETAIL STORES,,
28/06/2019,PSSS ICT SUPPORT,AMAZON.CO.UK M66M808Z4,EQUIPMENT,18.77,DIRECT MARKETING-OTHER DIRECT MARKETERS/NOT ELSEW.,,
28/06/2019,MALLOW CRESCENT,AMZNMKTPLACE,EQUIPMENT,24.24,MISCELLANEOUS AND SPECIALTY RETAIL STORES,,
28/06/2019,HR - CSF TRAINING OPEN PROGRAMME,RSPCA,TRAINING EXPENSES EXTERNAL GENERAL,50.00,"ORGANIZATIONS, CHARITABLE AND SOCIAL SERVICES",,
28/06/2019,FAMILIES WOKING,W M MORRISON STORE,REFRESHMENT COSTS,45.80,"GROCERY STORES, SUPERMARKETS",,
28/06/2019,FAMILIES REIGATE AND BANSTREAD,AMZNMKTPLACE,EQUIPMENT,39.99,MISCELLANEOUS AND SPECIALTY RETAIL STORES,,
28/06/2019,NW SECTION 17 CARE,TRAVELODGE,INDEPENDENT LIVING PLACEMENTS,553.50,TRAVELODGE,,
28/06/2019,HAVEN YTH CENTRE,WILKO RETAIL LIMIT,EQUIPMENT,8.75,HOUSEHOLD APPLIANCE STORES,,
28/06/2019,B & C PRIMARY AUTHORITY PARTNERSHIP     ,WWW.INNKEEPERSLODG,SUBSISTENCE AND CONFERENCE EXPENSES,198.00,"EATING PLACES, RESTAURANTS",,
28/06/2019,SHELL UK LICENSING,WWW.TMBC.GOV.UK,FEES,339.00,GOVERNMENT SERVICES-NOT ELSEWHERE CLASSIFIED,,
28/06/2019,ACL CENTRAL EXPENDITURE,CAMPAIGN FOR LEARNING,STAFF TRAINING,120.00,COMPUTER SOFTWARE STORES,,
28/06/2019,KARIBU COMMUNITY HOME,DOMINOS PIZZA UK & IRE,PURCHASE OF FOOD (RAW MATERIALS),74.34,"EATING PLACES, RESTAURANTS",,
28/06/2019,SOUTH WEST OUTREACH,SAINSBURYS SACAT 0652,EQUIPMENT,26.75,"GROCERY STORES, SUPERMARKETS",,
28/06/2019,NW CARE - LAC,BRITANNIA,INDEPENDENT LIVING PLACEMENTS,195.00,"LODGING-HOTELS,MOTELS,RESORTS-NOT CLASSIFIED",,
28/06/2019,STRATEGIC LEADERSHIP (CEO & ACEO),TRAINLINE.COM,MISCELLANEOUS STAFF TRAVEL,99.72,PASSENGER RAILWAYS,,
28/06/2019,TARGETED INTERVENTION,HARRIS AND HOOLE  GUIL,EDUC VISITS/HOLS/CAMPS/TOYS,6.10,"EATING PLACES, RESTAURANTS",,
28/06/2019,FAIRCROFT COMMUNITY HOME,WEST CENTRAL,REFRESHMENT COSTS,2.75,"EATING PLACES, RESTAURANTS",,
28/06/2019,ARMED FORCES COMMUNITY COVENANT GRANT,LONDON NORTHWESTERN RA,MISCELLANEOUS STAFF TRAVEL,46.00,PASSENGER RAILWAYS,,
28/06/2019,WOODLANDS COMMUNITY HOME,SAINSBURYS 0686,PURCHASE OF FOOD (RAW MATERIALS),9.80,"GROCERY STORES, SUPERMARKETS",,
28/06/2019,WOODLANDS COMMUNITY HOME,SAINSBURYS 0686,PURCHASE OF FOOD (RAW MATERIALS),5.60,"GROCERY STORES, SUPERMARKETS",,
28/06/2019,WOODLANDS COMMUNITY HOME,SAINSBURYS 0686,EQUIPMENT,11.50,"GROCERY STORES, SUPERMARKETS",,
28/06/2019,TRANSPORT,VAMPED LTD,VEHICLE REPAIRS AND MAINTENANCE,792.00,AUTOMOTIVE BODY REPAIR SHOPS,,
28/06/2019,MEADOWSIDE,WWW.ARGOS.CO.UK,DAY TO DAY MAINTENANCE,203.93,DISCOUNT STORES,,
28/06/2019,SOLD DAY TO DAY OPERATIONS,AMZNMKTPLACE,EQUIPMENT,15.95,MISCELLANEOUS AND SPECIALTY RETAIL STORES,,
28/06/2019,LIBERTAS COMMUNITY HOME,SAINSBURYS SACAT 0680,PURCHASE OF FOOD (RAW MATERIALS),14.10,"GROCERY STORES, SUPERMARKETS",,
28/06/2019,LIBERTAS COMMUNITY HOME,SAINSBURYS SACAT 0680,PURCHASE OF FOOD (RAW MATERIALS),111.03,"GROCERY STORES, SUPERMARKETS",,
28/06/2019,LIBERTAS COMMUNITY HOME,SAINSBURYS 0680,3RD PARTY PAYMENTS PRIVATE INDIV,10.00,"GROCERY STORES, SUPERMARKETS",,
28/06/2019,ACL CENTRAL EXPENDITURE,AMZNMKTPLACE AMAZON.CO,EQUIPMENT,96.97,MISCELLANEOUS AND SPECIALTY RETAIL STORES,,
28/06/2019,SOLD ESTATES MANAGEMENT,FALCON GARAGE,DAY TO DAY MAINTENANCE,25.01,SERVICE STATIONS WITH OR WITHOUT ANCILLARY SERVICE,,
28/06/2019,BIRCHLANDS,ARGOS RETAIL GROUP,EQUIPMENT,239.92,DISCOUNT STORES,,
28/06/2019,ARUNDEL,SAINSBURYS 2331,E25 CATERING EQUIPMENT,63.90,"GROCERY STORES, SUPERMARKETS",,
28/06/2019,ARUNDEL,B & Q 1191,EQUIPMENT,230.00,"BUILDING MATERIALS, LUMBER STORES",,
28/06/2019,ARUNDEL,B & Q 1191,EQUIPMENT,103.00,"BUILDING MATERIALS, LUMBER STORES",,
28/06/2019,NE CARE - LAC,HM PASSPORT OFFICE,OTHER COMMUNITY CARE VOL,49.00,GOVERNMENT SERVICES-NOT ELSEWHERE CLASSIFIED,,
28/06/2019,BURBANK COMMUNITY HOME,ARGOS LTD,EQUIPMENT,31.98,DISCOUNT STORES,,
28/06/2019,CHALKMEAD,"BOOTS,REDHILL",DAY TO DAY MAINTENANCE,22.96,"DRUG STORES, PHARMACIES",,
28/06/2019,CHALKMEAD,ICELAND,REFRESHMENT COSTS,32.40,"GROCERY STORES, SUPERMARKETS",,
28/06/2019,BARNFIELD,WILKO.COM,FURNITURE,64.00,MISCELLANEOUS GENERAL MERCHANDISE,,
28/06/2019,BARNFIELD,NEW SOUTHERN RAILW,MISCELLANEOUS STAFF TRAVEL,4.40,PASSENGER RAILWAYS,,
28/06/2019,HEALTH & WELLBEING                      ,DECATHLON UK,EQUIPMENT,899.10,SPORTING GOODS STORES,,
28/06/2019,FIRE & RESCUE COMMUNITY SAFETY,CLARKS CAFE,REFRESHMENT COSTS,226.00,"EATING PLACES, RESTAURANTS",,
29/06/2019,RUTH HOUSE,GIFFGAFF,TELECOMMUNICATION CHARGES,6.00,TELECOM INCL PREPAID/RECURRING PHONE SVCS,,
29/06/2019,HILLSIDE,SAINSBURYS TO YOU 0675,PURCHASE OF FOOD (RAW MATERIALS),21.70,"GROCERY STORES, SUPERMARKETS",,
29/06/2019,HILLSIDE,SAINSBURYS TO YOU 0675,PURCHASE OF FOOD (RAW MATERIALS),181.03,"GROCERY STORES, SUPERMARKETS",,
29/06/2019,LIBERTAS COMMUNITY HOME,SCHUH 135,"CLOTHING, UNIFORM AND LAUNDRY",38.99,SHOE STORES,,
29/06/2019,LIBERTAS COMMUNITY HOME,MARKS&SPENCER PLC,"CLOTHING, UNIFORM AND LAUNDRY",48.00,"GROCERY STORES, SUPERMARKETS",,
29/06/2019,SOLD DAY TO DAY OPERATIONS,AMZNMKTPLACE AMAZON.CO,EQUIPMENT,15.85,MISCELLANEOUS AND SPECIALTY RETAIL STORES,,
29/06/2019,MALLOW CRESCENT,AMZNMKTPLACE,EQUIPMENT,9.83,MISCELLANEOUS AND SPECIALTY RETAIL STORES,,
29/06/2019,KARIBU COMMUNITY HOME,TESCO STORE 2812,PURCHASE OF FOOD (RAW MATERIALS),81.42,"GROCERY STORES, SUPERMARKETS",,
29/06/2019,FAMILIES WOKING,ASDA STORES 4823,PURCHASE OF FOOD (RAW MATERIALS),94.07,"GROCERY STORES, SUPERMARKETS",,
29/06/2019,FAMILIES REIGATE AND BANSTREAD,ALLDAYS,REFRESHMENT COSTS,11.85,"GROCERY STORES, SUPERMARKETS",,
29/06/2019,KARIBU COMMUNITY HOME,SAINSBURYS 0683,EDUC VISITS/HOLS/CAMPS/TOYS,117.14,"GROCERY STORES, SUPERMARKETS",,
29/06/2019,KARIBU COMMUNITY HOME,HALFORDS 0731,EQUIPMENT,127.50,BICYCLE SHOPS-SALES AND SERVICE,,
29/06/2019,FAIRCROFT COMMUNITY HOME,MCDONALDS,REFRESHMENT COSTS,13.87,FAST FOOD RESTAURANTS,,
29/06/2019,RECRUITMENT,FACEBK  QU8ZTLEPS2,STAFF ADVERTISING ,50.00,ADVERTISING SERVICES,,
29/06/2019,HAVEN,CO-OP GROUP 310385,REFRESHMENT COSTS,5.25,"GROCERY STORES, SUPERMARKETS",,
29/06/2019,CHEYNE WALK COMMUNITY HOME,AMZNMKTPLACE AMAZON.CO,FIXTURES AND FITTINGS,-25.00,MISCELLANEOUS AND SPECIALTY RETAIL STORES,,
29/06/2019,SOLD ESTATES MANAGEMENT,WILKO RETAIL LIMIT,DAY TO DAY MAINTENANCE,22.00,HOUSEHOLD APPLIANCE STORES,,
29/06/2019,DOWNLANDS COUNTRYSIDE PROJECT,AMAZON.CO.UK M62DZ68E4,EQUIPMENT,17.94,DIRECT MARKETING-OTHER DIRECT MARKETERS/NOT ELSEW.,,
29/06/2019,CHALKMEAD,AMZNMKTPLACE,DAY TO DAY MAINTENANCE,31.48,MISCELLANEOUS AND SPECIALTY RETAIL STORES,,
29/06/2019,BARNFIELD,CURRYS,EQUIPMENT,209.91,ELECTRONIC SALES,,
30/06/2019,MEMBERS EXPENSES (INCL ALLOWANCES),AMZNMKTPLACE,TRAINING EXPENSES EXTERNAL GENERAL,41.82,MISCELLANEOUS AND SPECIALTY RETAIL STORES,,
30/06/2019,TRANSPORT,DVLA VEHICLE TAX,VEHICLE REPAIRS AND MAINTENANCE,262.50,GOVERNMENT SERVICES-NOT ELSEWHERE CLASSIFIED,,
30/06/2019,TRANSPORT,DVLA VEHICLE TAX,VEHICLE REPAIRS AND MAINTENANCE,262.50,GOVERNMENT SERVICES-NOT ELSEWHERE CLASSIFIED,,
30/06/2019,RUTH HOUSE,NOWTV.COM/BILLINGHELP,EDUC VISITS/HOLS/CAMPS/TOYS,3.99,"CABLE, SATELLITE, OTHER PAY TELEVISION, RADIO SVCS",,
30/06/2019,FAIRCROFT COMMUNITY HOME,KFC,REFRESHMENT COSTS,16.25,FAST FOOD RESTAURANTS,,
30/06/2019,FAIRCROFT COMMUNITY HOME,MCDONALDS,REFRESHMENT COSTS,12.10,FAST FOOD RESTAURANTS,,
30/06/2019,MEMBERS EXPENSES (INCL ALLOWANCES),AMZNMKTPLACE,SUBSISTENCE AND CONFERENCE EXPENSES,12.99,MISCELLANEOUS AND SPECIALTY RETAIL STORES,,
30/06/2019,ACL CENTRAL EXPENDITURE,AMZNMKTPLACE,EQUIPMENT,25.45,MISCELLANEOUS AND SPECIALTY RETAIL STORES,,
30/06/2019,SOLD DAY TO DAY OPERATIONS,AMZNMKTPLACE AMAZON.CO,EQUIPMENT,22.09,MISCELLANEOUS AND SPECIALTY RETAIL STORES,,
30/06/2019,KARIBU COMMUNITY HOME,BMR - CAFE,PURCHASE OF FOOD (RAW MATERIALS),11.10,"EATING PLACES, RESTAURANTS",,
30/06/2019,KARIBU COMMUNITY HOME,LEIGH DELAMERE N/E WH,PURCHASE OF FOOD (RAW MATERIALS),5.00,"EATING PLACES, RESTAURANTS",,
30/06/2019,KARIBU COMMUNITY HOME,IZ  BEIC PARCIO CYMRU,PURCHASE OF FOOD (RAW MATERIALS),5.00,MISCELLANEOUS AND SPECIALTY RETAIL STORES,,
30/06/2019,KARIBU COMMUNITY HOME,IZ  BEIC PARCIO CYMRU,PURCHASE OF FOOD (RAW MATERIALS),15.00,MISCELLANEOUS AND SPECIALTY RETAIL STORES,,
30/06/2019,KARIBU COMMUNITY HOME,MEMBURY MWSA WEST,PURCHASE OF FOOD (RAW MATERIALS),8.05,SERVICE STATIONS WITH OR WITHOUT ANCILLARY SERVICE,,
30/06/2019,MGMT - ORBIS (MANAGEMENT TEAM & SUPPORT),AMAZON PRIME M66Y276K4,EQUIPMENT,7.99,DIRECT MARKETING-CONTINUITY/SUBSCRIPTION MERCHANTS,,
30/06/2019,SE CARE - LAC,AMZNMKTPLACE AMAZON.CO,OTHER COMMUNITY CARE VOL,285.99,MISCELLANEOUS AND SPECIALTY RETAIL STORES,,
30/06/2019,RUTH HOUSE,AIRHOP BRISTOL LTD,EDUC VISITS/HOLS/CAMPS/TOYS,39.00,RECREATION SERVICES (NOT ELSEWHERE CLASSIFIED),,
30/06/2019,WEB OPERATIONS TEAM,REPORTURI 100K REPORTS,SUBSCRIPTIONS,14.62,COMPUTER SOFTWARE STORES,,
30/06/2019,MALLOW CRESCENT,SAINSBURYS TO YOU 0652,PURCHASE OF FOOD (RAW MATERIALS),183.57,"GROCERY STORES, SUPERMARKETS",,
30/06/2019,MALLOW CRESCENT,SAINSBURYS TO YOU 0652,PURCHASE OF FOOD (RAW MATERIALS),-12.00,"GROCERY STORES, SUPERMARKETS",,
30/06/2019,CENTRAL COMMUNICATIONS,FACEBK CAG3HMNZR2,PUBLICITY,349.87,ADVERTISING SERVICES,,
30/06/2019,CORPORATE GROUP - LEGAL SERVICES,CUSTOMER THERMOMETER,COMPUTER SOFTWARE,47.79,COMPUTER SOFTWARE STORES,,
01/07/2019,FAIRCROFT COMMUNITY HOME,TESCO DELIVERY SAVER2,PURCHASE OF FOOD (RAW MATERIALS),6.99,DIRECT MARKETING-CONTINUITY/SUBSCRIPTION MERCHANTS,,
01/07/2019,ARUNDEL,PREMIER INN,EDUC VISITS/HOLS/CAMPS/TOYS,499.50,PREMIER INN,,
01/07/2019,ARUNDEL,PREMIER INN,EDUC VISITS/HOLS/CAMPS/TOYS,499.50,PREMIER INN,,
01/07/2019,RUTH HOUSE,WWW.ARGOS.CO.UK,EQUIPMENT,153.94,DISCOUNT STORES,,
01/07/2019,SE REGIONAL OVERHEADS,ALIBRIS BOOKS,BOOKS,130.60,DIRECT MARKETING-OTHER DIRECT MARKETERS/NOT ELSEW.,,
01/07/2019,HOPE SERVICE - WEST,AMZNMKTPLACE AMAZON.CO,CURRICULUM CONSUMABLES,9.48,MISCELLANEOUS AND SPECIALTY RETAIL STORES,,
01/07/2019,ACL CENTRAL EXPENDITURE,TESCO STORE 2160,REFRESHMENT COSTS,48.87,"GROCERY STORES, SUPERMARKETS",,
01/07/2019,SURREY THE GREAT WAR,IWM,EDUC VISITS/HOLS/CAMPS/TOYS,9.00,RECREATION SERVICES (NOT ELSEWHERE CLASSIFIED),,
01/07/2019,SW CARE - LAC,THE COUNTY HOTEL,FEES,74.00,"BAR,LOUNGE,DISCO,NIGHTCLUB,TAVERN-ALCOHOLIC DRINKS",,
01/07/2019,CHALKMEAD,ARGOS REDHILL,DAY TO DAY MAINTENANCE,50.00,DISCOUNT STORES,,
01/07/2019,CORPORATE GROUP - LEGAL SERVICES,MARKS&SPENCER PLC,REFRESHMENT COSTS,30.00,"GROCERY STORES, SUPERMARKETS",,
01/07/2019,FAMILIES TANDRIDGE,WAITROSE 178,REFRESHMENT COSTS,3.20,"GROCERY STORES, SUPERMARKETS",,
01/07/2019,RUTH HOUSE,PAYPAL  PRODUCTSSTO,EQUIPMENT,172.92,"OFFICE, SCHOOL SUPPLY, AND STATIONERY STORES",,
01/07/2019,BURBANK COMMUNITY HOME,GOLDEN CST HOLIDAY,EDUC VISITS/HOLS/CAMPS/TOYS,937.13,"LODGING-HOTELS,MOTELS,RESORTS-NOT CLASSIFIED",,
01/07/2019,BURBANK COMMUNITY HOME,GOLDEN CST HOLIDAY,EDUC VISITS/HOLS/CAMPS/TOYS,937.13,"LODGING-HOTELS,MOTELS,RESORTS-NOT CLASSIFIED",,
01/07/2019,CONSORT HOUSE REDHILL,MARKS&SPENCER PLC,"CLOTHING, UNIFORM AND LAUNDRY",164.00,"GROCERY STORES, SUPERMARKETS",,
01/07/2019,MEADOWSIDE,SCREWFIX DIRECT,DAY TO DAY MAINTENANCE,24.98,HOME SUPPLY WAREHOUSE STORES,,
01/07/2019,SOLD ESTATES MANAGEMENT,AMAZON.CO.UK M69F08BA4,EQUIPMENT,67.69,DIRECT MARKETING-OTHER DIRECT MARKETERS/NOT ELSEW.,,
01/07/2019,FOSTERING SERVICE CENTRAL COSTS,SAINSBURYS,REFRESHMENT COSTS,11.00,"GROCERY STORES, SUPERMARKETS",,
01/07/2019,LIBERTAS COMMUNITY HOME,SAINSBURYS SACAT 0652,PURCHASE OF FOOD (RAW MATERIALS),13.30,"GROCERY STORES, SUPERMARKETS",,
01/07/2019,LIBERTAS COMMUNITY HOME,SAINSBURYS SACAT 0652,PURCHASE OF FOOD (RAW MATERIALS),115.20,"GROCERY STORES, SUPERMARKETS",,
01/07/2019,MALLOW CRESCENT,SAINSBURYS TO YOU 0652,PURCHASE OF FOOD (RAW MATERIALS),126.60,"GROCERY STORES, SUPERMARKETS",,
01/07/2019,HOPE SERVICE - WEST,SAINSBURYS TO YOU 0686,PURCHASE OF FOOD (RAW MATERIALS),65.29,"GROCERY STORES, SUPERMARKETS",,
01/07/2019,CAMHS SOCIAL WORKERS,MIXAM UK LTD,EQUIPMENT,148.39,MISCELLANEOUS PUBLISHING AND PRINTING,,
01/07/2019,CAMHS SOCIAL WORKERS,MIXAM UK LTD,EQUIPMENT,53.00,MISCELLANEOUS PUBLISHING AND PRINTING,,
01/07/2019,HOPE SERVICE - WEST,SAINSBURYS TO YOU 0683,PURCHASE OF FOOD (RAW MATERIALS),65.85,"GROCERY STORES, SUPERMARKETS",,
01/07/2019,MAYFORD CENTRE - BUSINESS,GUILDFORD LOCK AND SAF,EQUIPMENT,64.44,"HAT CLEANING SHOPS, SHOE REPAIR SHOPS, SHOE SHINE",,
01/07/2019,EMERGENCY MANAGEMENT,PAYPAL  SGSA,EQUIPMENT,160.00,GOVERNMENT SERVICES-NOT ELSEWHERE CLASSIFIED,,
01/07/2019,CHILDREN'S RIGHTS TEAM,HOBBYCRAFT,EQUIPMENT,5.00,"ARTIST SUPPLY STORES, CRAFT SHOPS",,
01/07/2019,HERITAGE ENTERPRISE (SCAU),LANDMARKINF,FEES,16.00,MISCELLANEOUS PUBLISHING AND PRINTING,,
01/07/2019,SOLD DAY TO DAY OPERATIONS,KARMA CANVAS,EQUIPMENT,569.00,"GAME, TOY, AND HOBBY SHOPS",,
01/07/2019,PE/CDT MAINTENANCE OVERHEADS,MML MARKETING LTD,EQUIPMENT,30.34,SCHOOLS & EDUCATIONAL SVC-NOT ELSEWHERE CLASSIFIED,,
01/07/2019,HOPE SERVICE - WEST,SAINSBURYS SACAT(4409),PURCHASE OF FOOD (RAW MATERIALS),2.40,"GROCERY STORES, SUPERMARKETS",,
01/07/2019,NW CARE - LAC,GEN REGISTER OFFICE,OTHER COMMUNITY CARE VOL,14.00,GOVERNMENT SERVICES-NOT ELSEWHERE CLASSIFIED,,
01/07/2019,FAIRCROFT COMMUNITY HOME,TESCO STORE 2812,PURCHASE OF FOOD (RAW MATERIALS),260.21,"GROCERY STORES, SUPERMARKETS",,
01/07/2019,MALLOW CRESCENT,TESCO STORE 2590,PURCHASE OF FOOD (RAW MATERIALS),104.35,"GROCERY STORES, SUPERMARKETS",,
01/07/2019,MALLOW CRESCENT,TESCO STORE 2590,PURCHASE OF FOOD (RAW MATERIALS),78.64,"GROCERY STORES, SUPERMARKETS",,
01/07/2019,KARIBU COMMUNITY HOME,AMZNMKTPLACE,EQUIPMENT,8.94,MISCELLANEOUS AND SPECIALTY RETAIL STORES,,
01/07/2019,KARIBU COMMUNITY HOME,AMZNMKTPLACE,EQUIPMENT,26.99,MISCELLANEOUS AND SPECIALTY RETAIL STORES,,
01/07/2019,SERVICE DELIVERY SENIOR MANAGEMENT,POST OFFICE COUNTER,EQUIPMENT,1.90,POSTAL SERVICES-GOVERNMENT ONLY,,
01/07/2019,HILLSIDE,SAINSBURYS 0675,EQUIPMENT,81.00,"GROCERY STORES, SUPERMARKETS",,
01/07/2019,HILLSIDE,SAINSBURYS 0675,PURCHASE OF FOOD (RAW MATERIALS),46.06,"GROCERY STORES, SUPERMARKETS",,
01/07/2019,HILLSIDE,ARGOS WATCHMOOR PA,EQUIPMENT,20.00,DISCOUNT STORES,,
01/07/2019,SHELL UK LICENSING,LEWISHAM COUNCIL INT,FEES,113.00,GOVERNMENT SERVICES-NOT ELSEWHERE CLASSIFIED,,
01/07/2019,SHELL UK LICENSING,WWW.BROADLAND.GOV.UK,FEES,113.00,GOVERNMENT SERVICES-NOT ELSEWHERE CLASSIFIED,,
01/07/2019,SHELL UK LICENSING,ST HELENS MBC,FEES,113.00,GOVERNMENT SERVICES-NOT ELSEWHERE CLASSIFIED,,
01/07/2019,SHELL UK LICENSING,WWW.EPSOM-EWELL.GOV.UK,FEES,108.00,GOVERNMENT SERVICES-NOT ELSEWHERE CLASSIFIED,,
01/07/2019,SE EDUCATION PSYCHOLOGISTS,AMAZON.CO.UK M62FM8DS4,BOOKS,5.51,DIRECT MARKETING-OTHER DIRECT MARKETERS/NOT ELSEW.,,
01/07/2019,SE EDUCATION PSYCHOLOGISTS,AMAZON.CO.UK M60FC8DU4,BOOKS,14.83,DIRECT MARKETING-OTHER DIRECT MARKETERS/NOT ELSEW.,,
01/07/2019,WAVERLEY CMHRS CARE,TRAVELODGE,OTHER COMMUNITY CARE PRIV,828.00,TRAVELODGE,,
01/07/2019,COBHAM CHILDRENS CENTRE,WAITROSE 176,REFRESHMENT COSTS,6.22,"GROCERY STORES, SUPERMARKETS",,
01/07/2019,MALLOW CRESCENT,TESCO STORE 2590,PURCHASE OF FOOD (RAW MATERIALS),100.08,"GROCERY STORES, SUPERMARKETS",,
01/07/2019,LOCAL ASSISTANCE SCHEME,WILKO.COM,FURNITURE,105.00,MISCELLANEOUS GENERAL MERCHANDISE,,
01/07/2019,LOCAL ASSISTANCE SCHEME,WILKO.COM,FURNITURE,94.50,MISCELLANEOUS GENERAL MERCHANDISE,,
01/07/2019,LOCAL ASSISTANCE SCHEME,WILKO.COM,FURNITURE,68.50,MISCELLANEOUS GENERAL MERCHANDISE,,
01/07/2019,NE CARE - CP & COURT LAC,ARGOS RETAIL GROUP,OTHER COMMUNITY CARE VOL,59.99,DISCOUNT STORES,,
01/07/2019,NE SECTION 17 CARE,SURREY CC CARD PAY,OTHER COMMUNITY CARE VOL,33.00,COMPUTER NETWORK/INFORMATION SERVICES,,
01/07/2019,KARIBU COMMUNITY HOME,1ST PLACE,DAY TO DAY MAINTENANCE,432.00,"UTLTS-ELCTRC, GAS, HEATING OIL, SANITARY, WATER",,
01/07/2019,KARIBU COMMUNITY HOME,BOOTS 0809,EQUIPMENT,7.99,"DRUG STORES, PHARMACIES",,
01/07/2019,KARIBU COMMUNITY HOME,STARBUCKS,REFRESHMENT COSTS,14.65,FAST FOOD RESTAURANTS,,
01/07/2019,CHEYNE WALK COMMUNITY HOME,EPSOM & EWELL BRGH COU,EQUIPMENT,2.60,AUTOMOBILE PARKING LOTS AND GARAGES,,
01/07/2019,KARIBU COMMUNITY HOME,RYMAN 1148,EQUIPMENT,16.99,"OFFICE, SCHOOL SUPPLY, AND STATIONERY STORES",,
01/07/2019,HILLSIDE,LIDL GB BLACKWATER,PURCHASE OF FOOD (RAW MATERIALS),4.57,"GROCERY STORES, SUPERMARKETS",,
01/07/2019,HILLSIDE,LIDL GB BLACKWATER,PURCHASE OF FOOD (RAW MATERIALS),20.27,"GROCERY STORES, SUPERMARKETS",,
01/07/2019,SHELL UK LICENSING,SWINDON BOROUGH COUNCI,FEES,375.00,GOVERNMENT SERVICES-NOT ELSEWHERE CLASSIFIED,,
01/07/2019,BUSINESS UNIT,AMAZON.CO.UK M655N2SK4,TRAINING EXPENSES EXTERNAL GENERAL,17.25,DIRECT MARKETING-OTHER DIRECT MARKETERS/NOT ELSEW.,,
01/07/2019,TARGETED INTERVENTION,FREEDOM LEISURE,EDUC VISITS/HOLS/CAMPS/TOYS,8.95,GOVERNMENT SERVICES-NOT ELSEWHERE CLASSIFIED,,
01/07/2019,FAIRCROFT COMMUNITY HOME,STARBUCKS,REFRESHMENT COSTS,10.90,FAST FOOD RESTAURANTS,,
01/07/2019,ARMED FORCES COMMUNITY COVENANT GRANT,HOTEL ON BOOKING.COM T,MISCELLANEOUS STAFF TRAVEL,123.24,"LODGING-HOTELS,MOTELS,RESORTS-NOT CLASSIFIED",,
01/07/2019,ARMED FORCES COMMUNITY COVENANT GRANT,WEST CLIFF HOTEL,MISCELLANEOUS STAFF TRAVEL,10.00,"LODGING-HOTELS,MOTELS,RESORTS-NOT CLASSIFIED",,
01/07/2019,FAIRCROFT COMMUNITY HOME,WWW.THEHOWARDPARTNERSH,PURCHASE OF FOOD (RAW MATERIALS),56.00,"SCHOOLS, ELEMENTARY AND SECONDARY",,
01/07/2019,KESWICK,MAIDENHEAD AQ GUILDFOR,DAY TO DAY MAINTENANCE,6.49,PET SHOPS - PET FOODS AND SUPPLIES,,
01/07/2019,ARUNDEL,AMZNMKTPLACE,STATIONERY,3.49,MISCELLANEOUS AND SPECIALTY RETAIL STORES,,
01/07/2019,ACL CENTRAL EXPENDITURE,TESCO STORE 3149,PURCHASE OF FOOD (RAW MATERIALS),102.66,"GROCERY STORES, SUPERMARKETS",,
02/07/2019,LIBERTAS COMMUNITY HOME,HOTEL ON BOOKING.COM R,EDUC VISITS/HOLS/CAMPS/TOYS,71.40,"LODGING-HOTELS,MOTELS,RESORTS-NOT CLASSIFIED",,
02/07/2019,CHEYNE WALK COMMUNITY HOME,IKEA LTD 144 CROYDON M,FURNITURE,404.75,"EQUIP, FURNITURE, HOME FURNSHNGS STRS (EXCPT APPL)",,
02/07/2019,ACL CENTRAL EXPENDITURE,DELL PRODUCTS,COMPUTER HARDWARE,53.46,"COMPUTERS, COMPUTER PERIPHERAL EQUIPMENT, SOFTWARE",,
02/07/2019,BURBANK COMMUNITY HOME,W M MORRISONS.COM,PURCHASE OF FOOD (RAW MATERIALS),282.72,"GROCERY STORES, SUPERMARKETS",,
02/07/2019,TARGETED INTERVENTION,STARBUCKS CRAWLEY,EDUC VISITS/HOLS/CAMPS/TOYS,5.40,"EATING PLACES, RESTAURANTS",,
02/07/2019,TARGETED INTERVENTION,PRIMARK 685,EDUC VISITS/HOLS/CAMPS/TOYS,23.00,FAMILY CLOTHING STORES,,
02/07/2019,RUTH HOUSE,AMZNMKTPLACE AMAZON.CO,EQUIPMENT,13.98,MISCELLANEOUS AND SPECIALTY RETAIL STORES,,
02/07/2019,PE/CDT MAINTENANCE OVERHEADS,WWW.ARCO.CO.UK,EQUIPMENT,64.26,INDUSTRIAL SUPPLIES NOT ELSEWHERE CLASSIFIED,,
02/07/2019,ARUNDEL,ART OF LIVING  COOK SH,EDUC VISITS/HOLS/CAMPS/TOYS,28.80,LAWN AND GARDEN SUPPLY STORES,,
02/07/2019,FAIRCROFT COMMUNITY HOME,SAINSBURYS SACAT 0687,PURCHASE OF FOOD (RAW MATERIALS),18.80,"GROCERY STORES, SUPERMARKETS",,
02/07/2019,TARGETED INTERVENTION,COUNTY MALL CAR PARK,EDUC VISITS/HOLS/CAMPS/TOYS,3.00,AUTOMOBILE PARKING LOTS AND GARAGES,,
02/07/2019,TARGETED INTERVENTION,TK MAXX,EDUC VISITS/HOLS/CAMPS/TOYS,55.05,VARIETY STORES,,
02/07/2019,TARGETED INTERVENTION,NEXT RETAIL LTD,EDUC VISITS/HOLS/CAMPS/TOYS,28.00,FAMILY CLOTHING STORES,,
02/07/2019,TARGETED INTERVENTION,TOP SHOP/TOPMAN,EDUC VISITS/HOLS/CAMPS/TOYS,10.00,MEN'S AND WOMEN'S CLOTHING STORES,,
02/07/2019,IMT CRITICAL ENVIRONMENTS,WWW.TALKTALKBUSINESS.C,TELECOMMUNICATION CHARGES,"2,206.52",COMPUTER NETWORK/INFORMATION SERVICES,,
02/07/2019,RUTH HOUSE,AMAZON PRIME M60IJ7SW4,EDUC VISITS/HOLS/CAMPS/TOYS,7.99,DIRECT MARKETING-CONTINUITY/SUBSCRIPTION MERCHANTS,,
02/07/2019,RUTH HOUSE,SAINSBURYS TO YOU 0686,PURCHASE OF FOOD (RAW MATERIALS),16.65,"GROCERY STORES, SUPERMARKETS",,
02/07/2019,RUTH HOUSE,SAINSBURYS TO YOU 0686,PURCHASE OF FOOD (RAW MATERIALS),128.20,"GROCERY STORES, SUPERMARKETS",,
02/07/2019,RUTH HOUSE,PAYPAL  STEVES,EQUIPMENT,11.29,MISCELLANEOUS AND SPECIALTY RETAIL STORES,,
02/07/2019,RUTH HOUSE,SPORTSDIRECT.COM,EQUIPMENT,279.98,SPORTING GOODS STORES,,
02/07/2019,BURBANK COMMUNITY HOME,WICKES WOKING,EQUIPMENT,20.15,HOME SUPPLY WAREHOUSE STORES,,
02/07/2019,HAVEN,CO-OP GROUP 310385,REFRESHMENT COSTS,5.45,"GROCERY STORES, SUPERMARKETS",,
02/07/2019,ACL CENTRAL EXPENDITURE,W P NOTCUTT LTD,EQUIPMENT,122.95,"BUILDING MATERIALS, LUMBER STORES",,
02/07/2019,ACL CENTRAL EXPENDITURE,W P NOTCUTT LTD,EQUIPMENT,432.12,"BUILDING MATERIALS, LUMBER STORES",,
02/07/2019,NW CARE - LAC,SURREY CC CARD PAY,FEES,11.00,COMPUTER NETWORK/INFORMATION SERVICES,,
02/07/2019,NW CARE - NON-LAC CP & COURT,SURREY CC CARD PAY,FEES,11.00,COMPUTER NETWORK/INFORMATION SERVICES,,
02/07/2019,TRANSPORT,PAYPAL  UNIVERSALSI,DESCRIPTION &AWARD LONG SERVICE,4.36,ADVERTISING SERVICES,,
02/07/2019,WOODLANDS COMMUNITY HOME,SAINSBURYS 0686,PURCHASE OF FOOD (RAW MATERIALS),53.65,"GROCERY STORES, SUPERMARKETS",,
02/07/2019,WOODLANDS COMMUNITY HOME,SAINSBURYS 0686,PURCHASE OF FOOD (RAW MATERIALS),120.84,"GROCERY STORES, SUPERMARKETS",,
02/07/2019,WOODLANDS COMMUNITY HOME,SAINSBURYS 0686,TELECOMMUNICATION CHARGES,10.00,"GROCERY STORES, SUPERMARKETS",,
02/07/2019,SOLD DAY TO DAY OPERATIONS,SAILBOATS.CO.UK,EQUIPMENT,20.21,"MARINAS, MARINE SERVICE/SUPPLIES",,
02/07/2019,BURBANK COMMUNITY HOME,W M MORRISON STORE,EQUIPMENT,10.00,"GROCERY STORES, SUPERMARKETS",,
02/07/2019,CHILDREN'S RIGHTS TEAM,WWW.HOBBYCRAFT.CO.UK,EQUIPMENT,100.00,"ARTIST SUPPLY STORES, CRAFT SHOPS",,
02/07/2019,CHILDREN'S RIGHTS TEAM,WWW.CLOTHES2ORDER.COM,PRINTING,92.25,MEN'S/WOMEN'S/CHILDREN'S UNIFORMS/COMMERCIAL CLOTH,,
02/07/2019,CHILDREN'S RIGHTS TEAM,POUNDLAND LTD,EQUIPMENT,7.00,DISCOUNT STORES,,
02/07/2019,CHILDREN'S RIGHTS TEAM,WILKO WOKING,EQUIPMENT,21.30,HOUSEHOLD APPLIANCE STORES,,
02/07/2019,MALLOW CRESCENT,AMZNMKTPLACE,EQUIPMENT,5.00,MISCELLANEOUS AND SPECIALTY RETAIL STORES,,
02/07/2019,MEMBERS EXPENSES (INCL ALLOWANCES),SURREYHILLSENTERPRISES,TRAINING USING EXTERNAL PROVIDERS,45.00,"ORGANIZATIONS, MEMBERSHIP-NOT ELSEWHERE CLASSIFIED",,
02/07/2019,MEMBERS EXPENSES (INCL ALLOWANCES),SURREYHILLSENTERPRISES,TRAINING EXPENSES EXTERNAL GENERAL,45.00,"ORGANIZATIONS, MEMBERSHIP-NOT ELSEWHERE CLASSIFIED",,
02/07/2019,MEMBERS EXPENSES (INCL ALLOWANCES),SURREYHILLSENTERPRISES,TRAINING EXPENSES EXTERNAL GENERAL,45.00,"ORGANIZATIONS, MEMBERSHIP-NOT ELSEWHERE CLASSIFIED",,
02/07/2019,DEPUTYSHIP TEAM,SURREY CC CARD PAY,3RD PARTY PAYMENTS PRIVATE INDIV,11.00,COMPUTER NETWORK/INFORMATION SERVICES,,
02/07/2019,TRANSPORT,HAMPSHIREFL,FURNITURE,115.67,"FABRIC, NEEDLEWORK, PIECE GOODS, AND SEWING STORES",,
02/07/2019,TRANSPORT,AMZNMKTPLACE,OPERATIONAL FIRE EQUIPMENT,31.60,MISCELLANEOUS AND SPECIALTY RETAIL STORES,,
02/07/2019,TRANSPORT,AMZ EXPONDO GMBH,EQUIPMENT,-69.00,MISCELLANEOUS AND SPECIALTY RETAIL STORES,,
02/07/2019,SOLD ESTATES MANAGEMENT,AJS TYRES,VEHICLE REPAIRS AND MAINTENANCE,36.00,AUTOMOTIVE TIRE STORES,,
02/07/2019,LIBERTAS COMMUNITY HOME,STAR VILLAS,EDUC VISITS/HOLS/CAMPS/TOYS,"1,365.52",COMPUTER SOFTWARE STORES,,
02/07/2019,BIKEABILITY - CYCLE TRAINING,THE BIKEABILITY TRUST,EQUIPMENT,"3,243.96",STATIONERY/OFFICE SUPPLIES/PRINTING & WRITING PAP.,,
02/07/2019,BIKEABILITY - CYCLE TRAINING,THE BIKEABILITY TRUST,EQUIPMENT,"3,003.96",STATIONERY/OFFICE SUPPLIES/PRINTING & WRITING PAP.,,
02/07/2019,PE/CDT MAINTENANCE OVERHEADS,R&H ELECTRIC (SWINDON),EQUIPMENT,726.10,ELECTRICAL PARTS AND EQUIPMENT,,
02/07/2019,PE/CDT MAINTENANCE OVERHEADS,R&H ELECTRIC (SWINDON),EQUIPMENT,726.10,ELECTRICAL PARTS AND EQUIPMENT,,
02/07/2019,KARIBU COMMUNITY HOME,AMZNMKTPLACE,EQUIPMENT,10.99,MISCELLANEOUS AND SPECIALTY RETAIL STORES,,
02/07/2019,HILLSIDE,SAINSBURYS 0675,PURCHASE OF FOOD (RAW MATERIALS),40.40,"GROCERY STORES, SUPERMARKETS",,
02/07/2019,LIBERTAS COMMUNITY HOME,MARTIN MCCOLL,NEWSPAPER AND PERIODICALS,66.50,"MISC FOOD STORE-CONVENIENCE,MRKT,SPLTY,VENDNG MACS",,
02/07/2019,TRAINING AND DEVELOPMENT,ARDENHOTEL.CO.UK,SUBSISTENCE AND CONFERENCE EXPENSES,151.48,"EATING PLACES, RESTAURANTS",,
02/07/2019,SUPERFAST BROADBAND ECONOMIC DEVELOPMENT,GOOGLE  GSUITE_SUPERFA,COMPUTER SERVICES,8.25,DIRECT MARKETING-CONTINUITY/SUBSCRIPTION MERCHANTS,,
02/07/2019,FAMILIES REIGATE AND BANSTREAD,WILKO RETAIL LIMIT,CURRICULUM CONSUMABLES,27.85,HOUSEHOLD APPLIANCE STORES,,
02/07/2019,SPLASH PROJECT,ACORN PRINTING SER,"CLOTHING, UNIFORM AND LAUNDRY",439.86,"QUICK COPY,REPRODUCTION AND BLUEPRINTING SERVICES",,
02/07/2019,FAMILIES GUILDFORD,AMZNMKTPLACE,EQUIPMENT,15.87,MISCELLANEOUS AND SPECIALTY RETAIL STORES,,
02/07/2019,FAMILIES GUILDFORD,TESCO STORE 2590,EQUIPMENT,18.83,"GROCERY STORES, SUPERMARKETS",,
02/07/2019,FAMILIES GUILDFORD,AMZNMKTPLACE,EQUIPMENT,7.98,MISCELLANEOUS AND SPECIALTY RETAIL STORES,,
02/07/2019,TS SERVICE MANAGEMENT,AMZNMKTPLACE AMAZON.CO,EQUIPMENT,39.99,MISCELLANEOUS AND SPECIALTY RETAIL STORES,,
02/07/2019,ACL CENTRAL EXPENDITURE,WWW.SAFEANDEQUAL.C,TRAINING EXPENSES EXTERNAL GENERAL,450.00,SCHOOLS & EDUCATIONAL SVC-NOT ELSEWHERE CLASSIFIED,,
02/07/2019,ARUNDEL,TESCO STORES 5999,REFRESHMENT COSTS,65.70,"GROCERY STORES, SUPERMARKETS",,
02/07/2019,ARUNDEL,TESCO STORES 5999,REFRESHMENT COSTS,65.69,"GROCERY STORES, SUPERMARKETS",,
02/07/2019,LIBERTAS COMMUNITY HOME,TRAINLINE.COM,MISCELLANEOUS STAFF TRAVEL,110.81,PASSENGER RAILWAYS,,
02/07/2019,COUNTY HALL,SCREWFIX DIRECT,EQUIPMENT,49.71,HOME SUPPLY WAREHOUSE STORES,,
02/07/2019,AP & AR ORBIS NORTH,HOME BARGAINS ONLINE,EQUIPMENT,93.95,HARDWARE STORES,,
02/07/2019,AP & AR ORBIS NORTH,HOME BARGAINS ONLINE,EQUIPMENT,63.96,HARDWARE STORES,,
02/07/2019,HILLSIDE,SAINSBURYS 0784,PURCHASE OF FOOD (RAW MATERIALS),8.00,"GROCERY STORES, SUPERMARKETS",,
02/07/2019,ACL CENTRAL EXPENDITURE,TESCO STORE 2160,REFRESHMENT COSTS,178.01,"GROCERY STORES, SUPERMARKETS",,
02/07/2019,ACL CENTRAL EXPENDITURE,TESCO STORE 2160,REFRESHMENT COSTS,-6.76,"GROCERY STORES, SUPERMARKETS",,
02/07/2019,ROW MAINTENANCE,DUNWOODYS,DAY TO DAY MAINTENANCE,9.95,"BUILDING MATERIALS, LUMBER STORES",,
02/07/2019,HR - CSF TRAINING OPEN PROGRAMME,THE MAKATON CHARIT,TRAINING EXPENSES EXTERNAL GENERAL,95.00,SCHOOLS & EDUCATIONAL SVC-NOT ELSEWHERE CLASSIFIED,,
02/07/2019,TRANSPORT,WWW.WATSONFUELS.CO.UK,VEHICLE REPAIRS AND MAINTENANCE,200.92,"FUEL DEALERS-COAL, FUEL OIL, LIQ PETROLEUM, WOOD",,
02/07/2019,HEATHSIDE,PAYPAL  BPSALESDIRE,E25 CATERING EQUIPMENT,23.70,ELECTRONIC SALES,,
02/07/2019,HEATHSIDE,PAYPAL  LIMARTRADIN,E25 CATERING EQUIPMENT,37.45,ELECTRONIC SALES,,
02/07/2019,HEATHSIDE,MARSDENS,EQUIPMENT,496.80,"COMMERCIAL EQUIPMENT, NOT ELSEWHERE CLASSIFIED",,
02/07/2019,EAST OUTREACH,WWW.ABBEYSTATIONERY.CO,STATIONERY,20.69,STATIONERY/OFFICE SUPPLIES/PRINTING & WRITING PAP.,,
02/07/2019,STRATEGIC DIRECTOR,BUDGETAIR.CO.UK,OTHER COMMUNITY CARE VOL,"1,871.98",TRAVEL AGENCIES AND TOUR OPERATORS,,
02/07/2019,STRATEGIC DIRECTOR,BUDGETAIR.CO.UK,OTHER COMMUNITY CARE VOL,"1,763.99",TRAVEL AGENCIES AND TOUR OPERATORS,,
02/07/2019,ACL CENTRAL EXPENDITURE,TESCO STORE 2160,REFRESHMENT COSTS,62.58,"GROCERY STORES, SUPERMARKETS",,
02/07/2019,ACL CENTRAL EXPENDITURE,W M MORRISON STORE,REFRESHMENT COSTS,9.09,"GROCERY STORES, SUPERMARKETS",,
02/07/2019,ACL CENTRAL EXPENDITURE,TESCO STORE 2160,REFRESHMENT COSTS,-2.40,"GROCERY STORES, SUPERMARKETS",,
02/07/2019,NE SECTION 17 CARE,AIRPORT GUEST HOUSE,3RD PARTY PAYMENTS PRIVATE INDIV,440.00,"LODGING-HOTELS,MOTELS,RESORTS-NOT CLASSIFIED",,
02/07/2019,ROW VOLUNTEERS WEST                     ,METHOLD VEHICLE HIRE,HIRE OF VEHICLES,80.00,AUTOMOBILE RENTAL AGENCY-NOT ELSEWHERE CLASSIFIED,,
02/07/2019,ROW VOLUNTEERS WEST                     ,SHELL BURNT CM 199,PETROL/DIESEL ALL OFF BUSINESS,13.51,SERVICE STATIONS WITH OR WITHOUT ANCILLARY SERVICE,,
02/07/2019,EXTENDED HOPE,TESCO STORE 2590,PURCHASE OF FOOD (RAW MATERIALS),131.63,"GROCERY STORES, SUPERMARKETS",,
02/07/2019,BURBANK COMMUNITY HOME,LONDIS,REFRESHMENT COSTS,5.98,"GROCERY STORES, SUPERMARKETS",,
02/07/2019,HAVEN GUILDFORD,TESCO STORES 5478,REFRESHMENT COSTS,7.27,"GROCERY STORES, SUPERMARKETS",,
02/07/2019,COACHING                                ,BOOKWHEN.COM - BOOKING,COMPUTER SOFTWARE,228.00,COMPUTER SOFTWARE STORES,,
02/07/2019,FIRE & RESCUE COMMUNITY SAFETY,WH SMITH,STATIONERY,99.50,NEWS DEALERS AND NEWSSTANDS,,
02/07/2019,KARIBU COMMUNITY HOME,AMZNMKTPLACE,EQUIPMENT,7.96,MISCELLANEOUS AND SPECIALTY RETAIL STORES,,
03/07/2019,ACL CENTRAL EXPENDITURE,TESCO DELIVERY SAVER2,REFRESHMENT COSTS,6.99,DIRECT MARKETING-CONTINUITY/SUBSCRIPTION MERCHANTS,,
03/07/2019,NW CARE - CP & COURT LAC,HOLIDAY INNS,OTHER COMMUNITY CARE VOL,92.43,HOLIDAY INNS,,
03/07/2019,NW CARE - CP & COURT LAC,HOLIDAY INNS,OTHER COMMUNITY CARE VOL,92.43,HOLIDAY INNS,,
03/07/2019,ACCESS PROGRAMMES,GM CARS,MISCELLANEOUS STAFF TRAVEL,225.00,LIMOUSINES AND TAXICABS,,
03/07/2019,MALLOW CRESCENT,BUTLINS,EDUC VISITS/HOLS/CAMPS/TOYS,178.00,"LODGING-HOTELS,MOTELS,RESORTS-NOT CLASSIFIED",,
03/07/2019,MALLOW CRESCENT,BUTLINS,EDUC VISITS/HOLS/CAMPS/TOYS,442.00,"LODGING-HOTELS,MOTELS,RESORTS-NOT CLASSIFIED",,
03/07/2019,MALLOW CRESCENT,BUTLINS,EDUC VISITS/HOLS/CAMPS/TOYS,163.00,"LODGING-HOTELS,MOTELS,RESORTS-NOT CLASSIFIED",,
03/07/2019,STRATEGIC DIRECTOR,AMZNMKTPLACE AMAZON.CO,COMPUTER HARDWARE,32.45,MISCELLANEOUS AND SPECIALTY RETAIL STORES,,
03/07/2019,WOODLANDS COMMUNITY HOME,PRIMARK STORES 655,"CLOTHING, UNIFORM AND LAUNDRY",16.00,FAMILY CLOTHING STORES,,
03/07/2019,TRAINING AND DEVELOPMENT,PREMIER INN,SUBSISTENCE AND CONFERENCE EXPENSES,123.50,PREMIER INN,,
03/07/2019,SERVICE DELIVERY SENIOR MANAGEMENT,AMZNMKTPLACE AMAZON.CO,EQUIPMENT,109.49,MISCELLANEOUS AND SPECIALTY RETAIL STORES,,
03/07/2019,SW CARE - LAC,FLYBE.COM VIHL65       0,NON-STAFF RELATED TRANSPORT COSTS,351.05,"AIR CARRIERS, AIRLINES-NOT ELSEWHERE CLASSIFIED",,
03/07/2019,SPLASH PROJECT,AMZNMKTPLACE AMAZON.CO,EQUIPMENT,13.91,MISCELLANEOUS AND SPECIALTY RETAIL STORES,,
03/07/2019,HAVEN GUILDFORD,WWW.RU.AC.UK/ESTORE,STAFF TRAINING,30.00,"COLLEGES, UNIV, PRO SCHOOLS, JUNIOR COLLEGES",,
03/07/2019,SPLASH PROJECT,AMZNMKTPLACE AMAZON.CO,EQUIPMENT,3.99,MISCELLANEOUS AND SPECIALTY RETAIL STORES,,
03/07/2019,STH CENTRAK ADOPTION CONSORTUM,WWW.CORAM.ORG.UK,BOOKS,77.80,"ORGANIZATIONS, CHARITABLE AND SOCIAL SERVICES",,
03/07/2019,MALLOW CRESCENT,TVLICENSING.CO.UK,EQUIPMENT,154.50,"CONSULTING, MANAGEMENT, AND PUBLIC RELATIONS SVCS",,
03/07/2019,MALLOW CRESCENT,TVLICENSING.CO.UK,EQUIPMENT,154.50,"CONSULTING, MANAGEMENT, AND PUBLIC RELATIONS SVCS",,
03/07/2019,BOOKS - ADULT FICTION                   ,THE COBHAM BOOKSHOP,BOOKS,61.13,BOOK STORES,,
03/07/2019,INSTRUMENT HIRE SHOP,WWW.ALDAUTOMOTIVE.CO.U,HIRE OF VEHICLES,364.58,BUSINESS SERVICES-NOT ELSEWHERE CLASSIFIED,,
03/07/2019,TECHNICAL DELIVERY,PRESTIGEMOTORCARE.,VEHICLE REPAIRS AND MAINTENANCE,391.20,AUTOMOTIVE SERVICE SHOPS,,
03/07/2019,SOUTH WEST OUTREACH,SAINSBURYS 0670,PURCHASE OF FOOD (RAW MATERIALS),41.80,"GROCERY STORES, SUPERMARKETS",,
03/07/2019,SOUTH WEST OUTREACH,SAINSBURYS 0670,PURCHASE OF FOOD (RAW MATERIALS),82.81,"GROCERY STORES, SUPERMARKETS",,
03/07/2019,SE CARE - NON-LAC CP & COURT,STAGECOACH REIGATE,OTHER COMMUNITY CARE VOL,180.00,SCHOOLS & EDUCATIONAL SVC-NOT ELSEWHERE CLASSIFIED,,
03/07/2019,SHELL UK LICENSING,L B SOUTHWARK - INT,FEES,452.00,GOVERNMENT SERVICES-NOT ELSEWHERE CLASSIFIED,,
03/07/2019,UASC 18+,EASYJET,OTHER COMMUNITY CARE VOL,212.06,EASYJET,,
03/07/2019,UASC 18+,EASYJET,NON-STAFF RELATED TRANSPORT COSTS,143.38,EASYJET,,
03/07/2019,SE CARE - NON-LAC CP & COURT,PGL TRAVEL LIMITED,FEES,"1,615.00",TRAVEL AGENCIES AND TOUR OPERATORS,,
03/07/2019,RECRUITMENT,AMZNMKTPLACE,STAFF ADVERTISING ,12.64,MISCELLANEOUS AND SPECIALTY RETAIL STORES,,
03/07/2019,HEATHSIDE,AMZNMKTPLACE AMAZON.CO,STATIONERY,27.00,MISCELLANEOUS AND SPECIALTY RETAIL STORES,,
03/07/2019,HEATHSIDE,HOMEBASE LTD 084,CLEANING AND DOMESTIC SUPPLIES,3.50,"BUILDING MATERIALS, LUMBER STORES",,
03/07/2019,ACL CENTRAL EXPENDITURE,SAINSBURYS LOC 4334,REFRESHMENT COSTS,6.15,"GROCERY STORES, SUPERMARKETS",,
03/07/2019,NE CARE - LAC,TRAVELODGE,3RD PARTY PAYMENTS PRIVATE INDIV,80.00,TRAVELODGE,,
03/07/2019,NE CARE - CP & COURT LAC,SURREY CC CARD PAY,OTHER COMMUNITY CARE VOL,35.00,COMPUTER NETWORK/INFORMATION SERVICES,,
03/07/2019,ROW VOLUNTEERS WEST                     ,WWW.TOOLSTATION.COM,EQUIPMENT,162.80,HARDWARE STORES,,
03/07/2019,ROW VOLUNTEERS WEST                     ,FIRSTAID4LESS.CO.UK,EQUIPMENT,105.66,MISCELLANEOUS AND SPECIALTY RETAIL STORES,,
03/07/2019,ROW VOLUNTEERS WEST                     ,STATIONERYU,STATIONERY,14.08,CHEMICALS/ALLIED PRODUCTS NOT ELSEWHERE CLASSIFIED,,
03/07/2019,MALLOW CRESCENT,AWAY-RESORTS.COM,EDUC VISITS/HOLS/CAMPS/TOYS,390.00,CAMPGROUNDS AND TRAILER PARKS,,
03/07/2019,APPLEWOOD,AMAZON.CO.UK M627K8254,EQUIPMENT,24.95,DIRECT MARKETING-OTHER DIRECT MARKETERS/NOT ELSEW.,,
03/07/2019,APPLEWOOD,AMZNMKTPLACE,EQUIPMENT,9.95,MISCELLANEOUS AND SPECIALTY RETAIL STORES,,
03/07/2019,SOLD CATERING,ASDA SUPERSTORE,PURCHASE OF FOOD (RAW MATERIALS),72.68,"GROCERY STORES, SUPERMARKETS",,
03/07/2019,BARNFIELD,SURREY SPARE 2,EQUIPMENT,30.00,"CLEANING AND MAINTENANCE, JANITORIAL SERVICES",,
03/07/2019,BARNFIELD,MITCHELLS OF HORLEYLT,DAY TO DAY MAINTENANCE,16.46,"BUILDING MATERIALS, LUMBER STORES",,
03/07/2019,DITTONS & CLAYGATE CC,SP   CHARFLEET BOOKS,EQUIPMENT,19.10,COMPUTER SOFTWARE STORES,,
03/07/2019,FAIRCROFT COMMUNITY HOME,STARBUCKS,REFRESHMENT COSTS,5.90,FAST FOOD RESTAURANTS,,
03/07/2019,RUTH HOUSE,AMZNMKTPLACE AMAZON.CO,EQUIPMENT,5.99,MISCELLANEOUS AND SPECIALTY RETAIL STORES,,
03/07/2019,RUTH HOUSE,AMZNMKTPLACE AMAZON.CO,EQUIPMENT,5.99,MISCELLANEOUS AND SPECIALTY RETAIL STORES,,
03/07/2019,RUTH HOUSE,AMZNMKTPLACE AMAZON.CO,EQUIPMENT,5.99,MISCELLANEOUS AND SPECIALTY RETAIL STORES,,
03/07/2019,RUTH HOUSE,WWW.BOZFRUITVEG.CO.UK,PURCHASE OF FOOD (RAW MATERIALS),901.55,COMPUTER SOFTWARE STORES,,
03/07/2019,RUTH HOUSE,WWW.BOZFRUITVEG.CO.UK,PURCHASE OF FOOD (RAW MATERIALS),694.25,COMPUTER SOFTWARE STORES,,
03/07/2019,BURBANK COMMUNITY HOME,SAINSBURYS SACAT 0686,EQUIPMENT,20.00,"GROCERY STORES, SUPERMARKETS",,
03/07/2019,MEADOWSIDE,SCREWFIX DIRECT,DAY TO DAY MAINTENANCE,25.50,HOME SUPPLY WAREHOUSE STORES,,
03/07/2019,MEADOWSIDE,WICKES BUILDING,DAY TO DAY MAINTENANCE,12.00,"BUILDING MATERIALS, LUMBER STORES",,
03/07/2019,CHEYNE WALK COMMUNITY HOME,AMAZON PRIME M67D10294,SUBSCRIPTIONS,7.99,DIRECT MARKETING-CONTINUITY/SUBSCRIPTION MERCHANTS,,
03/07/2019,CS BUSINESS SUPPORT WEST,SCREWFIX DIRECT,EQUIPMENT,49.96,HOME SUPPLY WAREHOUSE STORES,,
03/07/2019,ACL CENTRAL EXPENDITURE,AMAZON PRIME M60GX8234,EQUIPMENT,7.99,DIRECT MARKETING-CONTINUITY/SUBSCRIPTION MERCHANTS,,
03/07/2019,ACL CENTRAL EXPENDITURE,RYMAN 1138,EQUIPMENT,9.99,"OFFICE, SCHOOL SUPPLY, AND STATIONERY STORES",,
03/07/2019,NW CARE - CP & COURT LAC,EASYRENTCARS.COM,FEES,169.36,AUTOMOBILE RENTAL AGENCY-NOT ELSEWHERE CLASSIFIED,,
03/07/2019,NW CARE - CP & COURT LAC,COVERWISE.CO.UK,FEES,14.40,"INSURANCE SALES,UNDERWRITING,AND PREMIUMS",,
03/07/2019,SOLD CATERING,WM MORRISONS STORE,PURCHASE OF FOOD (RAW MATERIALS),29.60,"GROCERY STORES, SUPERMARKETS",,
03/07/2019,MISC EDCAT SUPPORT,FIVERR.COM,EQUIPMENT,83.30,DIRECT MARKETING-CATALOG MERCHANTS,,
03/07/2019,MALLOW CRESCENT,SPORTSDIRECT.COM,EQUIPMENT,137.98,SPORTING GOODS STORES,,
03/07/2019,CORONER,DISPLAYSENSE.CO.UK,STATIONERY,17.34,"COMMERCIAL EQUIPMENT, NOT ELSEWHERE CLASSIFIED",,
03/07/2019,LIBERTAS COMMUNITY HOME,SAINSBURYS SACAT 6221,PURCHASE OF FOOD (RAW MATERIALS),13.45,"GROCERY STORES, SUPERMARKETS",,
03/07/2019,LIBERTAS COMMUNITY HOME,SAINSBURYS 0652,PURCHASE OF FOOD (RAW MATERIALS),20.00,"GROCERY STORES, SUPERMARKETS",,
03/07/2019,WOODLANDS COMMUNITY HOME,RIVER ISLAND 129,"CLOTHING, UNIFORM AND LAUNDRY",18.00,MEN'S AND WOMEN'S CLOTHING STORES,,
03/07/2019,WOODLANDS COMMUNITY HOME,ODEON,REFRESHMENT COSTS,1.75,MOTION PICTURE THEATERS,,
03/07/2019,DEPUTYSHIP TEAM,MARSTON GROUP LTD,3RD PARTY PAYMENTS PRIVATE INDIV,105.00,FINES,,
03/07/2019,ACL CENTRAL EXPENDITURE,WWW.VEGWARE.CO.UK,EQUIPMENT,11.90,BUSINESS SERVICES-NOT ELSEWHERE CLASSIFIED,,
03/07/2019,SOLD ESTATES MANAGEMENT,AMZNMKTPLACE,VEHICLE REPAIRS AND MAINTENANCE,89.99,MISCELLANEOUS AND SPECIALTY RETAIL STORES,,
03/07/2019,SOLD ESTATES MANAGEMENT,HONEY BROTHERS LTD,"CLOTHING, UNIFORM AND LAUNDRY",43.09,LAWN AND GARDEN SUPPLY STORES,,
03/07/2019,SOLD DAY TO DAY OPERATIONS,AMZNMKTPLACE AMAZON.CO,EQUIPMENT,10.15,MISCELLANEOUS AND SPECIALTY RETAIL STORES,,
03/07/2019,PE/CDT MAINTENANCE OVERHEADS,GSPRODUCTS CO UK,EQUIPMENT,203.51,BUSINESS SERVICES-NOT ELSEWHERE CLASSIFIED,,
03/07/2019,EARLY YEARS NEEDS,AMAZON.CO.UK M61O692J4,EQUIPMENT,23.68,DIRECT MARKETING-OTHER DIRECT MARKETERS/NOT ELSEW.,,
03/07/2019,SHELL UK LICENSING,SWINDON BOROUGH COUNCI,FEES,226.00,GOVERNMENT SERVICES-NOT ELSEWHERE CLASSIFIED,,
03/07/2019,SHELL UK LICENSING,SUFFOLK COUNTY COUNCIL,FEES,"1,500.00",GOVERNMENT SERVICES-NOT ELSEWHERE CLASSIFIED,,
03/07/2019,SHELL UK LICENSING,LONDON BOROUGH/GRE,FEES,226.00,COMPUTER NETWORK/INFORMATION SERVICES,,
03/07/2019,B & C FOOD SAMPLING                     ,WWW.ARCO.CO.UK,EQUIPMENT,158.81,INDUSTRIAL SUPPLIES NOT ELSEWHERE CLASSIFIED,,
03/07/2019,PROJECT DELIVERY,AMAZON.CO.UK M65WJ32K4,STATIONERY,4.20,DIRECT MARKETING-OTHER DIRECT MARKETERS/NOT ELSEW.,,
03/07/2019,COUNTYWIDE MANAGED PRINT SERVICE,AMAZON.CO.UK M651G7204,COMPUTER HARDWARE,424.08,DIRECT MARKETING-OTHER DIRECT MARKETERS/NOT ELSEW.,,
04/07/2019,SOUTH WEST OUTREACH,AMZNMKTPLACE AMAZON.CO,EQUIPMENT,24.49,MISCELLANEOUS AND SPECIALTY RETAIL STORES,,
04/07/2019,CS BUSINESS SUPPORT EAST,PREMIER INN,INDEPENDENT LIVING PLACEMENTS,157.50,PREMIER INN,,
04/07/2019,HOPE SERVICE - WEST,NBX CRAGGY ISLAND,EDUC VISITS/HOLS/CAMPS/TOYS,60.00,RECREATION SERVICES (NOT ELSEWHERE CLASSIFIED),,
04/07/2019,HOPE SERVICE - WEST,SAINSBURYS TO YOU 0683,PURCHASE OF FOOD (RAW MATERIALS),95.31,"GROCERY STORES, SUPERMARKETS",,
04/07/2019,HOPE SERVICE - WEST,KFC,REFRESHMENT COSTS,7.39,FAST FOOD RESTAURANTS,,
04/07/2019,HOPE SERVICE - WEST,HOLLYWOOD BOWL,EDUC VISITS/HOLS/CAMPS/TOYS,20.32,"CLUBS-CNTRY,MBRSHIP(ATHLET,REC,SPRTS,PRIVATE GOLF",,
04/07/2019,WOODLANDS COMMUNITY HOME,NATIONAL EXPRESS LIMIT,NON-STAFF RELATED TRANSPORT COSTS,41.60,BUS LINES,,
04/07/2019,ACL CENTRAL EXPENDITURE,AMAZON.CO.UK M66BY2KD4,EQUIPMENT,19.40,DIRECT MARKETING-OTHER DIRECT MARKETERS/NOT ELSEW.,,
04/07/2019,ACL CENTRAL EXPENDITURE,AMAZON.CO.UK M630V7KV4,EQUIPMENT,32.28,DIRECT MARKETING-OTHER DIRECT MARKETERS/NOT ELSEW.,,
04/07/2019,TRANSPORT,BUCK & HICKMAN,OPERATIONAL FIRE EQUIPMENT,53.71,HARDWARE EQUIPMENT AND SUPPLIES,,
04/07/2019,SOLD ESTATES MANAGEMENT,FARM SUPPLIES GARDEN S,EQUIPMENT,80.36,LAWN AND GARDEN SUPPLY STORES,,
04/07/2019,SOLD ESTATES MANAGEMENT,HOMEBASE LTD,EQUIPMENT,56.18,"BUILDING MATERIALS, LUMBER STORES",,
04/07/2019,SOLD DAY TO DAY OPERATIONS,MEDISAVE,EQUIPMENT,25.67,DENTAL/LAB/MED/OPHTHALMIC HOSP EQUIP & SUPPLIES,,
04/07/2019,PE/CDT MAINTENANCE OVERHEADS,POWERHOUSE FITNESS,ITEMS PURCHASED FOR RE-SALE,24.00,SPORTING GOODS STORES,,
04/07/2019,ARUNDEL,ASDA SUPERSTORE,CLEANING AND DOMESTIC SUPPLIES,71.75,"GROCERY STORES, SUPERMARKETS",,
04/07/2019,PE/CDT MAINTENANCE OVERHEADS,MARGNOR FASTENERS,EQUIPMENT,236.30,MISCELLANEOUS AND SPECIALTY RETAIL STORES,,
04/07/2019,KARIBU COMMUNITY HOME,TESCO STORE 2812,PURCHASE OF FOOD (RAW MATERIALS),192.59,"GROCERY STORES, SUPERMARKETS",,
04/07/2019,HILLSIDE,SAINSBURYS SACAT 0784,PURCHASE OF FOOD (RAW MATERIALS),18.31,"GROCERY STORES, SUPERMARKETS",,
04/07/2019,SW CARE - LAC,HM PASSPORT OFFICE,LEGAL EXPENSES,54.00,GOVERNMENT SERVICES-NOT ELSEWHERE CLASSIFIED,,
04/07/2019,SW CARE - LAC,SURREY CC CARD PAY,LEGAL EXPENSES,11.00,COMPUTER NETWORK/INFORMATION SERVICES,,
04/07/2019,BARNFIELD,TESCO STORE 2560,REFRESHMENT COSTS,88.20,"GROCERY STORES, SUPERMARKETS",,
04/07/2019,DITTONS & CLAYGATE CC,J K PAULL LIMITED,EQUIPMENT,60.00,"GROCERY STORES, SUPERMARKETS",,
04/07/2019,SPLASH PROJECT,AMZNMKTPLACE AMAZON.CO,EQUIPMENT,62.56,MISCELLANEOUS AND SPECIALTY RETAIL STORES,,
04/07/2019,FAMILIES REIGATE AND BANSTREAD,TESCO STORE 2560,REFRESHMENT COSTS,9.30,"GROCERY STORES, SUPERMARKETS",,
04/07/2019,SPLASH PROJECT,ACORN PRINTING SER,OTHER COMMUNITY CARE VOL,9.00,"QUICK COPY,REPRODUCTION AND BLUEPRINTING SERVICES",,
04/07/2019,SPLASH PROJECT,AMZNMKTPLACE AMAZON.CO,EQUIPMENT,71.96,MISCELLANEOUS AND SPECIALTY RETAIL STORES,,
04/07/2019,RUTH HOUSE,WORLD OF WALLPAPER,EQUIPMENT,44.91,"GLASS, PAINT, WALLPAPER STORES",,
04/07/2019,RUTH HOUSE,MUSBURY FABRICS,"CLOTHING, UNIFORM AND LAUNDRY",753.30,MISCELLANEOUS HOUSE FURNISHING SPECIALTY SHOPS,,
04/07/2019,RUTH HOUSE,WWW.NISBETS.COM,EQUIPMENT,338.91,DIRECT MARKETING-CATALOG MERCHANTS,,
04/07/2019,MEADOWSIDE,SCREWFIX DIRECT,DAY TO DAY MAINTENANCE,84.98,HOME SUPPLY WAREHOUSE STORES,,
04/07/2019,MEADOWSIDE,WWW.ARGOS.CO.UK,DAY TO DAY MAINTENANCE,51.94,DISCOUNT STORES,,
04/07/2019,LIBERTAS COMMUNITY HOME,TESCO STORES 2025,EQUIPMENT,9.15,"GROCERY STORES, SUPERMARKETS",,
04/07/2019,LIBERTAS COMMUNITY HOME,TESCO STORES 2025,PURCHASE OF FOOD (RAW MATERIALS),16.05,"GROCERY STORES, SUPERMARKETS",,
04/07/2019,LIBERTAS COMMUNITY HOME,TESCO STORES 2025,PURCHASE OF FOOD (RAW MATERIALS),112.01,"GROCERY STORES, SUPERMARKETS",,
04/07/2019,BURBANK COMMUNITY HOME,BOOTS 2142,EDUC VISITS/HOLS/CAMPS/TOYS,7.95,"DRUG STORES, PHARMACIES",,
04/07/2019,BURBANK COMMUNITY HOME,3C_ WOKING BOROUGH COU,DESCRIPTION &AWARD LONG SERVICE,1.40,AUTOMOBILE PARKING LOTS AND GARAGES,,
04/07/2019,BURBANK COMMUNITY HOME,THE WORKS,DESCRIPTION &AWARD LONG SERVICE,2.50,DISCOUNT STORES,,
04/07/2019,SHELL UK LICENSING,EDINBURGH.GOV.UK,FEES,"3,125.00",GOVERNMENT SERVICES-NOT ELSEWHERE CLASSIFIED,,
04/07/2019,CORONER,AMAZON.CO.UK M61BL7KN4,REFRESHMENT COSTS,32.35,DIRECT MARKETING-OTHER DIRECT MARKETERS/NOT ELSEW.,,
04/07/2019,ARUNDEL,TESCO STORES 5999,REFRESHMENT COSTS,86.18,"GROCERY STORES, SUPERMARKETS",,
04/07/2019,LIBERTAS COMMUNITY HOME,AMZNMKTPLACE,EDUC VISITS/HOLS/CAMPS/TOYS,13.48,MISCELLANEOUS AND SPECIALTY RETAIL STORES,,
04/07/2019,KARIBU COMMUNITY HOME,SAINSBURYS 0038,DESCRIPTION &AWARD LONG SERVICE,54.00,"GROCERY STORES, SUPERMARKETS",,
04/07/2019,SOUTH WEST OUTREACH,AMZNMKTPLACE AMAZON.CO,EQUIPMENT,3.70,MISCELLANEOUS AND SPECIALTY RETAIL STORES,,
04/07/2019,SOUTH WEST OUTREACH,WWW.ARGOS.CO.UK,EQUIPMENT,74.95,DISCOUNT STORES,,
04/07/2019,SE CARE - LAC,HI WARRINGTON - RE,INDEPENDENT LIVING PLACEMENTS,115.20,"LODGING-HOTELS,MOTELS,RESORTS-NOT CLASSIFIED",,
04/07/2019,SE CARE - LAC,HI WARRINGTON - RE,INDEPENDENT LIVING PLACEMENTS,115.20,"LODGING-HOTELS,MOTELS,RESORTS-NOT CLASSIFIED",,
04/07/2019,CS BUSINESS SUPPORT EAST,SURREY CC CARD PAY,OTHER COMMUNITY CARE VOL,22.00,COMPUTER NETWORK/INFORMATION SERVICES,,
04/07/2019,NW CARE - LAC,SURREY CC CARD PAY,OTHER COMMUNITY CARE VOL,35.00,COMPUTER NETWORK/INFORMATION SERVICES,,
04/07/2019,AP & AR ORBIS NORTH,CRAWLEY LIBRARY,VENUE COSTS (INCLUDING HIRE OF ROOMS),10.00,"COLLEGES, UNIV, PRO SCHOOLS, JUNIOR COLLEGES",,
04/07/2019,BURBANK COMMUNITY HOME,W M MORRISON STORE,PURCHASE OF FOOD (RAW MATERIALS),49.95,"GROCERY STORES, SUPERMARKETS",,
04/07/2019,HOPE SERVICE - WEST,SAINSBURYS TO YOU 0686,PURCHASE OF FOOD (RAW MATERIALS),51.60,"GROCERY STORES, SUPERMARKETS",,
04/07/2019,FAMILIES ELMBRIDGE,DOMINOS,REFRESHMENT COSTS,66.96,"EATING PLACES, RESTAURANTS",,
04/07/2019,CHEYNE WALK COMMUNITY HOME,HOMEBASE LTD 087,EQUIPMENT,28.50,"BUILDING MATERIALS, LUMBER STORES",,
04/07/2019,STRATEGIC LEADERSHIP (CEO & ACEO),HOTEL DU VIN POOLE,SUBSISTENCE AND CONFERENCE EXPENSES,266.00,"LODGING-HOTELS,MOTELS,RESORTS-NOT CLASSIFIED",,
04/07/2019,RUTH HOUSE,SAINSBURYS SACAT 0652,"CLOTHING, UNIFORM AND LAUNDRY",32.00,"GROCERY STORES, SUPERMARKETS",,
04/07/2019,HEATHSIDE,AMZNMKTPLACE,E25 CATERING EQUIPMENT,27.98,MISCELLANEOUS AND SPECIALTY RETAIL STORES,,
04/07/2019,ARUNDEL,MARKS&SPENCER PLC SF,PURCHASE OF FOOD (RAW MATERIALS),5.10,"GROCERY STORES, SUPERMARKETS",,
04/07/2019,CHEYNE WALK COMMUNITY HOME,TESCO-STORES 6647,PURCHASE OF FOOD (RAW MATERIALS),249.72,"GROCERY STORES, SUPERMARKETS",,
04/07/2019,ACL CENTRAL EXPENDITURE,SAINSBURYS 0686,REFRESHMENT COSTS,3.00,"GROCERY STORES, SUPERMARKETS",,
04/07/2019,NE CARE - CP & COURT LAC,LBRUT INTERNET,OTHER COMMUNITY CARE VOL,13.00,GOVERNMENT SERVICES-NOT ELSEWHERE CLASSIFIED,,
04/07/2019,ROW VOLUNTEERS WEST                     ,SHELL BURNT CM 199,PETROL/DIESEL ALL OFF BUSINESS,7.00,SERVICE STATIONS WITH OR WITHOUT ANCILLARY SERVICE,,
04/07/2019,EXTENDED HOPE,SAINSBURYS SACAT 0652,PURCHASE OF FOOD (RAW MATERIALS),56.06,"GROCERY STORES, SUPERMARKETS",,
04/07/2019,EXTENDED HOPE,SAINSBURYS 0652,PURCHASE OF FOOD (RAW MATERIALS),100.00,"GROCERY STORES, SUPERMARKETS",,
04/07/2019,EXTENDED HOPE,3C_ CP PLUS - ROYAL SU,NON-STAFF RELATED TRANSPORT COSTS,4.50,AUTOMOBILE PARKING LOTS AND GARAGES,,
04/07/2019,EXTENDED HOPE,ARGOS BURPHAM,CURRICULUM CONSUMABLES,15.50,DISCOUNT STORES,,
04/07/2019,BURBANK COMMUNITY HOME,HOBBYCRAFT,PURCHASE OF FOOD (RAW MATERIALS),24.90,"ARTIST SUPPLY STORES, CRAFT SHOPS",,
04/07/2019,CHALKMEAD,AMZNMKTPLACE,DAY TO DAY MAINTENANCE,125.99,MISCELLANEOUS AND SPECIALTY RETAIL STORES,,
05/07/2019,SOLD DAY TO DAY OPERATIONS,SAILBOATS.CO.UK,EQUIPMENT,381.84,"MARINAS, MARINE SERVICE/SUPPLIES",,
05/07/2019,CHILDREN'S RIGHTS TEAM,WWW.CLOTHES2ORDER.COM,PRINTING,89.01,MEN'S/WOMEN'S/CHILDREN'S UNIFORMS/COMMERCIAL CLOTH,,
05/07/2019,TRAINING SURREY HIGHWAYS,WP-BUTTERFLY CONSE,TRAINING EXPENSES EXTERNAL GENERAL,20.00,"ORGANIZATIONS, CHARITABLE AND SOCIAL SERVICES",,
05/07/2019,PARKING TEAM,WWW.MEONUK.COM,EQUIPMENT,616.80,BUSINESS SERVICES-NOT ELSEWHERE CLASSIFIED,,
05/07/2019,HOPE SERVICE - WEST,SAINSBURYS SACAT(4409),NEWSPAPER AND PERIODICALS,4.60,"GROCERY STORES, SUPERMARKETS",,
05/07/2019,LIBERTAS COMMUNITY HOME,AMZNMKTPLACE,EQUIPMENT,154.46,MISCELLANEOUS AND SPECIALTY RETAIL STORES,,
05/07/2019,LIBERTAS COMMUNITY HOME,AMZNMKTPLACE AMAZON.CO,"CLOTHING, UNIFORM AND LAUNDRY",17.95,MISCELLANEOUS AND SPECIALTY RETAIL STORES,,
05/07/2019,HERITAGE ENTERPRISE (SCAU),HISTORIC ENGLAND,FEES,120.00,TOURIST ATTRACTIONS AND EXHIBITS,,
05/07/2019,PROPERTY OPERATIONS TEAM,SAINSBURYS PFS0219,TRAINING EXPENSES EXTERNAL GENERAL,40.01,SERVICE STATIONS WITH OR WITHOUT ANCILLARY SERVICE,,
05/07/2019,STRATEGIC DIRECTOR,PREMIER INN,INDEPENDENT LIVING PLACEMENTS,511.50,PREMIER INN,,
05/07/2019,SECTOR MANAGER,ROYAL MAIL,ITEMS PURCHASED FOR RE-SALE,"2,600.60",POSTAL SERVICES-GOVERNMENT ONLY,,
05/07/2019,ARUNDEL,TESCO STORES 5999,REFRESHMENT COSTS,171.43,"GROCERY STORES, SUPERMARKETS",,
05/07/2019,FAMILIES REIGATE AND BANSTREAD,ASDA SUPERSTORE,DESCRIPTION &AWARD LONG SERVICE,26.00,"GROCERY STORES, SUPERMARKETS",,
05/07/2019,LIBERTAS COMMUNITY HOME,THE BLETCHLEY,EDUC VISITS/HOLS/CAMPS/TOYS,288.00,"EATING PLACES, RESTAURANTS",,
05/07/2019,LIBERTAS COMMUNITY HOME,SAINSBURYS 0652,EDUC VISITS/HOLS/CAMPS/TOYS,10.00,"GROCERY STORES, SUPERMARKETS",,
05/07/2019,LIBERTAS COMMUNITY HOME,MARKS&SPENCER PLC,REFRESHMENT COSTS,57.90,"GROCERY STORES, SUPERMARKETS",,
05/07/2019,COBHAM CHILDRENS CENTRE,WAITROSE 176,REFRESHMENT COSTS,10.24,"GROCERY STORES, SUPERMARKETS",,
05/07/2019,KARIBU COMMUNITY HOME,SMITH & WESTERN,PURCHASE OF FOOD (RAW MATERIALS),182.95,"EATING PLACES, RESTAURANTS",,
05/07/2019,BARNFIELD,B & Q 1155,DAY TO DAY MAINTENANCE,24.00,"BUILDING MATERIALS, LUMBER STORES",,
05/07/2019,CORPORATE GROUP - LEGAL SERVICES,TESCO STORE 3324,REFRESHMENT COSTS,142.45,"GROCERY STORES, SUPERMARKETS",,
05/07/2019,SE LAC AND LEAVING CARE,WWW.VANQUIS.CO.UK,MISCELLANEOUS STAFF TRAVEL,680.33,CUSTOMER FINANCIAL INST - MERCHANDISE & SERVICES,,
05/07/2019,RUTH HOUSE,SAINSBURYS TO YOU 0686,PURCHASE OF FOOD (RAW MATERIALS),31.15,"GROCERY STORES, SUPERMARKETS",,
05/07/2019,RUTH HOUSE,SAINSBURYS TO YOU 0686,PURCHASE OF FOOD (RAW MATERIALS),154.60,"GROCERY STORES, SUPERMARKETS",,
05/07/2019,RUTH HOUSE,GIFFGAFF,TELECOMMUNICATION CHARGES,6.00,TELECOM INCL PREPAID/RECURRING PHONE SVCS,,
05/07/2019,UASC 18+,PREMIER INN,INDEPENDENT LIVING PLACEMENTS,129.00,PREMIER INN,,
05/07/2019,ABBEYWOOD,AMZNMKTPLACE AMAZON.CO,DAY TO DAY MAINTENANCE,7.09,MISCELLANEOUS AND SPECIALTY RETAIL STORES,,
05/07/2019,ABBEYWOOD,CARECO (UK) MOTO,EQUIPMENT,16.90,DENTAL/LAB/MED/OPHTHALMIC HOSP EQUIP & SUPPLIES,,
05/07/2019,ABBEYWOOD,WWW.CLASSICCLOTHINGSHO,"CLOTHING, UNIFORM AND LAUNDRY",91.95,WOMEN'S READY TO WEAR STORES,,
05/07/2019,SOLD ESTATES MANAGEMENT,GUILDFORD CALOR CENTRE,DAY TO DAY MAINTENANCE,150.32,HOUSEHOLD APPLIANCE STORES,,
05/07/2019,BURBANK COMMUNITY HOME,COSTA COFFEE 43037185,REFRESHMENT COSTS,6.70,FAST FOOD RESTAURANTS,,
05/07/2019,BURBANK COMMUNITY HOME,W M MORRISON STORE,EDUC VISITS/HOLS/CAMPS/TOYS,52.50,"GROCERY STORES, SUPERMARKETS",,
05/07/2019,MEADOWSIDE,WWW.ARGOS.CO.UK,FURNITURE,33.95,DISCOUNT STORES,,
05/07/2019,SE CARE - LAC,KENT COUNTY COUNCIL,OTHER COMMUNITY CARE VOL,46.00,GOVERNMENT SERVICES-NOT ELSEWHERE CLASSIFIED,,
05/07/2019,SE CARE - LAC,TUNBRIDGE WELLS REG OF,OTHER COMMUNITY CARE VOL,24.00,GOVERNMENT SERVICES-NOT ELSEWHERE CLASSIFIED,,
05/07/2019,ACL CENTRAL EXPENDITURE,HELLOPRINT,PUBLICITY,26.74,"QUICK COPY,REPRODUCTION AND BLUEPRINTING SERVICES",,
05/07/2019,SOLD ESTATES MANAGEMENT,GUILDFORD1125,DAY TO DAY MAINTENANCE,24.98,"BUILDING MATERIALS, LUMBER STORES",,
05/07/2019,TARGETED INTERVENTION,TESCO STORE 2590,EDUC VISITS/HOLS/CAMPS/TOYS,0.60,"GROCERY STORES, SUPERMARKETS",,
05/07/2019,ROW VOLUNTEERS WEST                     ,METHOLD VEHICLE HIRE,HIRE OF VEHICLES,40.00,AUTOMOBILE RENTAL AGENCY-NOT ELSEWHERE CLASSIFIED,,
05/07/2019,ISPSB - ADAPTATIONS & IMPROVEMENTS,NRS HEALTHCARE,EQUIPMENT,51.94,DENTAL/LAB/MED/OPHTHALMIC HOSP EQUIP & SUPPLIES,,
05/07/2019,APPLEWOOD,ASDA GROCERIES ONLINE,PURCHASE OF FOOD (RAW MATERIALS),166.26,"GROCERY STORES, SUPERMARKETS",,
05/07/2019,APPLEWOOD,ASDA GROCERIES ONLINE,PURCHASE OF FOOD (RAW MATERIALS),-0.97,"GROCERY STORES, SUPERMARKETS",,
05/07/2019,BURBANK COMMUNITY HOME,COSTA COFFEE 43038215,REFRESHMENT COSTS,6.70,FAST FOOD RESTAURANTS,,
05/07/2019,ACL CENTRAL EXPENDITURE,AMAZON.CO.UK M679W17Q4,EQUIPMENT,8.79,DIRECT MARKETING-OTHER DIRECT MARKETERS/NOT ELSEW.,,
06/07/2019,MALLOW CRESCENT,ARGOS LTD,EQUIPMENT,72.99,DISCOUNT STORES,,
06/07/2019,MALLOW CRESCENT,ARGOS LTD,EQUIPMENT,52.99,DISCOUNT STORES,,
06/07/2019,FAIRCROFT COMMUNITY HOME,SAINSBURYS SACAT 0687,PURCHASE OF FOOD (RAW MATERIALS),25.60,"GROCERY STORES, SUPERMARKETS",,
06/07/2019,RUTH HOUSE,AMZNMKTPLACE,EQUIPMENT,39.21,MISCELLANEOUS AND SPECIALTY RETAIL STORES,,
06/07/2019,HEATHSIDE,AMZNMKTPLACE AMAZON.CO,EQUIPMENT,23.99,MISCELLANEOUS AND SPECIALTY RETAIL STORES,,
06/07/2019,MEADOWSIDE,POST OFFICE COUNTER,POSTAGE AND COURIER CHARGES,1.90,POSTAL SERVICES-GOVERNMENT ONLY,,
06/07/2019,CHEYNE WALK COMMUNITY HOME,AMZNMKTPLACE,FIXTURES AND FITTINGS,26.97,MISCELLANEOUS AND SPECIALTY RETAIL STORES,,
06/07/2019,NW CARE - CP & COURT LAC,HOLIDAY INNS,OTHER COMMUNITY CARE VOL,111.16,HOLIDAY INNS,,
06/07/2019,NW CARE - CP & COURT LAC,HOLIDAY INNS,OTHER COMMUNITY CARE VOL,111.16,HOLIDAY INNS,,
06/07/2019,ACL CENTRAL EXPENDITURE,WAITROSE 181,REFRESHMENT COSTS,8.97,"GROCERY STORES, SUPERMARKETS",,
06/07/2019,FAIRCROFT COMMUNITY HOME,LONDIS,REFRESHMENT COSTS,7.46,"MISC FOOD STORE-CONVENIENCE,MRKT,SPLTY,VENDNG MACS",,
06/07/2019,HEAD OF SCHOOLS AND LEARNING,APPLE.COM/UK,STATIONERY,38.00,ELECTRONIC SALES,,
06/07/2019,HILLSIDE,SAINSBURYS 0675,PURCHASE OF FOOD (RAW MATERIALS),35.45,"GROCERY STORES, SUPERMARKETS",,
06/07/2019,HILLSIDE,SAINSBURYS 0675,PURCHASE OF FOOD (RAW MATERIALS),168.90,"GROCERY STORES, SUPERMARKETS",,
06/07/2019,WOODLANDS COMMUNITY HOME,CHESSINGTON WOA,NON-STAFF RELATED TRANSPORT COSTS,4.00,TOURIST ATTRACTIONS AND EXHIBITS,,
06/07/2019,WOODLANDS COMMUNITY HOME,NANDOS EPSOM,REFRESHMENT COSTS,50.45,"EATING PLACES, RESTAURANTS",,
06/07/2019,EXTENDED HOPE,TEAM SPORT FARNBOROUGH,EDUC VISITS/HOLS/CAMPS/TOYS,1.00,"AMUSEMENT PARKS,CARNIVALS,CIRCUS,FORTUNE TELLERS",,
06/07/2019,EXTENDED HOPE,WWW.TEAM-SPORT.CO.UK,EDUC VISITS/HOLS/CAMPS/TOYS,70.00,"AMUSEMENT PARKS,CARNIVALS,CIRCUS,FORTUNE TELLERS",,
06/07/2019,EXTENDED HOPE,TESCO STORE 2590,PURCHASE OF FOOD (RAW MATERIALS),97.02,"GROCERY STORES, SUPERMARKETS",,
07/07/2019,STRATEGIC DIRECTOR,WWW.GOAPE.CO.UK,EDUC VISITS/HOLS/CAMPS/TOYS,33.00,"AMUSEMENT PARKS,CARNIVALS,CIRCUS,FORTUNE TELLERS",,
07/07/2019,BURBANK COMMUNITY HOME,PRIMARK,"CLOTHING, UNIFORM AND LAUNDRY",10.00,FAMILY CLOTHING STORES,,
07/07/2019,WOODLANDS COMMUNITY HOME,TESCO STORES 5706,PURCHASE OF FOOD (RAW MATERIALS),18.32,"GROCERY STORES, SUPERMARKETS",,
07/07/2019,HOPE SERVICE - WEST,AMAZON.CO.UK M614L09O4,BOOKS,19.91,DIRECT MARKETING-OTHER DIRECT MARKETERS/NOT ELSEW.,,
07/07/2019,COBHAM LIBRARY,AMZNMKTPLACE,EQUIPMENT,13.83,MISCELLANEOUS AND SPECIALTY RETAIL STORES,,
07/07/2019,CS BUSINESS SUPPORT EAST,AMZN MKTP UK M60FY69I4,FIXTURES AND FITTINGS,44.45,BOOK STORES,,
07/07/2019,CHEYNE WALK COMMUNITY HOME,DART-CHARGE,VEHICLE RUNNING COSTS,5.00,"BRIDGE AND ROAD FEES, TOLLS",,
07/07/2019,BUSINESS UNIT,AMAZON PRIME M627869Q4,TRAINING EXPENSES EXTERNAL GENERAL,7.99,DIRECT MARKETING-CONTINUITY/SUBSCRIPTION MERCHANTS,,
07/07/2019,RECRUITMENT,FACEBK  7QGBRM6PS2,STAFF ADVERTISING ,50.00,ADVERTISING SERVICES,,
07/07/2019,ACL CENTRAL EXPENDITURE,AMZNMKTPLACE AMAZON.CO,COMPUTER HARDWARE,11.38,MISCELLANEOUS AND SPECIALTY RETAIL STORES,,
07/07/2019,CHEYNE WALK COMMUNITY HOME,AMZNMKTPLACE,FIXTURES AND FITTINGS,28.67,MISCELLANEOUS AND SPECIALTY RETAIL STORES,,
07/07/2019,BURBANK COMMUNITY HOME,CAR PARKS SPH,MISCELLANEOUS STAFF TRAVEL,6.00,AUTOMOBILE PARKING LOTS AND GARAGES,,
07/07/2019,ACL CENTRAL EXPENDITURE,W M MORRISON STORE,REFRESHMENT COSTS,8.40,"GROCERY STORES, SUPERMARKETS",,
07/07/2019,MALLOW CRESCENT,SAINSBURYS TO YOU 0652,PURCHASE OF FOOD (RAW MATERIALS),132.81,"GROCERY STORES, SUPERMARKETS",,
07/07/2019,MALLOW CRESCENT,SAINSBURYS TO YOU 0652,PURCHASE OF FOOD (RAW MATERIALS),-1.10,"GROCERY STORES, SUPERMARKETS",,
07/07/2019,APPLEWOOD,ASDA GROCERIES ONLINE,PURCHASE OF FOOD (RAW MATERIALS),73.95,"GROCERY STORES, SUPERMARKETS",,
07/07/2019,APPLEWOOD,ASDA GROCERIES ONLINE,PURCHASE OF FOOD (RAW MATERIALS),-1.28,"GROCERY STORES, SUPERMARKETS",,
07/07/2019,EXTENDED HOPE,ALICE HOLT CAR PARK,NON-STAFF RELATED TRANSPORT COSTS,7.00,GOVERNMENT SERVICES-NOT ELSEWHERE CLASSIFIED,,
07/07/2019,BURBANK COMMUNITY HOME,JUST EAT,REFRESHMENT COSTS,45.80,FAST FOOD RESTAURANTS,,
07/07/2019,BURBANK COMMUNITY HOME,3C_ WOKING BOROUGH COU,EDUC VISITS/HOLS/CAMPS/TOYS,1.40,AUTOMOBILE PARKING LOTS AND GARAGES,,
08/07/2019,MEADOWSIDE,WWW.BRAKESCE.CO.UK,DAY TO DAY MAINTENANCE,328.58,CATERERS,,
08/07/2019,NE CARE - CP & COURT LAC,ARGOS RETAIL GROUP,OTHER COMMUNITY CARE VOL,-59.99,DISCOUNT STORES,,
08/07/2019,NATIONAL TRADING STANDARDS SCAM TEAM,PAYPAL  FORTSOL,STAFF TRAINING,100.00,PROFESSIONAL SERVICES-NOT ELSEWHERE CLASSIFIED,,
08/07/2019,NW NIL RECOURSE TO PUBLIC FUNDS CARE,THE WOKING HOTEL,FEES,997.80,"LODGING-HOTELS,MOTELS,RESORTS-NOT CLASSIFIED",,
08/07/2019,ABBEYWOOD,AMZNMKTPLACE AMAZON.CO,DAY TO DAY MAINTENANCE,4.48,MISCELLANEOUS AND SPECIALTY RETAIL STORES,,
08/07/2019,WOODLANDS COMMUNITY HOME,PAYPAL  MILLETS,EQUIPMENT,38.99,MEN'S AND BOY'S CLOTHING AND ACCESSORIES STORES,,
08/07/2019,CHEYNE WALK COMMUNITY HOME,01293 888888,VEHICLE RUNNING COSTS,30.00,LIMOUSINES AND TAXICABS,,
08/07/2019,CHEYNE WALK COMMUNITY HOME,01293 888888,VEHICLE RUNNING COSTS,30.00,LIMOUSINES AND TAXICABS,,
08/07/2019,NW CARE - LAC,E/TUNNEL INTERNET,NON-STAFF RELATED TRANSPORT COSTS,173.00,TRANSPORTATION SERVICES NOT ELSEWHERE CLASSIFIED,,
08/07/2019,NATIONAL TRADING STANDARDS SCAM TEAM,HI EXPRESS,PURCHASE CARD TRANSACTION LOG DEFAULT,56.00,"LODGING-HOTELS,MOTELS,RESORTS-NOT CLASSIFIED",,
08/07/2019,FAIRCROFT COMMUNITY HOME,TESCO STORES 6542,REFRESHMENT COSTS,3.00,"GROCERY STORES, SUPERMARKETS",,
08/07/2019,ROW MAINTENANCE,SCREWFIX DIRECT LT,DAY TO DAY MAINTENANCE,31.97,"BUILDING MATERIALS, LUMBER STORES",,
08/07/2019,TRANSPORT,SQ  TYRRELL SERVICES L,VEHICLE REPAIRS AND MAINTENANCE,150.00,OTHER SERVICES (NOT ELSEWHERE CLASSIFIED),,
08/07/2019,ABBEYWOOD,AMZNMKTPLACE AMAZON.CO,MEDICAL EXPENSES,28.02,MISCELLANEOUS AND SPECIALTY RETAIL STORES,,
08/07/2019,ACL CENTRAL EXPENDITURE,TESCO STORE 2160,REFRESHMENT COSTS,139.29,"GROCERY STORES, SUPERMARKETS",,
08/07/2019,DOWNLANDS COUNTRYSIDE PROJECT,FAIRALLS (BUILDERS ME,PURCHASE OF BUILDING MATERIALS,381.53,"BUILDING MATERIALS, LUMBER STORES",,
08/07/2019,DOWNLANDS COUNTRYSIDE PROJECT,TESCO STORES,REFRESHMENT COSTS,5.30,"GROCERY STORES, SUPERMARKETS",,
08/07/2019,EXTENDED HOPE,TESCO STORE 2590,PURCHASE OF FOOD (RAW MATERIALS),138.63,"GROCERY STORES, SUPERMARKETS",,
08/07/2019,EXTENDED HOPE,3C_ CP PLUS - ROYAL SU,NON-STAFF RELATED TRANSPORT COSTS,3.40,AUTOMOBILE PARKING LOTS AND GARAGES,,
08/07/2019,FAMILIES TANDRIDGE,WM MORRISONS STORE,REFRESHMENT COSTS,6.59,"GROCERY STORES, SUPERMARKETS",,
08/07/2019,WOODLANDS COMMUNITY HOME,SAINSBURYS SACAT 0686,PURCHASE OF FOOD (RAW MATERIALS),28.05,"GROCERY STORES, SUPERMARKETS",,
08/07/2019,IMT CRITICAL ENVIRONMENTS,SCREWFIX DIRECT,EQUIPMENT,59.94,HOME SUPPLY WAREHOUSE STORES,,
08/07/2019,RUTH HOUSE,GIFFGAFF,TELECOMMUNICATION CHARGES,6.00,TELECOM INCL PREPAID/RECURRING PHONE SVCS,,
08/07/2019,MEADOWSIDE,SCREWFIX DIRECT,DAY TO DAY MAINTENANCE,77.97,HOME SUPPLY WAREHOUSE STORES,,
08/07/2019,MEADOWSIDE,WWW.ARGOS.CO.UK,CLEANING AND DOMESTIC SUPPLIES,33.95,DISCOUNT STORES,,
08/07/2019,CHEYNE WALK COMMUNITY HOME,AMZNMKTPLACE,EQUIPMENT,29.98,MISCELLANEOUS AND SPECIALTY RETAIL STORES,,
08/07/2019,LIBERTAS COMMUNITY HOME,SAINSBURYS SACAT 0652,EQUIPMENT,22.00,"GROCERY STORES, SUPERMARKETS",,
08/07/2019,LIBERTAS COMMUNITY HOME,SAINSBURYS SACAT 0652,PURCHASE OF FOOD (RAW MATERIALS),6.70,"GROCERY STORES, SUPERMARKETS",,
08/07/2019,LIBERTAS COMMUNITY HOME,SAINSBURYS SACAT 0652,PURCHASE OF FOOD (RAW MATERIALS),145.03,"GROCERY STORES, SUPERMARKETS",,
08/07/2019,MALLOW CRESCENT,SAINSBURYS TO YOU 0652,PURCHASE OF FOOD (RAW MATERIALS),121.10,"GROCERY STORES, SUPERMARKETS",,
08/07/2019,HOPE SERVICE - WEST,SAINSBURYS TO YOU 0686,PURCHASE OF FOOD (RAW MATERIALS),123.80,"GROCERY STORES, SUPERMARKETS",,
08/07/2019,HOPE SERVICE - WEST,SAINSBURYS TO YOU 0686,PURCHASE OF FOOD (RAW MATERIALS),-8.55,"GROCERY STORES, SUPERMARKETS",,
08/07/2019,SCHOOL APPEALS,SAINSBURYS SACAT 0329,REFRESHMENT COSTS,2.60,"GROCERY STORES, SUPERMARKETS",,
08/07/2019,DOWNLANDS COUNTRYSIDE PROJECT,MOLE COUNTRY STORES,EQUIPMENT,73.70,AGRICULTURAL COOPERATIVES,,
08/07/2019,WOODLANDS COMMUNITY HOME,HOMEBASE LTD 084,EQUIPMENT,27.00,"BUILDING MATERIALS, LUMBER STORES",,
08/07/2019,HOPE SERVICE - WEST,TESCO STORES 6320,PURCHASE OF FOOD (RAW MATERIALS),13.85,"GROCERY STORES, SUPERMARKETS",,
08/07/2019,HOPE SERVICE - WEST,SAINSBURYS TO YOU 0683,PURCHASE OF FOOD (RAW MATERIALS),66.78,"GROCERY STORES, SUPERMARKETS",,
08/07/2019,LOWER MOLE COUNTRYSIDE PROJECT,SURREYHILLSENTERPRISES,TRAINING EXPENSES EXTERNAL GENERAL,109.99,"ORGANIZATIONS, MEMBERSHIP-NOT ELSEWHERE CLASSIFIED",,
08/07/2019,MISC EDCAT SUPPORT,PAYPAL  SUCCESSINSC,SUBSCRIPTIONS,149.97,"CONSULTING, MANAGEMENT, AND PUBLIC RELATIONS SVCS",,
08/07/2019,BURBANK COMMUNITY HOME,WWW.GDHA.COM,EQUIPMENT,145.00,ELECTRICAL PARTS AND EQUIPMENT,,
08/07/2019,HILLSIDE,SAINSBURYS 0675,PURCHASE OF FOOD (RAW MATERIALS),52.05,"GROCERY STORES, SUPERMARKETS",,
08/07/2019,CORONER,DISPLAYSENSE.CO.UK,STATIONERY,-17.34,"COMMERCIAL EQUIPMENT, NOT ELSEWHERE CLASSIFIED",,
08/07/2019,TRANSPORT,AMAZON.CO.UK M61DE8UW4,EQUIPMENT,8.34,DIRECT MARKETING-OTHER DIRECT MARKETERS/NOT ELSEW.,,
08/07/2019,TRANSPORT,AMAZON.CO.UK M65JK9U24,EQUIPMENT,8.34,DIRECT MARKETING-OTHER DIRECT MARKETERS/NOT ELSEW.,,
08/07/2019,OCCUPATIONAL HEALTH,WWW.PMGLTD.CO.UK,EQUIPMENT,912.00,BUSINESS SERVICES-NOT ELSEWHERE CLASSIFIED,,
08/07/2019,FAIRCROFT COMMUNITY HOME,TESCO STORE 2812,PURCHASE OF FOOD (RAW MATERIALS),275.73,"GROCERY STORES, SUPERMARKETS",,
08/07/2019,PROPERTY OPERATIONS TEAM,HOMEBASE LTD 290,TRAINING EXPENSES EXTERNAL GENERAL,6.00,"BUILDING MATERIALS, LUMBER STORES",,
08/07/2019,MALLOW CRESCENT,TESCO STORE 2590,PURCHASE OF FOOD (RAW MATERIALS),84.46,"GROCERY STORES, SUPERMARKETS",,
08/07/2019,MALLOW CRESCENT,TESCO STORE 2590,PURCHASE OF FOOD (RAW MATERIALS),43.74,"GROCERY STORES, SUPERMARKETS",,
08/07/2019,SERVICE DELIVERY SENIOR MANAGEMENT,AMZNMKTPLACE AMAZON.CO,EQUIPMENT,-109.49,MISCELLANEOUS AND SPECIALTY RETAIL STORES,,
08/07/2019,MALLOW CRESCENT,TESCO STORE 2590,PURCHASE OF FOOD (RAW MATERIALS),166.32,"GROCERY STORES, SUPERMARKETS",,
08/07/2019,SE CARE - LAC,HM PASSPORT,OTHER COMMUNITY CARE VOL,127.00,GOVERNMENT SERVICES-NOT ELSEWHERE CLASSIFIED,,
08/07/2019,AD OPERATIONS HIGHWAYS AND COUNTRYSIDE,AMZNMKTPLACE,EQUIPMENT,17.48,MISCELLANEOUS AND SPECIALTY RETAIL STORES,,
08/07/2019,SPLASH PROJECT,AMAZON.CO.UK M62YU3U84,EQUIPMENT,3.99,DIRECT MARKETING-OTHER DIRECT MARKETERS/NOT ELSEW.,,
09/07/2019,TRANSPORT,VAMPED LTD,VEHICLE REPAIRS AND MAINTENANCE,792.00,AUTOMOTIVE BODY REPAIR SHOPS,,
09/07/2019,LIBERTAS COMMUNITY HOME,PRIMARK,"CLOTHING, UNIFORM AND LAUNDRY",69.00,FAMILY CLOTHING STORES,,
09/07/2019,WOODLANDS COMMUNITY HOME,WICKES WOKING,DAY TO DAY MAINTENANCE,14.69,HOME SUPPLY WAREHOUSE STORES,,
09/07/2019,PRISON CAPITATION                       ,AMZNMKTPLACE,LIBRARY RESOURCES,21.21,MISCELLANEOUS AND SPECIALTY RETAIL STORES,,
09/07/2019,ACL CENTRAL EXPENDITURE,AMZNMKTPLACE,EQUIPMENT,55.99,MISCELLANEOUS AND SPECIALTY RETAIL STORES,,
09/07/2019,HERITAGE ENTERPRISE (SCAU),BL PIC LIB,FEES,18.00,BOOK STORES,,
09/07/2019,TRAINING AND DEVELOPMENT,AMAZON.CO.UK M634B9IA4,TRAINING EXPENSES EXTERNAL GENERAL,183.08,DIRECT MARKETING-OTHER DIRECT MARKETERS/NOT ELSEW.,,
09/07/2019,TRANSPORT,NORTHERN DIVER (INTNL),OPERATIONAL FIRE EQUIPMENT,416.40,SPORTING GOODS STORES,,
09/07/2019,PE/CDT MAINTENANCE OVERHEADS,JETSPORTS LTD,ITEMS PURCHASED FOR RE-SALE,124.99,SPORTING GOODS STORES,,
09/07/2019,MAYFORD HOUSE WOKING,BRITISH GAS OTP,ELECTRICITY,20.00,"UTLTS-ELCTRC, GAS, HEATING OIL, SANITARY, WATER",,
09/07/2019,PROPERTY OPERATIONS TEAM,IRONMONGERY DIRECT LTD,TRAINING EXPENSES EXTERNAL GENERAL,258.24,"GLASS, PAINT, WALLPAPER STORES",,
09/07/2019,KARIBU COMMUNITY HOME,WILKO.COM,EQUIPMENT,104.00,MISCELLANEOUS GENERAL MERCHANDISE,,
09/07/2019,COMMUNITY ARCHAEOLOGIST PROJECT,SHELL BURNT CM 199,EQUIPMENT,71.10,SERVICE STATIONS WITH OR WITHOUT ANCILLARY SERVICE,,
09/07/2019,LIBERTAS COMMUNITY HOME,MATALAN,"CLOTHING, UNIFORM AND LAUNDRY",9.00,MEN'S AND WOMEN'S CLOTHING STORES,,
09/07/2019,LIBERTAS COMMUNITY HOME,NEW LOOK,"CLOTHING, UNIFORM AND LAUNDRY",9.00,WOMEN'S READY TO WEAR STORES,,
09/07/2019,LIBERTAS COMMUNITY HOME,TK MAXX,"CLOTHING, UNIFORM AND LAUNDRY",21.49,VARIETY STORES,,
09/07/2019,SOUTH WEST OUTREACH,ROPE SOURCE LIMITED,EQUIPMENT,5.82,INDUSTRIAL SUPPLIES NOT ELSEWHERE CLASSIFIED,,
09/07/2019,CHEYNE WALK COMMUNITY HOME,WILKO RETAIL LIMIT,CURRICULUM EQUIPMENT AND FURNITURE,5.00,HOUSEHOLD APPLIANCE STORES,,
09/07/2019,TARGETED INTERVENTION,SQUIRES GARDEN CENTRE,EDUC VISITS/HOLS/CAMPS/TOYS,7.70,LAWN AND GARDEN SUPPLY STORES,,
09/07/2019,ACL CENTRAL EXPENDITURE,TESCO STORE 2160,REFRESHMENT COSTS,61.46,"GROCERY STORES, SUPERMARKETS",,
09/07/2019,ACL CENTRAL EXPENDITURE,CURRYS ONLINE,REFRESHMENT COSTS,170.00,ELECTRONIC SALES,,
09/07/2019,ROW MAINTENANCE,ENTERPRISE RENT-A-CAR,DAY TO DAY MAINTENANCE,31.84,ENTERPRISE RENT-A-CAR,,
09/07/2019,ROW MAINTENANCE,ENTERPRISE RENT-A-CAR,DAY TO DAY MAINTENANCE,206.00,ENTERPRISE RENT-A-CAR,,
09/07/2019,ROW MAINTENANCE,ENTERPRISE RENT-A-CAR,DAY TO DAY MAINTENANCE,-200.00,ENTERPRISE RENT-A-CAR,,
09/07/2019,ABBEYWOOD,TOTAL MOBILITY,EQUIPMENT,240.00,MISCELLANEOUS AND SPECIALTY RETAIL STORES,,
09/07/2019,FAIRCROFT COMMUNITY HOME,SAINSBURYS 0687,PURCHASE OF FOOD (RAW MATERIALS),64.40,"GROCERY STORES, SUPERMARKETS",,
09/07/2019,ARUNDEL,RSM DOMESTIC APPLI,EQUIPMENT,83.40,ELECTRONIC SALES,,
09/07/2019,ACL CENTRAL EXPENDITURE,TESCO STORE 3149,PURCHASE OF FOOD (RAW MATERIALS),63.59,"GROCERY STORES, SUPERMARKETS",,
09/07/2019,ACL CENTRAL EXPENDITURE,SAINSBURYS 0686,REFRESHMENT COSTS,19.68,"GROCERY STORES, SUPERMARKETS",,
09/07/2019,SOLD CURRICULUM PROGRAMME DELIVERY,POST OFFICE COUNTER,POSTAGE AND COURIER CHARGES,4.55,POSTAL SERVICES-GOVERNMENT ONLY,,
09/07/2019,EXTENDED HOPE,AMZNMKTPLACE AMAZON.CO,CURRICULUM EQUIPMENT AND FURNITURE,23.95,MISCELLANEOUS AND SPECIALTY RETAIL STORES,,
09/07/2019,HAVEN GUILDFORD,SAINSBURYS SACAT 0679,REFRESHMENT COSTS,5.60,"GROCERY STORES, SUPERMARKETS",,
09/07/2019,BARNFIELD,TRAFALGAR CLEANING EQU,EQUIPMENT,64.90,"CLEANING AND MAINTENANCE, JANITORIAL SERVICES",,
09/07/2019,BARNFIELD,TESCO PAY AT PUMP 3874,PETROL/DIESEL ALL OFF BUSINESS,99.00,"FUEL DISPENSER, AUTOMATED",,
09/07/2019,FIRE & RESCUE COMMUNITY SAFETY,ASHWOOD HOTEL,SUBSISTENCE AND CONFERENCE EXPENSES,47.00,"LODGING-HOTELS,MOTELS,RESORTS-NOT CLASSIFIED",,
09/07/2019,ORBIS HEAD OF PROCUREMENT,WWW.EMAP.COM,SUBSCRIPTIONS,60.00,MISCELLANEOUS PUBLISHING AND PRINTING,,
09/07/2019,FAIRCROFT COMMUNITY HOME,NON STOP PARTY SHOP,3RD PARTY PAYMENTS PRIVATE INDIV,3.45,"GIFT, CARD, NOVELTY AND SOUVENIR SHOPS",,
09/07/2019,FAIRCROFT COMMUNITY HOME,EVIE LOVES TOAST,3RD PARTY PAYMENTS PRIVATE INDIV,2.75,WOMEN'S ACCESSORY AND SPECIALTY STORES,,
09/07/2019,FAIRCROFT COMMUNITY HOME,LLOYDS PHARMACY,3RD PARTY PAYMENTS PRIVATE INDIV,15.00,"DRUG STORES, PHARMACIES",,
09/07/2019,FAIRCROFT COMMUNITY HOME,WAITROSE 176,3RD PARTY PAYMENTS PRIVATE INDIV,16.10,"GROCERY STORES, SUPERMARKETS",,
09/07/2019,WOODLANDS COMMUNITY HOME,SAINSBURYS TO YOU 0686,CLEANING MATERIALS,26.95,"GROCERY STORES, SUPERMARKETS",,
09/07/2019,WOODLANDS COMMUNITY HOME,SAINSBURYS TO YOU 0686,PURCHASE OF FOOD (RAW MATERIALS),22.35,"GROCERY STORES, SUPERMARKETS",,
09/07/2019,WOODLANDS COMMUNITY HOME,SAINSBURYS TO YOU 0686,PURCHASE OF FOOD (RAW MATERIALS),171.70,"GROCERY STORES, SUPERMARKETS",,
09/07/2019,WOODLANDS COMMUNITY HOME,NATIONAL EXPRESS LIMIT,NON-STAFF RELATED TRANSPORT COSTS,25.50,BUS LINES,,
09/07/2019,RUTH HOUSE,G J HONOUR,PURCHASE OF FOOD (RAW MATERIALS),356.96,"MISC FOOD STORE-CONVENIENCE,MRKT,SPLTY,VENDNG MACS",,
09/07/2019,RUTH HOUSE,SAINSBURYS TO YOU 0686,PURCHASE OF FOOD (RAW MATERIALS),58.10,"GROCERY STORES, SUPERMARKETS",,
09/07/2019,RUTH HOUSE,SAINSBURYS TO YOU 0686,PURCHASE OF FOOD (RAW MATERIALS),160.35,"GROCERY STORES, SUPERMARKETS",,
09/07/2019,CHEYNE WALK COMMUNITY HOME,AMZNMKTPLACE,EQUIPMENT,79.00,MISCELLANEOUS AND SPECIALTY RETAIL STORES,,
09/07/2019,CHEYNE WALK COMMUNITY HOME,NETFLIX.COM,SUBSCRIPTIONS,7.99,"CABLE, SATELLITE, OTHER PAY TELEVISION, RADIO SVCS",,
09/07/2019,HEAD OF CHILDREN'S SERVICE,AMAZON.CO.UK M64WW8R34,EQUIPMENT,175.37,DIRECT MARKETING-OTHER DIRECT MARKETERS/NOT ELSEW.,,
09/07/2019,HEAD OF CHILDREN'S SERVICE,AMAZON.CO.UK M67057IB4,EQUIPMENT,99.00,DIRECT MARKETING-OTHER DIRECT MARKETERS/NOT ELSEW.,,
09/07/2019,ORCHARD COURT,AMZNMKTPLACE,EQUIPMENT,30.83,MISCELLANEOUS AND SPECIALTY RETAIL STORES,,
09/07/2019,FAMILIES ELMBRIDGE,LIDL GB HERSHAM,REFRESHMENT COSTS,6.98,"GROCERY STORES, SUPERMARKETS",,
09/07/2019,CHEYNE WALK COMMUNITY HOME,KFC,REFRESHMENT COSTS,12.78,FAST FOOD RESTAURANTS,,
09/07/2019,CHEYNE WALK COMMUNITY HOME,MCDONALDS,REFRESHMENT COSTS,8.28,"EATING PLACES, RESTAURANTS",,
09/07/2019,ARUNDEL,TESCO STORES 5999,REFRESHMENT COSTS,151.37,"GROCERY STORES, SUPERMARKETS",,
09/07/2019,TRANSPORT,PAYPAL  BCD EBAY,DESCRIPTION &AWARD LONG SERVICE,23.98,ELECTRONIC SALES,,
09/07/2019,HOPE SERVICE - WEST,LIQUID LEISURE SHEPPER,EDUC VISITS/HOLS/CAMPS/TOYS,141.00,RECREATION SERVICES (NOT ELSEWHERE CLASSIFIED),,
09/07/2019,TILFORD EAST BRIDGE REF SCHEME,ENVIROMENT AGENCY,CE02 FEES/CONSULTANTS,111.50,GOVERNMENT SERVICES-NOT ELSEWHERE CLASSIFIED,,
09/07/2019,FAIRCROFT COMMUNITY HOME,STARBUCKS COBHAM,REFRESHMENT COSTS,14.00,"EATING PLACES, RESTAURANTS",,
09/07/2019,FAIRCROFT COMMUNITY HOME,MCDONALDS,REFRESHMENT COSTS,11.60,FAST FOOD RESTAURANTS,,
09/07/2019,HERITAGE PUBLIC SERVICE,BOOKER LIMITED ALDERSH,REFRESHMENT COSTS,52.30,CATERERS,,
09/07/2019,MALLOW CRESCENT,SPORTSDIRECT.COM,EQUIPMENT,-6.99,SPORTING GOODS STORES,,
09/07/2019,SOLD DAY TO DAY OPERATIONS,WWW.RADIO-SOLUTION.CO.,EQUIPMENT,470.38,ELECTRONIC SALES,,
09/07/2019,NE TEACHERS,WWW.ELKLAN.CO.UK,SUBSCRIPTIONS,96.00,SCHOOLS & EDUCATIONAL SVC-NOT ELSEWHERE CLASSIFIED,,
10/07/2019,CHEYNE WALK COMMUNITY HOME,AMZNMKTPLACE AMAZON.CO,FIXTURES AND FITTINGS,44.98,MISCELLANEOUS AND SPECIALTY RETAIL STORES,,
10/07/2019,HILLSIDE,THE CLARKS SHOP,"CLOTHING, UNIFORM AND LAUNDRY",24.50,SHOE STORES,,
10/07/2019,NW CARE - LAC,HOLIDAY INN EXPRESS,OTHER COMMUNITY CARE PRIV,69.00,"LODGING-HOTELS,MOTELS,RESORTS-NOT CLASSIFIED",,
10/07/2019,TRANSPORT,PAYPAL  SCRIBBLEBRA,DESCRIPTION &AWARD LONG SERVICE,52.80,CHEMICALS/ALLIED PRODUCTS NOT ELSEWHERE CLASSIFIED,,
10/07/2019,TRANSPORT,PAYPAL  WAYNEMAYALL,DESCRIPTION &AWARD LONG SERVICE,12.99,MISCELLANEOUS AND SPECIALTY RETAIL STORES,,
10/07/2019,TS SERVICE MANAGEMENT,WWW.REGISTRY-TRUST.ORG,SUBSCRIPTIONS,750.00,PROFESSIONAL SERVICES-NOT ELSEWHERE CLASSIFIED,,
10/07/2019,KARIBU COMMUNITY HOME,AMAZON.CO.UK M61CZ2RJ4,EQUIPMENT,5.49,DIRECT MARKETING-OTHER DIRECT MARKETERS/NOT ELSEW.,,
10/07/2019,KARIBU COMMUNITY HOME,AMZNMKTPLACE,EQUIPMENT,6.25,MISCELLANEOUS AND SPECIALTY RETAIL STORES,,
10/07/2019,KARIBU COMMUNITY HOME,AMZNMKTPLACE,EQUIPMENT,8.35,MISCELLANEOUS AND SPECIALTY RETAIL STORES,,
10/07/2019,KARIBU COMMUNITY HOME,EVAQ8,EQUIPMENT,55.38,MISCELLANEOUS AND SPECIALTY RETAIL STORES,,
10/07/2019,SOUTH WEST OUTREACH,SAINSBURYS TO YOU 0652,PURCHASE OF FOOD (RAW MATERIALS),34.70,"GROCERY STORES, SUPERMARKETS",,
10/07/2019,SOUTH WEST OUTREACH,SAINSBURYS TO YOU 0652,PURCHASE OF FOOD (RAW MATERIALS),104.04,"GROCERY STORES, SUPERMARKETS",,
10/07/2019,CHEYNE WALK COMMUNITY HOME,TESCO-STORES 6647,PURCHASE OF FOOD (RAW MATERIALS),300.70,"GROCERY STORES, SUPERMARKETS",,
10/07/2019,CHEYNE WALK COMMUNITY HOME,BELLA ITALIA,PURCHASE OF FOOD (RAW MATERIALS),90.77,"EATING PLACES, RESTAURANTS",,
10/07/2019,SE CARE - CP & COURT LAC,GEN REGISTER OFFICE,OTHER COMMUNITY CARE VOL,45.25,GOVERNMENT SERVICES-NOT ELSEWHERE CLASSIFIED,,
10/07/2019,SHELL UK LICENSING,RUGBY BC INTERNET,FEES,113.00,GOVERNMENT SERVICES-NOT ELSEWHERE CLASSIFIED,,
10/07/2019,SHELL UK LICENSING,WESTMINSTER CITY COUNC,FEES,113.00,GOVERNMENT SERVICES-NOT ELSEWHERE CLASSIFIED,,
10/07/2019,RECRUITMENT,FIREBRAND PROMOTIONS L,STAFF ADVERTISING ,"1,374.00",MISCELLANEOUS PUBLISHING AND PRINTING,,
10/07/2019,TARGETED INTERVENTION,HARRIS AND HOOLE  GUIL,EDUC VISITS/HOLS/CAMPS/TOYS,5.00,"EATING PLACES, RESTAURANTS",,
10/07/2019,TRANSPORT,WWW.P4D.CO.UK,VEHICLE REPAIRS AND MAINTENANCE,69.59,TRANSPORTATION SERVICES NOT ELSEWHERE CLASSIFIED,,
10/07/2019,TRANSPORT,HOMEBASE LTD 247,VEHICLE REPAIRS AND MAINTENANCE,17.00,"BUILDING MATERIALS, LUMBER STORES",,
10/07/2019,ABBEYWOOD,AMZNMKTPLACE,MEDICAL EXPENSES,29.99,MISCELLANEOUS AND SPECIALTY RETAIL STORES,,
10/07/2019,ABBEYWOOD,WWW.IKEA.COM,EQUIPMENT,64.00,"EQUIP, FURNITURE, HOME FURNSHNGS STRS (EXCPT APPL)",,
10/07/2019,ACL CENTRAL EXPENDITURE,WAITROSE 181,REFRESHMENT COSTS,2.78,"GROCERY STORES, SUPERMARKETS",,
10/07/2019,HERITAGE PUBLIC SERVICE,W M MORRISON STORE,REFRESHMENT COSTS,32.70,"GROCERY STORES, SUPERMARKETS",,
10/07/2019,DOWNLANDS COUNTRYSIDE PROJECT,TESCO STORES,CLEANING AND DOMESTIC SUPPLIES,2.00,"GROCERY STORES, SUPERMARKETS",,
10/07/2019,TS SERVICE MANAGEMENT,TRADING STANDARDS INST,SUBSISTENCE AND CONFERENCE EXPENSES,139.20,DIRECT MARKETING-COMBINATION CATALOG/RETAIL MERCH.,,
10/07/2019,HAVEN GUILDFORD,ASDA  STORES,EQUIPMENT,7.20,"GROCERY STORES, SUPERMARKETS",,
10/07/2019,CHALKMEAD,SCREWFIX DIRECT LT,DAY TO DAY MAINTENANCE,24.98,"BUILDING MATERIALS, LUMBER STORES",,
10/07/2019,CHALKMEAD,SELCO TRADING CTR,DAY TO DAY MAINTENANCE,58.00,"BUILDING MATERIALS, LUMBER STORES",,
10/07/2019,WOODLANDS COMMUNITY HOME,DOMINOS PIZZA UK & IRE,PURCHASE OF FOOD (RAW MATERIALS),26.69,"EATING PLACES, RESTAURANTS",,
10/07/2019,RUTH HOUSE,AMZNMKTPLACE,EQUIPMENT,20.99,MISCELLANEOUS AND SPECIALTY RETAIL STORES,,
10/07/2019,RUTH HOUSE,AMZNMKTPLACE AMAZON.CO,EDUC VISITS/HOLS/CAMPS/TOYS,8.99,MISCELLANEOUS AND SPECIALTY RETAIL STORES,,
10/07/2019,CONSORT HOUSE REDHILL,AMZNMKTPLACE,EQUIPMENT,9.94,MISCELLANEOUS AND SPECIALTY RETAIL STORES,,
10/07/2019,ACL CENTRAL EXPENDITURE,HELLOPRINT,PUBLICITY,15.75,"QUICK COPY,REPRODUCTION AND BLUEPRINTING SERVICES",,
10/07/2019,FAMILIES ELMBRIDGE,POUNDLAND,E25 CATERING EQUIPMENT,3.00,DISCOUNT STORES,,
10/07/2019,ACL CENTRAL EXPENDITURE,W P NOTCUTT LTD,EQUIPMENT,471.12,"BUILDING MATERIALS, LUMBER STORES",,
10/07/2019,ACL CENTRAL EXPENDITURE,AMAZON.CO.UK M649L4WK4,EQUIPMENT,19.32,DIRECT MARKETING-OTHER DIRECT MARKETERS/NOT ELSEW.,,
10/07/2019,ACL CENTRAL EXPENDITURE,COOKSON PRECIOUS M,EQUIPMENT,205.50,"PRECIOUS STONES AND METALS, WATCHES AND JEWELRY",,
10/07/2019,NW LAC AND LEAVING CARE,ARGOS RETAIL GROUP,EQUIPMENT,189.98,DISCOUNT STORES,,
10/07/2019,STRATEGIC LEADERSHIP (CEO & ACEO),WWW.EMAP.COM,SUBSCRIPTIONS,272.00,MISCELLANEOUS PUBLISHING AND PRINTING,,
10/07/2019,BURBANK COMMUNITY HOME,SAINSBURYS TO YOU 0686,PURCHASE OF FOOD (RAW MATERIALS),358.41,"GROCERY STORES, SUPERMARKETS",,
10/07/2019,FIRE SERVICES IT,HALFORDS 0725,COMPUTER HARDWARE,4.99,BICYCLE SHOPS-SALES AND SERVICE,,
10/07/2019,ACCESS 2 EDUCATION NE NON-MEDICAL,BOOKPOINT LIMITED,BOOKS,239.50,"BOOKS,PERIODICALS AND NEWSPAPERS",,
10/07/2019,CORONER,WWW.SIGN-HOLDERS.CO.UK,STATIONERY,34.26,MISCELLANEOUS AND SPECIALTY RETAIL STORES,,
10/07/2019,CHILDREN'S RIGHTS TEAM,WWW.CLOTHES2ORDER.COM,PRINTING,-20.32,MEN'S/WOMEN'S/CHILDREN'S UNIFORMS/COMMERCIAL CLOTH,,
10/07/2019,HOPE SERVICE - WEST,HORTON PARK GOLF,EDUC VISITS/HOLS/CAMPS/TOYS,9.15,"EATING PLACES, RESTAURANTS",,
10/07/2019,PE/CDT MAINTENANCE OVERHEADS,CHALLENGE FENCING COB,ITEMS PURCHASED FOR RE-SALE,102.89,"BUILDING MATERIALS, LUMBER STORES",,
10/07/2019,EXTENDED HOPE,AMZNMKTPLACE AMAZON.CO,CURRICULUM CONSUMABLES,5.90,MISCELLANEOUS AND SPECIALTY RETAIL STORES,,
10/07/2019,ORBIS REPAIRS AND MAINT,AMAZON.CO.UK M63GU4R44,EQUIPMENT,5.15,DIRECT MARKETING-OTHER DIRECT MARKETERS/NOT ELSEW.,,
10/07/2019,ORBIS REPAIRS AND MAINT,AMAZON.CO.UK M64TS9R34,EQUIPMENT,25.12,DIRECT MARKETING-OTHER DIRECT MARKETERS/NOT ELSEW.,,
10/07/2019,ORBIS REPAIRS AND MAINT,AMZNMKTPLACE,EQUIPMENT,80.98,MISCELLANEOUS AND SPECIALTY RETAIL STORES,,
10/07/2019,EPSOM GROUP HOME FOR MHA,WWW.JOHNLEWIS.COM,EQUIPMENT,229.00,DEPARTMENT STORES,,
10/07/2019,PROPERTY OPERATIONS TEAM,GUILDFORD1125,TRAINING EXPENSES EXTERNAL GENERAL,133.62,"BUILDING MATERIALS, LUMBER STORES",,
10/07/2019,HILLSIDE,SAINSBURYS 0675,PURCHASE OF FOOD (RAW MATERIALS),21.70,"GROCERY STORES, SUPERMARKETS",,
10/07/2019,FAIRCROFT COMMUNITY HOME,STARBUCKS COBHAM,REFRESHMENT COSTS,12.55,"EATING PLACES, RESTAURANTS",,
10/07/2019,FAIRCROFT COMMUNITY HOME,RONTEC PIPPBROOK,EQUIPMENT,7.19,SERVICE STATIONS WITH OR WITHOUT ANCILLARY SERVICE,,
10/07/2019,IMT TECHNICAL DELIVERY,GOVERNMENT EVENTS,TRAINING EXPENSES EXTERNAL GENERAL,454.80,"ASSOCIATIONS-CIVIC, SOCIAL, AND FRATERNAL",,
10/07/2019,LIBERTAS COMMUNITY HOME,AMZNMKTPLACE,EQUIPMENT,3.99,MISCELLANEOUS AND SPECIALTY RETAIL STORES,,
10/07/2019,LIBERTAS COMMUNITY HOME,TESCO STORE 2160,EDUC VISITS/HOLS/CAMPS/TOYS,42.90,"GROCERY STORES, SUPERMARKETS",,
11/07/2019,HOPE SERVICE - WEST,NBX CRAGGY ISLAND,EDUC VISITS/HOLS/CAMPS/TOYS,60.00,RECREATION SERVICES (NOT ELSEWHERE CLASSIFIED),,
11/07/2019,NW CARE - LAC,GEN REGISTER OFFICE,OTHER COMMUNITY CARE VOL,-38.00,GOVERNMENT SERVICES-NOT ELSEWHERE CLASSIFIED,,
11/07/2019,ACCESS PROGRAMMES,GM CARS,MISCELLANEOUS STAFF TRAVEL,73.00,LIMOUSINES AND TAXICABS,,
11/07/2019,HOPE SERVICE - WEST,TOP GOLF LTD,EDUC VISITS/HOLS/CAMPS/TOYS,14.55,"CLUBS-CNTRY,MBRSHIP(ATHLET,REC,SPRTS,PRIVATE GOLF",,
11/07/2019,HOPE SERVICE - WEST,AMZNMKTPLACE AMAZON.CO,CURRICULUM CONSUMABLES,14.48,MISCELLANEOUS AND SPECIALTY RETAIL STORES,,
11/07/2019,CLOSED LANDFILL,RS COMPONENTS,EQUIPMENT,132.43,ELECTRICAL PARTS AND EQUIPMENT,,
11/07/2019,KARIBU COMMUNITY HOME,AMZNMKTPLACE,EQUIPMENT,7.98,MISCELLANEOUS AND SPECIALTY RETAIL STORES,,
11/07/2019,KARIBU COMMUNITY HOME,AMZNMKTPLACE,EQUIPMENT,8.48,MISCELLANEOUS AND SPECIALTY RETAIL STORES,,
11/07/2019,MGMT - ORBIS (MANAGEMENT TEAM & SUPPORT),AMAZON PRIME,EQUIPMENT,-7.99,DIRECT MARKETING-CONTINUITY/SUBSCRIPTION MERCHANTS,,
11/07/2019,SOUTH WEST OUTREACH,CURRYS ONLINE,EQUIPMENT,74.99,ELECTRONIC SALES,,
11/07/2019,CHEYNE WALK COMMUNITY HOME,WAITROSE 233,EQUIPMENT,45.00,"GROCERY STORES, SUPERMARKETS",,
11/07/2019,SERVICE DELIVERY SENIOR MANAGEMENT,AMAZON.CO.UK M68S15RY4,EQUIPMENT,282.49,DIRECT MARKETING-OTHER DIRECT MARKETERS/NOT ELSEW.,,
11/07/2019,NW SECTION 17 CARE,WWW.RETHINK-LIVING.COM,INDEPENDENT LIVING PLACEMENTS,649.00,"LODGING-HOTELS,MOTELS,RESORTS-NOT CLASSIFIED",,
11/07/2019,NW CARE - LAC,HTTP://WWW.KHHOMES.CO.,INDEPENDENT LIVING PLACEMENTS,405.00,"LODGING-HOTELS,MOTELS,RESORTS-NOT CLASSIFIED",,
11/07/2019,NW CARE - LAC,HTTP://WWW.KHHOMES.CO.,INDEPENDENT LIVING PLACEMENTS,90.00,"LODGING-HOTELS,MOTELS,RESORTS-NOT CLASSIFIED",,
11/07/2019,DEVELOPMENT TEAM,GITHUB.COM,COMPUTER SERVICES,42.83,"COMPUTERS, COMPUTER PERIPHERAL EQUIPMENT, SOFTWARE",,
11/07/2019,LIBERTAS COMMUNITY HOME,BUYAGIFT PLC,EDUC VISITS/HOLS/CAMPS/TOYS,85.00,TRAVEL AGENCIES AND TOUR OPERATORS,,
11/07/2019,COBHAM CHILDRENS CENTRE,BOOKWHEN.COM - BOOKING,FEES,228.00,COMPUTER SOFTWARE STORES,,
11/07/2019,CFL,LONDON OVERGROUND TO,MISCELLANEOUS STAFF TRAVEL,18.40,PASSENGER RAILWAYS,,
11/07/2019,FAIRCROFT COMMUNITY HOME,LLOYDS AT SAINSBURYS,EQUIPMENT,6.99,"GROCERY STORES, SUPERMARKETS",,
11/07/2019,RECRUITMENT,FACEBK  Z3QNTM6PS2,STAFF ADVERTISING ,50.00,ADVERTISING SERVICES,,
11/07/2019,ABBEYWOOD,AMAZON.CO.UK M69VJ3W74,DAY TO DAY MAINTENANCE,11.48,DIRECT MARKETING-OTHER DIRECT MARKETERS/NOT ELSEW.,,
11/07/2019,ABBEYWOOD,AMZNMKTPLACE,DAY TO DAY MAINTENANCE,12.99,MISCELLANEOUS AND SPECIALTY RETAIL STORES,,
11/07/2019,ABBEYWOOD,AMZNMKTPLACE,MEDICAL EXPENSES,21.74,MISCELLANEOUS AND SPECIALTY RETAIL STORES,,
11/07/2019,TARGETED INTERVENTION,TESCO STORE 2590,EDUC VISITS/HOLS/CAMPS/TOYS,0.60,"GROCERY STORES, SUPERMARKETS",,
11/07/2019,TARGETED INTERVENTION,SQUIRES GARDEN CENTRE,EDUC VISITS/HOLS/CAMPS/TOYS,4.20,LAWN AND GARDEN SUPPLY STORES,,
11/07/2019,SOLD CURRICULUM PROGRAMME DELIVERY,3C_ INDIGO PARK HIGH S,EDUC VISITS/HOLS/CAMPS/TOYS,2.00,AUTOMOBILE PARKING LOTS AND GARAGES,,
11/07/2019,HERITAGE STEWARDSHIP AND PRESERVATION,AMAZON.CO.UK M66IJ7W74,EQUIPMENT,3.98,DIRECT MARKETING-OTHER DIRECT MARKETERS/NOT ELSEW.,,
11/07/2019,CHEYNE WALK COMMUNITY HOME,AMZNMKTPLACE AMAZON.CO,EQUIPMENT,33.78,MISCELLANEOUS AND SPECIALTY RETAIL STORES,,
11/07/2019,HILLSIDE,SAINSBURYS 0784,CLEANING AND DOMESTIC SUPPLIES,2.00,"GROCERY STORES, SUPERMARKETS",,
11/07/2019,HILLSIDE,SAINSBURYS 0784,PURCHASE OF FOOD (RAW MATERIALS),28.10,"GROCERY STORES, SUPERMARKETS",,
11/07/2019,NW CARE - LAC,GEN REGISTER OFFICE,OTHER COMMUNITY CARE VOL,38.00,GOVERNMENT SERVICES-NOT ELSEWHERE CLASSIFIED,,
11/07/2019,NW CARE - LAC,HTTP://WWW.AKTIVACAMPS,EDUC VISITS/HOLS/CAMPS/TOYS,240.00,CHILD CARE SERVICES,,
11/07/2019,NW FOSTERING CARE,HTTP://WWW.AKTIVACAMPS,EDUC VISITS/HOLS/CAMPS/TOYS,240.00,CHILD CARE SERVICES,,
11/07/2019,FINANCIAL ASSESSMENTS AND BENEFITS TEAM,WWW.GOV.UK,LEGAL EXPENSES,10.00,PROFESSIONAL SERVICES-NOT ELSEWHERE CLASSIFIED,,
11/07/2019,FINANCIAL ASSESSMENTS AND BENEFITS TEAM,WWW.GOV.UK,LEGAL EXPENSES,10.00,PROFESSIONAL SERVICES-NOT ELSEWHERE CLASSIFIED,,
11/07/2019,HOPE SERVICE - WEST,SAINSBURYS TO YOU 0686,PURCHASE OF FOOD (RAW MATERIALS),48.65,"GROCERY STORES, SUPERMARKETS",,
11/07/2019,HOPE SERVICE - WEST,SAINSBURYS TO YOU 0686,PURCHASE OF FOOD (RAW MATERIALS),-20.50,"GROCERY STORES, SUPERMARKETS",,
11/07/2019,ACL CENTRAL EXPENDITURE,AMZNMKTPLACE,EQUIPMENT,11.85,MISCELLANEOUS AND SPECIALTY RETAIL STORES,,
11/07/2019,SCHOOL APPEALS,AMAZON.CO.UK M65XB1W24,STATIONERY,54.09,DIRECT MARKETING-OTHER DIRECT MARKETERS/NOT ELSEW.,,
11/07/2019,CHEYNE WALK COMMUNITY HOME,TESCO STORE 2560,PURCHASE OF FOOD (RAW MATERIALS),1.00,"GROCERY STORES, SUPERMARKETS",,
11/07/2019,ARUNDEL,TESCO STORES 5999,REFRESHMENT COSTS,146.56,"GROCERY STORES, SUPERMARKETS",,
11/07/2019,ESTATES DELIVERY MANAGER,HMCTS MOJ,LEGAL EXPENSES,628.00,FINES,,
11/07/2019,FAMILIES TANDRIDGE,WAITROSE 178,PURCHASE OF FOOD (RAW MATERIALS),3.54,"GROCERY STORES, SUPERMARKETS",,
11/07/2019,FAMILIES TANDRIDGE,WM MORRISONS STORE,PURCHASE OF FOOD (RAW MATERIALS),11.72,"GROCERY STORES, SUPERMARKETS",,
11/07/2019,FAIRCROFT COMMUNITY HOME,A CASA RESTAURANT,REFRESHMENT COSTS,42.58,"EATING PLACES, RESTAURANTS",,
11/07/2019,PSSS VISUALLY IMPAIRED,AMAZON.CO.UK M63J96WB4,EQUIPMENT,53.26,DIRECT MARKETING-OTHER DIRECT MARKETERS/NOT ELSEW.,,
11/07/2019,IMT CRITICAL ENVIRONMENTS,SCREWFIX DIRECT,EQUIPMENT,5.70,HOME SUPPLY WAREHOUSE STORES,,
11/07/2019,RUTH HOUSE,GIFFGAFF,TELECOMMUNICATION CHARGES,6.00,TELECOM INCL PREPAID/RECURRING PHONE SVCS,,
11/07/2019,RUTH HOUSE,GIFFGAFF,TELECOMMUNICATION CHARGES,6.00,TELECOM INCL PREPAID/RECURRING PHONE SVCS,,
11/07/2019,RUTH HOUSE,GIFFGAFF,TELECOMMUNICATION CHARGES,6.00,TELECOM INCL PREPAID/RECURRING PHONE SVCS,,
11/07/2019,CONSORT HOUSE REDHILL,AMZNMKTPLACE,EQUIPMENT,9.69,MISCELLANEOUS AND SPECIALTY RETAIL STORES,,
11/07/2019,CONSORT HOUSE REDHILL,AMZNMKTPLACE,EQUIPMENT,18.99,MISCELLANEOUS AND SPECIALTY RETAIL STORES,,
11/07/2019,HOPE SERVICE - WEST,SAINSBURYS TO YOU 0683,PURCHASE OF FOOD (RAW MATERIALS),48.92,"GROCERY STORES, SUPERMARKETS",,
11/07/2019,HOPE SERVICE - WEST,TOP GOLF LTD,EDUC VISITS/HOLS/CAMPS/TOYS,6.00,"CLUBS-CNTRY,MBRSHIP(ATHLET,REC,SPRTS,PRIVATE GOLF",,
11/07/2019,ROW AREA3 MV EPS ELM                    ,RYALL & EDWARDS LTD,EQUIPMENT,120.42,"BUILDING MATERIALS, LUMBER STORES",,
11/07/2019,MGMT - ORBIS (MANAGEMENT TEAM & SUPPORT),CUSTOMER THERMOMETER,FEES,97.83,COMPUTER SOFTWARE STORES,,
11/07/2019,FAIRCROFT COMMUNITY HOME,SAINSBURYS SACAT 0764,REFRESHMENT COSTS,11.60,"GROCERY STORES, SUPERMARKETS",,
11/07/2019,REIGATE & BANSTEAD LOCAL CARE OP,GEN REGISTER OFFICE,FEES,15.00,GOVERNMENT SERVICES-NOT ELSEWHERE CLASSIFIED,,
11/07/2019,REIGATE AND BANSTEAD LOCALITY TEAM,PCS COBBOLD LOCKSMITHS,OTHER COMMUNITY CARE PRIV,78.00,HARDWARE STORES,,
11/07/2019,LIBERTAS COMMUNITY HOME,BT PAY BY PHONE,COMPUTER SERVICES,67.07,TELECOM INCL PREPAID/RECURRING PHONE SVCS,,
11/07/2019,PSSS ICT SUPPORT,AMZNMKTPLACE AMAZON.CO,EQUIPMENT,59.96,MISCELLANEOUS AND SPECIALTY RETAIL STORES,,
11/07/2019,LIBERTAS COMMUNITY HOME,EASYJET,EDUC VISITS/HOLS/CAMPS/TOYS,53.88,EASYJET,,
11/07/2019,LIBERTAS COMMUNITY HOME,WWW.POSTOFFICE.CO.UK,EDUC VISITS/HOLS/CAMPS/TOYS,109.86,POSTAL SERVICES-GOVERNMENT ONLY,,
11/07/2019,BIKEABILITY - CYCLE TRAINING,FW EVANS CYCLES,EQUIPMENT,5.50,BICYCLE SHOPS-SALES AND SERVICE,,
11/07/2019,SOLD DAY TO DAY OPERATIONS,AMZNMKTPLACE,EQUIPMENT,34.99,MISCELLANEOUS AND SPECIALTY RETAIL STORES,,
11/07/2019,TRANSPORT,APPLE STORE R092,OPERATIONAL FIRE EQUIPMENT,68.00,ELECTRONIC SALES,,
11/07/2019,TRANSPORT,GTR RAIL TICKET,MISCELLANEOUS STAFF TRAVEL,26.00,PASSENGER RAILWAYS,,
11/07/2019,EXTENDED HOPE,AMZNMKTPLACE AMAZON.CO,CURRICULUM CONSUMABLES,5.61,MISCELLANEOUS AND SPECIALTY RETAIL STORES,,
11/07/2019,EXTENDED HOPE,AMZNMKTPLACE AMAZON.CO,CURRICULUM CONSUMABLES,8.71,MISCELLANEOUS AND SPECIALTY RETAIL STORES,,
11/07/2019,EXTENDED HOPE,AMZNMKTPLACE AMAZON.CO,CURRICULUM CONSUMABLES,6.59,MISCELLANEOUS AND SPECIALTY RETAIL STORES,,
11/07/2019,EXTENDED HOPE,AMZNMKTPLACE AMAZON.CO,CURRICULUM CONSUMABLES,4.41,MISCELLANEOUS AND SPECIALTY RETAIL STORES,,
11/07/2019,ORBIS REPAIRS AND MAINT,AMZNMKTPLACE,EQUIPMENT,10.99,MISCELLANEOUS AND SPECIALTY RETAIL STORES,,
11/07/2019,TS SERVICE MANAGEMENT,TRADING STANDARDS INST,SUBSISTENCE AND CONFERENCE EXPENSES,120.00,DIRECT MARKETING-COMBINATION CATALOG/RETAIL MERCH.,,
11/07/2019,TS SERVICE MANAGEMENT,TRADING STANDARDS INST,SUBSISTENCE AND CONFERENCE EXPENSES,72.00,DIRECT MARKETING-COMBINATION CATALOG/RETAIL MERCH.,,
11/07/2019,TRAINING AND DEVELOPMENT,WP-INSTITUTION OF,TRAINING EXPENSES EXTERNAL GENERAL,915.00,"ORGANIZATIONS, MEMBERSHIP-NOT ELSEWHERE CLASSIFIED",,
11/07/2019,WALTON YOUTH CENTRE,LOCKS DIRECT,EQUIPMENT,89.78,HARDWARE EQUIPMENT AND SUPPLIES,,
11/07/2019,FAMILIES REIGATE AND BANSTREAD,AMZNMKTPLACE AMAZON.CO,EQUIPMENT,15.40,MISCELLANEOUS AND SPECIALTY RETAIL STORES,,
11/07/2019,CHALKMEAD,AMZNMKTPLACE,DAY TO DAY MAINTENANCE,80.40,MISCELLANEOUS AND SPECIALTY RETAIL STORES,,
11/07/2019,LIBERTAS COMMUNITY HOME,AMZNMKTPLACE,EQUIPMENT,8.95,MISCELLANEOUS AND SPECIALTY RETAIL STORES,,
12/07/2019,HAVEN YTH CENTRE,HALFORDS 0725,EQUIPMENT,10.00,BICYCLE SHOPS-SALES AND SERVICE,,
12/07/2019,HAVEN YTH CENTRE,CO-OP GROUP FOOD,REFRESHMENT COSTS,8.35,"GROCERY STORES, SUPERMARKETS",,
12/07/2019,MENTAL HEALTH MANAGEMENT TEAM,WORTHING COUNTRY C,EQUIPMENT,75.00,FINES,,
12/07/2019,FAMILIES REIGATE AND BANSTREAD,ASDA SUPERSTORE,DESCRIPTION &AWARD LONG SERVICE,16.37,"GROCERY STORES, SUPERMARKETS",,
12/07/2019,FAMILIES REIGATE AND BANSTREAD,ASDA SUPERSTORE,DESCRIPTION &AWARD LONG SERVICE,6.39,"GROCERY STORES, SUPERMARKETS",,
12/07/2019,COBHAM CHILDRENS CENTRE,WAITROSE 176,REFRESHMENT COSTS,29.94,"GROCERY STORES, SUPERMARKETS",,
12/07/2019,COUNTY HALL,WWW.IRONMONGERYDIRECT.,EQUIPMENT,191.52,"GLASS, PAINT, WALLPAPER STORES",,
12/07/2019,NE SECTION 17 CARE,AIRPORT GUEST HOUSE,INDEPENDENT LIVING PLACEMENTS,165.00,"LODGING-HOTELS,MOTELS,RESORTS-NOT CLASSIFIED",,
12/07/2019,OCCUPATIONAL THERAPY,MCDONALDS,REFRESHMENT COSTS,20.14,FAST FOOD RESTAURANTS,,
12/07/2019,OCCUPATIONAL THERAPY,MCDONALDS,REFRESHMENT COSTS,2.18,FAST FOOD RESTAURANTS,,
12/07/2019,TARGETED INTERVENTION,STARBUCKS,EDUC VISITS/HOLS/CAMPS/TOYS,11.25,FAST FOOD RESTAURANTS,,
12/07/2019,TARGETED INTERVENTION,CEX,EDUC VISITS/HOLS/CAMPS/TOYS,20.00,ELECTRONIC SALES,,
12/07/2019,TARGETED INTERVENTION,STARBUCKS COFFEE,EDUC VISITS/HOLS/CAMPS/TOYS,10.55,FAST FOOD RESTAURANTS,,
12/07/2019,TARGETED INTERVENTION,3C_ THEADS SHOPPING CE,EDUC VISITS/HOLS/CAMPS/TOYS,0.80,AUTOMOBILE PARKING LOTS AND GARAGES,,
12/07/2019,HEATHSIDE,ROBERT DYAS HOLDNG LTD,PURCHASE OF BUILDING MATERIALS,6.99,HARDWARE STORES,,
12/07/2019,CHEYNE WALK COMMUNITY HOME,SAINSBURYS SACAT 0517,EDUC VISITS/HOLS/CAMPS/TOYS,10.00,"GROCERY STORES, SUPERMARKETS",,
12/07/2019,CHEYNE WALK COMMUNITY HOME,HOMEBASE LTD 247,UPKEEP OF GROUNDS,354.80,"BUILDING MATERIALS, LUMBER STORES",,
12/07/2019,SOLD PROFESSIONAL TRAINING AND DEVLPMNT,BRITISHCANOEING,FEES,40.00,COMPUTER SOFTWARE STORES,,
12/07/2019,STRATEGIC DIRECTOR,3C_ CP PLUS - ROYAL SU,NON-STAFF RELATED TRANSPORT COSTS,6.50,AUTOMOBILE PARKING LOTS AND GARAGES,,
12/07/2019,BURBANK COMMUNITY HOME,BOOTS 5228,EQUIPMENT,9.98,"DRUG STORES, PHARMACIES",,
12/07/2019,BURBANK COMMUNITY HOME,ASDA STORES 4823,EQUIPMENT,4.55,"GROCERY STORES, SUPERMARKETS",,
12/07/2019,CORPORATE GROUP - LEGAL SERVICES,AMZ EASYTIME UK (TM),STATIONERY,-26.97,MISCELLANEOUS AND SPECIALTY RETAIL STORES,,
12/07/2019,CORPORATE GROUP - LEGAL SERVICES,AMZ EASYTIME UK (TM),STATIONERY,-35.96,MISCELLANEOUS AND SPECIALTY RETAIL STORES,,
12/07/2019,FAIRCROFT COMMUNITY HOME,3C_ CP PLUS - ROYAL SU,MISCELLANEOUS STAFF TRAVEL,4.50,AUTOMOBILE PARKING LOTS AND GARAGES,,
12/07/2019,FAIRCROFT COMMUNITY HOME,3C_ CP PLUS - ROYAL SU,MISCELLANEOUS STAFF TRAVEL,4.50,AUTOMOBILE PARKING LOTS AND GARAGES,,
12/07/2019,RUTH HOUSE,SAFETYSUPPL,EQUIPMENT,135.54,DEPARTMENT STORES,,
12/07/2019,RUTH HOUSE,SAINSBURYS TO YOU 0686,PURCHASE OF FOOD (RAW MATERIALS),34.70,"GROCERY STORES, SUPERMARKETS",,
12/07/2019,RUTH HOUSE,SAINSBURYS TO YOU 0686,PURCHASE OF FOOD (RAW MATERIALS),264.40,"GROCERY STORES, SUPERMARKETS",,
12/07/2019,CHEYNE WALK COMMUNITY HOME,TESCO STORE 2560,EQUIPMENT,30.85,"GROCERY STORES, SUPERMARKETS",,
12/07/2019,CHEYNE WALK COMMUNITY HOME,BEEFEATER40015005,REFRESHMENT COSTS,19.00,"EATING PLACES, RESTAURANTS",,
12/07/2019,ADOPTION TEAM,TRAVELODGE,OTHER COMMUNITY CARE VOL,335.00,TRAVELODGE,,
12/07/2019,SE CARE - CP & COURT LAC,WWW.GWR.COM,NON-STAFF RELATED TRANSPORT COSTS,129.85,PASSENGER RAILWAYS,,
12/07/2019,SE CARE - CP & COURT LAC,ARGOS RETAIL GROUP,OTHER COMMUNITY CARE VOL,64.00,DISCOUNT STORES,,
12/07/2019,SE CARE - NON-LAC CP & COURT,JD SPORTS INTERNET,OTHER COMMUNITY CARE VOL,28.99,SPORTING GOODS STORES,,
12/07/2019,LIBERTAS COMMUNITY HOME,TESCO STORES 2025,EQUIPMENT,16.00,"GROCERY STORES, SUPERMARKETS",,
12/07/2019,LIBERTAS COMMUNITY HOME,TESCO STORES 2025,PURCHASE OF FOOD (RAW MATERIALS),12.55,"GROCERY STORES, SUPERMARKETS",,
12/07/2019,LIBERTAS COMMUNITY HOME,TESCO STORES 2025,PURCHASE OF FOOD (RAW MATERIALS),119.41,"GROCERY STORES, SUPERMARKETS",,
12/07/2019,TANDRIDGE CMHRS CARE,WORTHING COUNTRY C,FEES,75.00,FINES,,
12/07/2019,ARUNDEL,TESCO STORES 5999,REFRESHMENT COSTS,171.79,"GROCERY STORES, SUPERMARKETS",,
12/07/2019,TRANSPORT,AMZ HOME DETAIL,DESCRIPTION &AWARD LONG SERVICE,-139.99,MISCELLANEOUS AND SPECIALTY RETAIL STORES,,
12/07/2019,ORBIS CODE,UKBA8946155051,FEES,"5,199.00",GOVERNMENT SERVICES-NOT ELSEWHERE CLASSIFIED,,
12/07/2019,LOWER MOLE COUNTRYSIDE PROJECT,A.1. ROPES & RIGG,EQUIPMENT,35.42,"FABRIC, NEEDLEWORK, PIECE GOODS, AND SEWING STORES",,
12/07/2019,ISPSB - ADAPTATIONS & IMPROVEMENTS,FINDEL EDUCATION,EDUC VISITS/HOLS/CAMPS/TOYS,47.99,DIRECT MARKETING-OTHER DIRECT MARKETERS/NOT ELSEW.,,
12/07/2019,APPLEWOOD,ASDA GROCERIES ONLINE,PURCHASE OF FOOD (RAW MATERIALS),196.84,"GROCERY STORES, SUPERMARKETS",,
12/07/2019,APPLEWOOD,ASDA GROCERIES ONLINE,PURCHASE OF FOOD (RAW MATERIALS),-13.98,"GROCERY STORES, SUPERMARKETS",,
12/07/2019,SOLD CATERING,AMZN MKTP UK M684O5WS4,MEDICAL EXPENSES,22.86,BOOK STORES,,
12/07/2019,MALLOW CRESCENT,AMAZON.CO.UK M60GN5Y44,EQUIPMENT,22.45,DIRECT MARKETING-OTHER DIRECT MARKETERS/NOT ELSEW.,,
12/07/2019,FIRE SERVICES IT,PREMIER FARNELL,COMPUTER HARDWARE,234.28,ELECTRICAL PARTS AND EQUIPMENT,,
12/07/2019,SOLD,AMZNMKTPLACE,EQUIPMENT,62.98,MISCELLANEOUS AND SPECIALTY RETAIL STORES,,
12/07/2019,ASSET PLANNING - OPERATIONS,CITY PLUMBING,EQUIPMENT,16.38,"BUILDING MATERIALS, LUMBER STORES",,
12/07/2019,ASSET PLANNING - OPERATIONS,B & Q 1029,EQUIPMENT,18.95,"BUILDING MATERIALS, LUMBER STORES",,
12/07/2019,HOPE SERVICE - WEST,AMZNMKTPLACE AMAZON.CO,CURRICULUM CONSUMABLES,27.60,MISCELLANEOUS AND SPECIALTY RETAIL STORES,,
12/07/2019,HOPE SERVICE - WEST,AMZNMKTPLACE AMAZON.CO,CURRICULUM CONSUMABLES,8.00,MISCELLANEOUS AND SPECIALTY RETAIL STORES,,
12/07/2019,MEMBERS EXPENSES (INCL ALLOWANCES),AMZNMKTPLACE,TRAINING EXPENSES EXTERNAL GENERAL,35.98,MISCELLANEOUS AND SPECIALTY RETAIL STORES,,
12/07/2019,HOPE SERVICE - WEST,SAINSBURYS SACAT(4409),NEWSPAPER AND PERIODICALS,4.60,"GROCERY STORES, SUPERMARKETS",,
12/07/2019,HOPE SERVICE - WEST,SAINSBURYS SACAT(4409),PURCHASE OF FOOD (RAW MATERIALS),3.55,"GROCERY STORES, SUPERMARKETS",,
12/07/2019,ACL CENTRAL EXPENDITURE,HOBBYCRAFT,EQUIPMENT,7.50,"ARTIST SUPPLY STORES, CRAFT SHOPS",,
12/07/2019,OCCUPATIONAL HEALTH,WWW.CFOASERVICES.CO.UK,EQUIPMENT,960.00,"ORGANIZATIONS, MEMBERSHIP-NOT ELSEWHERE CLASSIFIED",,
12/07/2019,TRANSPORT,SP SERVICES,"CLOTHING, UNIFORM AND LAUNDRY",-719.86,DENTAL/LAB/MED/OPHTHALMIC HOSP EQUIP & SUPPLIES,,
12/07/2019,SOLD DAY TO DAY OPERATIONS,WHITEWATER THE CANOE C,EQUIPMENT,79.97,SPORTING GOODS STORES,,
12/07/2019,PE/CDT MAINTENANCE OVERHEADS,WWW.TECNI-CABLE.COM,ITEMS PURCHASED FOR RE-SALE,491.94,"BUILDING MATERIALS, LUMBER STORES",,
12/07/2019,MAYFORD HOUSE WOKING,BRITISH GAS OTP,ELECTRICITY,20.00,"UTLTS-ELCTRC, GAS, HEATING OIL, SANITARY, WATER",,
12/07/2019,PE/CDT MAINTENANCE OVERHEADS,BEARINGS AND BELTS,EQUIPMENT,119.15,"ARCHITECTURAL, ENGINEERING, AND SURVEYING SERVICES",,
12/07/2019,TRAINING AND DEVELOPMENT,SUSSEX YACHT CLUB BAR,REFRESHMENT COSTS,110.00,"BAR,LOUNGE,DISCO,NIGHTCLUB,TAVERN-ALCOHOLIC DRINKS",,
12/07/2019,BURBANK COMMUNITY HOME,NETFLIX.COM,SUBSCRIPTIONS,7.99,"CABLE, SATELLITE, OTHER PAY TELEVISION, RADIO SVCS",,
12/07/2019,CORPORATE GROUP - LEGAL SERVICES,AMAZON.CO.UK M69H90W74,LIBRARY RESOURCES,70.00,DIRECT MARKETING-OTHER DIRECT MARKETERS/NOT ELSEW.,,
13/07/2019,SOLD DAY TO DAY OPERATIONS,HALFORDS 0763,EQUIPMENT,19.49,BICYCLE SHOPS-SALES AND SERVICE,,
13/07/2019,EXTENDED HOPE,TESCO STORE 2590,PURCHASE OF FOOD (RAW MATERIALS),59.20,"GROCERY STORES, SUPERMARKETS",,
13/07/2019,RUTH HOUSE,ARGOS LTD,EQUIPMENT,52.49,DISCOUNT STORES,,
13/07/2019,HAVEN,CO-OP GROUP 310385,REFRESHMENT COSTS,12.30,"GROCERY STORES, SUPERMARKETS",,
13/07/2019,MEADOWSIDE,AMAZON PRIME MH7UT0CK4,FEES,7.99,DIRECT MARKETING-CONTINUITY/SUBSCRIPTION MERCHANTS,,
13/07/2019,ACL CENTRAL EXPENDITURE,AMZNMKTPLACE AMAZON.CO,EQUIPMENT,4.25,MISCELLANEOUS AND SPECIALTY RETAIL STORES,,
13/07/2019,SOLD,AMZNMKTPLACE,EQUIPMENT,190.73,MISCELLANEOUS AND SPECIALTY RETAIL STORES,,
13/07/2019,SOLD CATERING,AMZNMKTPLACE,EQUIPMENT,15.90,MISCELLANEOUS AND SPECIALTY RETAIL STORES,,
13/07/2019,HILLSIDE,SAINSBURYS SACAT 0784,PURCHASE OF FOOD (RAW MATERIALS),8.30,"GROCERY STORES, SUPERMARKETS",,
13/07/2019,HILLSIDE,SAINSBURYS TO YOU 0675,PURCHASE OF FOOD (RAW MATERIALS),20.60,"GROCERY STORES, SUPERMARKETS",,
13/07/2019,HILLSIDE,SAINSBURYS TO YOU 0675,PURCHASE OF FOOD (RAW MATERIALS),201.33,"GROCERY STORES, SUPERMARKETS",,
13/07/2019,WOODLANDS COMMUNITY HOME,NATIONAL EXPRESS LIMIT,NON-STAFF RELATED TRANSPORT COSTS,49.30,BUS LINES,,
14/07/2019,SOLD CATERING,IKEA LTD 144 CROYDON E,CLEANING AND DOMESTIC SUPPLIES,5.00,"EQUIP, FURNITURE, HOME FURNSHNGS STRS (EXCPT APPL)",,
14/07/2019,EXTENDED HOPE,AMZNMKTPLACE AMAZON.CO,CURRICULUM CONSUMABLES,26.19,MISCELLANEOUS AND SPECIALTY RETAIL STORES,,
14/07/2019,ACL CENTRAL EXPENDITURE,AMZNMKTPLACE AMAZON.CO,EQUIPMENT,150.77,MISCELLANEOUS AND SPECIALTY RETAIL STORES,,
14/07/2019,DEVELOPMENT TEAM,MSFT   E01008K2DV,COMPUTER SERVICES,985.87,"COMPUTERS, COMPUTER PERIPHERAL EQUIPMENT, SOFTWARE",,
14/07/2019,DEVELOPMENT TEAM,MSFT   E01008K8D1,COMPUTER SERVICES,973.23,"COMPUTERS, COMPUTER PERIPHERAL EQUIPMENT, SOFTWARE",,
14/07/2019,DEVELOPMENT TEAM,MSFT   E01008K9F5,DESCRIPTION &AWARD LONG SERVICE,159.44,"COMPUTERS, COMPUTER PERIPHERAL EQUIPMENT, SOFTWARE",,
14/07/2019,MALLOW CRESCENT,SAINSBURYS TO YOU 0652,PURCHASE OF FOOD (RAW MATERIALS),136.13,"GROCERY STORES, SUPERMARKETS",,
14/07/2019,RUTH HOUSE,AMZNMKTPLACE AMAZON.CO,EQUIPMENT,43.97,MISCELLANEOUS AND SPECIALTY RETAIL STORES,,
14/07/2019,RUTH HOUSE,AMZNMKTPLACE AMAZON.CO,EQUIPMENT,29.00,MISCELLANEOUS AND SPECIALTY RETAIL STORES,,
14/07/2019,ACL CENTRAL EXPENDITURE,AMAZON.CO.UK MH0X10C54,EQUIPMENT,12.30,DIRECT MARKETING-OTHER DIRECT MARKETERS/NOT ELSEW.,,
14/07/2019,ACL CENTRAL EXPENDITURE,AMZNMKTPLACE AMAZON.CO,EQUIPMENT,49.99,MISCELLANEOUS AND SPECIALTY RETAIL STORES,,
14/07/2019,ACL CENTRAL EXPENDITURE,AMZNMKTPLACE AMAZON.CO,EQUIPMENT,16.94,MISCELLANEOUS AND SPECIALTY RETAIL STORES,,
14/07/2019,FIRE SERVICES IT,AMAZON.CO.UK MH5373CT4,EQUIPMENT,18.46,DIRECT MARKETING-OTHER DIRECT MARKETERS/NOT ELSEW.,,
14/07/2019,SOLD,AMZNMKTPLACE,EQUIPMENT,40.92,MISCELLANEOUS AND SPECIALTY RETAIL STORES,,
14/07/2019,SOLD ESTATES MANAGEMENT,FARNCOMBE BOAT HOUSE,VEHICLE REPAIRS AND MAINTENANCE,15.00,BOAT LEASES AND BOAT RENTALS,,
15/07/2019,NW NIL RECOURSE TO PUBLIC FUNDS CARE,PREMIER INN,INDEPENDENT LIVING PLACEMENTS,566.00,PREMIER INN,,
15/07/2019,ACL CENTRAL EXPENDITURE,TIMESAVERS LLC,EQUIPMENT,76.44,"CLOCK, JEWELRY, AND WATCH REPAIR SHOPS",,
15/07/2019,APPLEWOOD,RSM DOMESTIC APPLIANCE,EQUIPMENT,85.00,"CABLE, SATELLITE, OTHER PAY TELEVISION, RADIO SVCS",,
15/07/2019,APPLEWOOD,RSM DOMESTIC APPLIANCE,EQUIPMENT,585.00,"CABLE, SATELLITE, OTHER PAY TELEVISION, RADIO SVCS",,
15/07/2019,BROCKHURST RESIDENTIAL CARE,CAMBERLEY THEATRE,EDUC VISITS/HOLS/CAMPS/TOYS,36.00,MOTION PICTURE THEATERS,,
15/07/2019,BURBANK COMMUNITY HOME,COSTA COFFEE 43037185,REFRESHMENT COSTS,5.70,FAST FOOD RESTAURANTS,,
15/07/2019,SOLD,AMZNMKTPLACE,EQUIPMENT,25.98,MISCELLANEOUS AND SPECIALTY RETAIL STORES,,
15/07/2019,SOLD,AMZNMKTPLACE,EQUIPMENT,62.98,MISCELLANEOUS AND SPECIALTY RETAIL STORES,,
15/07/2019,SOLD,AMZNMKTPLACE,STATIONERY,31.97,MISCELLANEOUS AND SPECIALTY RETAIL STORES,,
15/07/2019,SOLD DAY TO DAY OPERATIONS,AMZNMKTPLACE,EQUIPMENT,17.98,MISCELLANEOUS AND SPECIALTY RETAIL STORES,,
15/07/2019,CORONER,WWW.FIRST4MAGNETS.COM,STATIONERY,26.77,MISCELLANEOUS AND SPECIALTY RETAIL STORES,,
15/07/2019,HOPE SERVICE - WEST,AMZNMKTPLACE AMAZON.CO,CURRICULUM CONSUMABLES,9.99,MISCELLANEOUS AND SPECIALTY RETAIL STORES,,
15/07/2019,WOODLANDS COMMUNITY HOME,RINGGO PARKING,NON-STAFF RELATED TRANSPORT COSTS,2.79,AUTOMOBILE PARKING LOTS AND GARAGES,,
15/07/2019,SOLD PROFESSIONAL TRAINING AND DEVLPMNT,MOUNTAIN TRAINING,TRAINING EXPENSES EXTERNAL GENERAL,36.00,COMPUTER SOFTWARE STORES,,
15/07/2019,ACL CENTRAL EXPENDITURE,AMZNMKTPLACE,EQUIPMENT,20.64,MISCELLANEOUS AND SPECIALTY RETAIL STORES,,
15/07/2019,ACL CENTRAL EXPENDITURE,AMZNMKTPLACE,EQUIPMENT,9.04,MISCELLANEOUS AND SPECIALTY RETAIL STORES,,
15/07/2019,ACL CENTRAL EXPENDITURE,AMZNMKTPLACE,EQUIPMENT,25.00,MISCELLANEOUS AND SPECIALTY RETAIL STORES,,
15/07/2019,ACL CENTRAL EXPENDITURE,AMZNMKTPLACE,EQUIPMENT,8.99,MISCELLANEOUS AND SPECIALTY RETAIL STORES,,
15/07/2019,FIRE SERVICES IT,AMZNMKTPLACE,COMPUTER HARDWARE,24.99,MISCELLANEOUS AND SPECIALTY RETAIL STORES,,
15/07/2019,SOLD ESTATES MANAGEMENT,MOLE VALLEY MOWERS,VEHICLE REPAIRS AND MAINTENANCE,58.96,LAWN AND GARDEN SUPPLY STORES,,
15/07/2019,KARIBU COMMUNITY HOME,AMZNMKTPLACE,EQUIPMENT,18.00,MISCELLANEOUS AND SPECIALTY RETAIL STORES,,
15/07/2019,LOCAL ASSISTANCE SCHEME,WILKO.COM,FURNITURE,112.00,MISCELLANEOUS GENERAL MERCHANDISE,,
15/07/2019,CHEYNE WALK COMMUNITY HOME,SPECSAVERS,EQUIPMENT,67.00,"OPTICIANS,OPTICAL GOODS & EYEGLASSES",,
15/07/2019,NE CARE - CP & COURT LAC,WWW.ARGOS.CO.UK,OTHER COMMUNITY CARE VOL,173.94,DISCOUNT STORES,,
15/07/2019,SW LAC AND LEAVING CARE,WWW.ARGOS.CO.UK,EQUIPMENT,235.41,DISCOUNT STORES,,
15/07/2019,SHELL UK LICENSING,CYCM ANGLESEY CC INT,FEES,111.00,GOVERNMENT SERVICES-NOT ELSEWHERE CLASSIFIED,,
15/07/2019,RECRUITMENT,FACEBK  S668TMNPS2,STAFF ADVERTISING ,50.00,ADVERTISING SERVICES,,
15/07/2019,RECRUITMENT,TOTALJOBS GROUP LTD,STAFF ADVERTISING ,774.00,MISCELLANEOUS PUBLISHING AND PRINTING,,
15/07/2019,ARMED FORCES COMMUNITY COVENANT GRANT,VIRGIN TRAINS,MISCELLANEOUS STAFF TRAVEL,293.65,PASSENGER RAILWAYS,,
15/07/2019,ARMED FORCES COMMUNITY COVENANT GRANT,THE HERDWICK INN,MISCELLANEOUS STAFF TRAVEL,215.00,"BAR,LOUNGE,DISCO,NIGHTCLUB,TAVERN-ALCOHOLIC DRINKS",,
15/07/2019,ABBEYWOOD,COTTON TRADERS ONLINE,"CLOTHING, UNIFORM AND LAUNDRY",92.99,FAMILY CLOTHING STORES,,
15/07/2019,ACL CENTRAL EXPENDITURE,TESCO STORE 3149,PURCHASE OF FOOD (RAW MATERIALS),110.68,"GROCERY STORES, SUPERMARKETS",,
15/07/2019,ACL CENTRAL EXPENDITURE,TESCO STORE 2160,REFRESHMENT COSTS,51.89,"GROCERY STORES, SUPERMARKETS",,
15/07/2019,ACL CENTRAL EXPENDITURE,W M MORRISON STORE,PURCHASE OF FOOD (RAW MATERIALS),14.31,"GROCERY STORES, SUPERMARKETS",,
15/07/2019,ACL CENTRAL EXPENDITURE,TESCO STORE 2160,REFRESHMENT COSTS,-1.69,"GROCERY STORES, SUPERMARKETS",,
15/07/2019,DOWNLANDS COUNTRYSIDE PROJECT,TESCO STORES,CLEANING AND DOMESTIC SUPPLIES,12.00,"GROCERY STORES, SUPERMARKETS",,
15/07/2019,TRANSPORT,PERRYS AYLESBURY PEUGE,VEHICLE REPAIRS AND MAINTENANCE,229.38,"AUTO & TRUCK DLRS-SALES,SVC, REPRS,PRTS, & LEASING",,
15/07/2019,PE/CDT MAINTENANCE OVERHEADS,HARROD UK SPORT,EQUIPMENT,320.59,"SPORTS APPAREL, RIDING APPAREL STORES",,
15/07/2019,PE/CDT MAINTENANCE OVERHEADS,HARROD UK SPORT,ITEMS PURCHASED FOR RE-SALE,15.47,"SPORTS APPAREL, RIDING APPAREL STORES",,
15/07/2019,PE/CDT MAINTENANCE OVERHEADS,WWW.CONCEPT2.CO.UK,ITEMS PURCHASED FOR RE-SALE,217.99,SPORTING GOODS STORES,,
15/07/2019,NW SECTION 17 CARE,FLEXI-LETS,OTHER COMMUNITY CARE VOL,138.00,"LODGING-HOTELS,MOTELS,RESORTS-NOT CLASSIFIED",,
15/07/2019,NW LOOKED AFTER TEAM,EASYJET,NON-STAFF RELATED TRANSPORT COSTS,228.22,EASYJET,,
15/07/2019,PE/CDT MAINTENANCE OVERHEADS,SCREWFIX DIRECT,EQUIPMENT,229.88,HOME SUPPLY WAREHOUSE STORES,,
15/07/2019,SERVICE DELIVERY RESOURCES,NEW SOUTHERN RAILW,MISCELLANEOUS STAFF TRAVEL,12.50,PASSENGER RAILWAYS,,
15/07/2019,FAIRCROFT COMMUNITY HOME,TESCO STORE 2812,PURCHASE OF FOOD (RAW MATERIALS),253.89,"GROCERY STORES, SUPERMARKETS",,
15/07/2019,MALLOW CRESCENT,TESCO STORE 2590,PURCHASE OF FOOD (RAW MATERIALS),120.11,"GROCERY STORES, SUPERMARKETS",,
15/07/2019,MALLOW CRESCENT,TESCO STORE 2590,PURCHASE OF FOOD (RAW MATERIALS),84.28,"GROCERY STORES, SUPERMARKETS",,
15/07/2019,MALLOW CRESCENT,TESCO STORE 3539,PURCHASE OF FOOD (RAW MATERIALS),-1.99,"GROCERY STORES, SUPERMARKETS",,
15/07/2019,TRAINING AND DEVELOPMENT,THE ROYAL MARITIME CLU,TRAINING EXPENSES EXTERNAL GENERAL,396.00,"LODGING-HOTELS,MOTELS,RESORTS-NOT CLASSIFIED",,
15/07/2019,FAMILIES REIGATE AND BANSTREAD,REDHILL,REFRESHMENT COSTS,75.10,"EATING PLACES, RESTAURANTS",,
15/07/2019,SHELL UK LICENSING,BRADFORD COUNCIL,FEES,226.00,GOVERNMENT SERVICES-NOT ELSEWHERE CLASSIFIED,,
15/07/2019,SHELL UK LICENSING,KIRKLEES COUNCIL,FEES,113.00,GOVERNMENT SERVICES-NOT ELSEWHERE CLASSIFIED,,
15/07/2019,SHELL UK LICENSING,KIRKLEES COUNCIL,FEES,113.00,GOVERNMENT SERVICES-NOT ELSEWHERE CLASSIFIED,,
15/07/2019,SHELL UK LICENSING,SUFFOLK COUNTY COUNCIL,MEDICAL EXPENSES,375.00,GOVERNMENT SERVICES-NOT ELSEWHERE CLASSIFIED,,
15/07/2019,WAVERLEY CMHRS CARE,TRAVELODGE,OTHER COMMUNITY CARE PRIV,971.50,TRAVELODGE,,
15/07/2019,MENTAL HEALTH MANAGEMENT TEAM,WORTHING COUNTRY C,EQUIPMENT,75.00,FINES,,
15/07/2019,MALLOW CRESCENT,TESCO STORE 2590,PURCHASE OF FOOD (RAW MATERIALS),113.61,"GROCERY STORES, SUPERMARKETS",,
15/07/2019,FAMILIES TANDRIDGE,WAITROSE 178,REFRESHMENT COSTS,2.74,"GROCERY STORES, SUPERMARKETS",,
15/07/2019,FAMILIES TANDRIDGE,WAITROSE 178,REFRESHMENT COSTS,1.15,"GROCERY STORES, SUPERMARKETS",,
15/07/2019,FAIRCROFT COMMUNITY HOME,COSTA COFFEE 43035820,REFRESHMENT COSTS,8.00,FAST FOOD RESTAURANTS,,
15/07/2019,RUTH HOUSE,AMZNMKTPLACE,EQUIPMENT,4.62,MISCELLANEOUS AND SPECIALTY RETAIL STORES,,
15/07/2019,MALLOW CRESCENT,SAINSBURYS TO YOU 0652,PURCHASE OF FOOD (RAW MATERIALS),129.88,"GROCERY STORES, SUPERMARKETS",,
15/07/2019,HOPE SERVICE - WEST,SAINSBURYS TO YOU 0686,PURCHASE OF FOOD (RAW MATERIALS),78.90,"GROCERY STORES, SUPERMARKETS",,
15/07/2019,ORCHARD COURT,SCREWFIX DIRECT,EQUIPMENT,224.66,HOME SUPPLY WAREHOUSE STORES,,
15/07/2019,TANDRIDGE CMHRS CARE,WORTHING COUNTRY C,FEES,75.00,FINES,,
15/07/2019,DOWNLANDS COUNTRYSIDE PROJECT,MOLE COUNTRY STORES,EQUIPMENT,74.08,AGRICULTURAL COOPERATIVES,,
15/07/2019,HOPE SERVICE - WEST,SAINSBURYS TO YOU 0683,PURCHASE OF FOOD (RAW MATERIALS),99.45,"GROCERY STORES, SUPERMARKETS",,
15/07/2019,LOWER MOLE COUNTRYSIDE PROJECT,SUI GENERIS,PURCHASE OF BUILDING MATERIALS,500.00,BUSINESS SERVICES-NOT ELSEWHERE CLASSIFIED,,
15/07/2019,LOWER MOLE COUNTRYSIDE PROJECT,SUI GENERIS,PURCHASE OF BUILDING MATERIALS,175.05,BUSINESS SERVICES-NOT ELSEWHERE CLASSIFIED,,
15/07/2019,ISPSB - ADAPTATIONS & IMPROVEMENTS,WWW.TTS-GROUPS.CO.UK,EDUC VISITS/HOLS/CAMPS/TOYS,57.53,"OFFICE, SCHOOL SUPPLY, AND STATIONERY STORES",,
16/07/2019,TRANSPORT,VAMPED LTD,VEHICLE REPAIRS AND MAINTENANCE,-792.00,AUTOMOTIVE BODY REPAIR SHOPS,,
16/07/2019,RUTH HOUSE,AMZNMKTPLACE AMAZON.CO,EQUIPMENT,9.99,MISCELLANEOUS AND SPECIALTY RETAIL STORES,,
16/07/2019,CHEYNE WALK COMMUNITY HOME,AMZNMKTPLACE AMAZON.CO,CLEANING MATERIALS,15.75,MISCELLANEOUS AND SPECIALTY RETAIL STORES,,
16/07/2019,ISPSB - ADAPTATIONS & IMPROVEMENTS,AMZNMKTPLACE AMAZON.CO,EDUC VISITS/HOLS/CAMPS/TOYS,4.10,MISCELLANEOUS AND SPECIALTY RETAIL STORES,,
16/07/2019,ISPSB - ADAPTATIONS & IMPROVEMENTS,AMZNMKTPLACE AMAZON.CO,EDUC VISITS/HOLS/CAMPS/TOYS,13.32,MISCELLANEOUS AND SPECIALTY RETAIL STORES,,
16/07/2019,NW CP & COURT TEAM,PREMIER INN,INDEPENDENT LIVING PLACEMENTS,114.00,PREMIER INN,,
16/07/2019,NW CP & COURT TEAM,PREMIER INN,INDEPENDENT LIVING PLACEMENTS,114.00,PREMIER INN,,
16/07/2019,NW CP & COURT TEAM,PREMIER INN,INDEPENDENT LIVING PLACEMENTS,114.00,PREMIER INN,,
16/07/2019,NW CP & COURT TEAM,PREMIER INN,INDEPENDENT LIVING PLACEMENTS,114.00,PREMIER INN,,
16/07/2019,CHALKMEAD,SCREWFIX DIRECT,DAY TO DAY MAINTENANCE,159.96,HOME SUPPLY WAREHOUSE STORES,,
16/07/2019,BARNFIELD,HORACE FULLER,UPKEEP OF GROUNDS,420.87,MISC/AUTO/AIRCRAFT/FARM EQUIP  NOT ELSEWHERE CLASS,,
16/07/2019,WOODLANDS COMMUNITY HOME,SAINSBURYS TO YOU 0686,PURCHASE OF FOOD (RAW MATERIALS),53.40,"GROCERY STORES, SUPERMARKETS",,
16/07/2019,WOODLANDS COMMUNITY HOME,SAINSBURYS TO YOU 0686,PURCHASE OF FOOD (RAW MATERIALS),203.75,"GROCERY STORES, SUPERMARKETS",,
16/07/2019,WOODLANDS COMMUNITY HOME,SAINSBURYS TO YOU 0686,PURCHASE OF FOOD (RAW MATERIALS),-0.80,"GROCERY STORES, SUPERMARKETS",,
16/07/2019,ASSET PLANNING - OPERATIONS,POST OFFICE COUNTER,POSTAGE AND COURIER CHARGES,16.62,POSTAL SERVICES-GOVERNMENT ONLY,,
16/07/2019,ASSET PLANNING - OPERATIONS,BRITISH STANDARDS,BOOKS,211.20,BUSINESS SERVICES-NOT ELSEWHERE CLASSIFIED,,
16/07/2019,ASSET PLANNING - OPERATIONS,BOCONLINE.CO.UK,EQUIPMENT,304.50,HOUSEHOLD APPLIANCE STORES,,
16/07/2019,RUTH HOUSE,SAINSBURYS TO YOU 0686,PURCHASE OF FOOD (RAW MATERIALS),7.70,"GROCERY STORES, SUPERMARKETS",,
16/07/2019,RUTH HOUSE,SAINSBURYS TO YOU 0686,PURCHASE OF FOOD (RAW MATERIALS),69.70,"GROCERY STORES, SUPERMARKETS",,
16/07/2019,CONSORT HOUSE REDHILL,POUNDSTRETCHER 193,EQUIPMENT,3.58,VARIETY STORES,,
16/07/2019,CONSORT HOUSE REDHILL,POUNDLAND LTD 1244,EQUIPMENT,3.00,DISCOUNT STORES,,
16/07/2019,FAIRMOUNT HOUSE LEATHERHEAD,WILKO RETAIL LIMIT,EQUIPMENT,4.15,HOUSEHOLD APPLIANCE STORES,,
16/07/2019,BURBANK COMMUNITY HOME,SAINSBURYS SACAT 0686,MEDICAL EXPENSES,1.90,"GROCERY STORES, SUPERMARKETS",,
16/07/2019,MEADOWSIDE,WWW.ARGOS.CO.UK,DAY TO DAY MAINTENANCE,23.94,DISCOUNT STORES,,
16/07/2019,CHEYNE WALK COMMUNITY HOME,AMZNMKTPLACE AMAZON.CO,EQUIPMENT,28.53,MISCELLANEOUS AND SPECIALTY RETAIL STORES,,
16/07/2019,LIBERTAS COMMUNITY HOME,TESCO STORES 2025,EQUIPMENT,5.45,"GROCERY STORES, SUPERMARKETS",,
16/07/2019,LIBERTAS COMMUNITY HOME,TESCO STORES 2025,PURCHASE OF FOOD (RAW MATERIALS),21.59,"GROCERY STORES, SUPERMARKETS",,
16/07/2019,LIBERTAS COMMUNITY HOME,TESCO STORES 2025,PURCHASE OF FOOD (RAW MATERIALS),120.07,"GROCERY STORES, SUPERMARKETS",,
16/07/2019,PSSS VISUALLY IMPAIRED,AMAZON.CO.UK MH4HZ0FZ4,EQUIPMENT,50.06,DIRECT MARKETING-OTHER DIRECT MARKETERS/NOT ELSEW.,,
16/07/2019,HOPE SERVICE - WEST,SAINSBURYS TO YOU 0686,PURCHASE OF FOOD (RAW MATERIALS),109.85,"GROCERY STORES, SUPERMARKETS",,
16/07/2019,ORCHARD COURT,SCREWFIX DIRECT,EQUIPMENT,390.86,HOME SUPPLY WAREHOUSE STORES,,
16/07/2019,FAMILIES ELMBRIDGE,WILKO RETAIL LIMITED,EQUIPMENT,2.00,MISCELLANEOUS GENERAL MERCHANDISE,,
16/07/2019,FAMILIES ELMBRIDGE,POUNDLAND LTD 1317,EQUIPMENT,5.00,DISCOUNT STORES,,
16/07/2019,ACL CENTRAL EXPENDITURE,AMZNMKTPLACE AMAZON.CO,EQUIPMENT,-49.99,MISCELLANEOUS AND SPECIALTY RETAIL STORES,,
16/07/2019,TRANSPORT,AMZNMKTPLACE,DESCRIPTION &AWARD LONG SERVICE,159.99,MISCELLANEOUS AND SPECIALTY RETAIL STORES,,
16/07/2019,TRANSPORT,TOOLSTATION LTD,DESCRIPTION &AWARD LONG SERVICE,49.49,HARDWARE STORES,,
16/07/2019,TRANSPORT,PAYPAL  NISBETS,DESCRIPTION &AWARD LONG SERVICE,86.36,"AUTOMOTIVE PARTS, ACCESSORIES STORES",,
16/07/2019,LOWER MOLE COUNTRYSIDE PROJECT,SCREWFIX DIRECT,PURCHASE OF BUILDING MATERIALS,29.94,HOME SUPPLY WAREHOUSE STORES,,
16/07/2019,ISPSB - ADAPTATIONS & IMPROVEMENTS,AMZNMKTPLACE AMAZON.CO,EDUC VISITS/HOLS/CAMPS/TOYS,1.03,MISCELLANEOUS AND SPECIALTY RETAIL STORES,,
16/07/2019,APPLEWOOD,AMZNMKTPLACE,EQUIPMENT,29.50,MISCELLANEOUS AND SPECIALTY RETAIL STORES,,
16/07/2019,BURBANK COMMUNITY HOME,SCHOOLGATEWA BROADWATE,EDUC VISITS/HOLS/CAMPS/TOYS,105.00,"COLLEGES, UNIV, PRO SCHOOLS, JUNIOR COLLEGES",,
16/07/2019,BURBANK COMMUNITY HOME,WWW.SURREYCC.GOV.UK,REFRESHMENT COSTS,75.00,GOVERNMENT SERVICES-NOT ELSEWHERE CLASSIFIED,,
16/07/2019,SOLD DAY TO DAY OPERATIONS,AMZNMKTPLACE,EQUIPMENT,5.68,MISCELLANEOUS AND SPECIALTY RETAIL STORES,,
16/07/2019,ASSET PLANNING - OPERATIONS,BRITISH STANDARDS,BOOKS,808.80,BUSINESS SERVICES-NOT ELSEWHERE CLASSIFIED,,
16/07/2019,HILLSIDE,SAINSBURYS SACAT 0784,PURCHASE OF FOOD (RAW MATERIALS),7.00,"GROCERY STORES, SUPERMARKETS",,
16/07/2019,WOODLANDS COMMUNITY HOME,HOMEBASE LTD 084,EQUIPMENT,-100.00,"BUILDING MATERIALS, LUMBER STORES",,
16/07/2019,HOPE SERVICE - WEST,B & Q 1029,CURRICULUM CONSUMABLES,7.35,"BUILDING MATERIALS, LUMBER STORES",,
16/07/2019,TRANSPORT,AMAZON.CO.UK MH7O564C4,STATIONERY,30.00,DIRECT MARKETING-OTHER DIRECT MARKETERS/NOT ELSEW.,,
16/07/2019,TRAINING AND DEVELOPMENT,S. COUNTIES JANITORIAL,TRAINING EXPENSES EXTERNAL GENERAL,77.52,"CLEANING AND MAINTENANCE, JANITORIAL SERVICES",,
16/07/2019,TRAINING AND DEVELOPMENT,THOMAS HOGG & SON,TRAINING EXPENSES EXTERNAL GENERAL,142.96,LAWN AND GARDEN SUPPLY STORES,,
16/07/2019,SOLD DAY TO DAY OPERATIONS,AMZNMKTPLACE,EQUIPMENT,49.90,MISCELLANEOUS AND SPECIALTY RETAIL STORES,,
16/07/2019,HOPE SERVICE - WEST,TESCO STORE 2590,PURCHASE OF FOOD (RAW MATERIALS),99.50,"GROCERY STORES, SUPERMARKETS",,
16/07/2019,MAYFORD HOUSE WOKING,BRITISH GAS OTP,ELECTRICITY,20.00,"UTLTS-ELCTRC, GAS, HEATING OIL, SANITARY, WATER",,
16/07/2019,ARUNDEL,TESCO STORES 5999,REFRESHMENT COSTS,140.94,"GROCERY STORES, SUPERMARKETS",,
16/07/2019,ACCESS 2 EDUCATION NW NON-MEDICAL,AMAZON.CO.UK MH6O96L34,CURRICULUM EQUIPMENT AND FURNITURE,10.50,DIRECT MARKETING-OTHER DIRECT MARKETERS/NOT ELSEW.,,
16/07/2019,PE/CDT MAINTENANCE OVERHEADS,SCREWFIX EPSOM,ITEMS PURCHASED FOR RE-SALE,26.40,"BUILDING MATERIALS, LUMBER STORES",,
16/07/2019,SERVICE DELIVERY RESOURCES,TICKETOFFICESALE,MISCELLANEOUS STAFF TRAVEL,43.40,PASSENGER RAILWAYS,,
16/07/2019,KARIBU COMMUNITY HOME,TESCO STORE 2812,PURCHASE OF FOOD (RAW MATERIALS),335.76,"GROCERY STORES, SUPERMARKETS",,
16/07/2019,COMMUNITY ARCHAEOLOGIST PROJECT,W M MORRISON,EQUIPMENT,33.63,SERVICE STATIONS WITH OR WITHOUT ANCILLARY SERVICE,,
16/07/2019,HILLSIDE,SAINSBURYS SACAT 0784,PURCHASE OF FOOD (RAW MATERIALS),4.70,"GROCERY STORES, SUPERMARKETS",,
16/07/2019,WALTON YOUTH CENTRE,LOCKS DIRECT,EQUIPMENT,2.08,HARDWARE STORES,,
16/07/2019,FAMILIES GUILDFORD,TESCO STORE 2590,PURCHASE OF FOOD (RAW MATERIALS),2.40,"GROCERY STORES, SUPERMARKETS",,
16/07/2019,ARUNDEL,ASDA GROCERIES ONLINE,CLEANING AND DOMESTIC SUPPLIES,87.34,"GROCERY STORES, SUPERMARKETS",,
16/07/2019,NE CARE - LAC,BOOK YOUR THEORY TEST,EDUC VISITS/HOLS/CAMPS/TOYS,45.99,SCHOOLS & EDUCATIONAL SVC-NOT ELSEWHERE CLASSIFIED,,
16/07/2019,KARIBU COMMUNITY HOME,AMZNMKTPLACE,EQUIPMENT,24.38,MISCELLANEOUS AND SPECIALTY RETAIL STORES,,
16/07/2019,KARIBU COMMUNITY HOME,AMZNMKTPLACE,EQUIPMENT,25.54,MISCELLANEOUS AND SPECIALTY RETAIL STORES,,
16/07/2019,KARIBU COMMUNITY HOME,AMZNMKTPLACE,EQUIPMENT,23.55,MISCELLANEOUS AND SPECIALTY RETAIL STORES,,
16/07/2019,MALLOW CRESCENT,SP   LAURA JAMES HOME,EQUIPMENT,413.98,"EQUIP, FURNITURE, HOME FURNSHNGS STRS (EXCPT APPL)",,
16/07/2019,ABBEYWOOD,AMZNMKTPLACE,DAY TO DAY MAINTENANCE,5.49,MISCELLANEOUS AND SPECIALTY RETAIL STORES,,
16/07/2019,HEATHSIDE,AMZNMKTPLACE,PURCHASE OF BUILDING MATERIALS,17.10,MISCELLANEOUS AND SPECIALTY RETAIL STORES,,
16/07/2019,SOLD CATERING,MILK&MORE,PURCHASE OF FOOD (RAW MATERIALS),49.92,DAIRY PRODUCTS STORES,,
16/07/2019,CHEYNE WALK COMMUNITY HOME,TESCO STORE 2560,PURCHASE OF FOOD (RAW MATERIALS),56.05,"GROCERY STORES, SUPERMARKETS",,
16/07/2019,CHEYNE WALK COMMUNITY HOME,TESCO STORE 2560,REFRESHMENT COSTS,39.10,"GROCERY STORES, SUPERMARKETS",,
16/07/2019,SHELL UK LICENSING,WWW.RUSHCLIFFE.GOV.UK,FEES,192.00,GOVERNMENT SERVICES-NOT ELSEWHERE CLASSIFIED,,
16/07/2019,NW CARE - CP & COURT LAC,SURREY CC CARD PAY,OTHER COMMUNITY CARE VOL,11.00,COMPUTER NETWORK/INFORMATION SERVICES,,
16/07/2019,TARGETED INTERVENTION,SQUIRES GARDEN CENTRE,EDUC VISITS/HOLS/CAMPS/TOYS,6.45,LAWN AND GARDEN SUPPLY STORES,,
16/07/2019,ACL CENTRAL EXPENDITURE,TESCO STORE 2160,REFRESHMENT COSTS,185.91,"GROCERY STORES, SUPERMARKETS",,
16/07/2019,TRANSPORT,MEAD ENGINEERING SERVI,VEHICLE REPAIRS AND MAINTENANCE,76.50,"ARCHITECTURAL, ENGINEERING, AND SURVEYING SERVICES",,
16/07/2019,WEB OPERATIONS TEAM,EB  INTRANET NOW THE C,TRAINING EXPENSES EXTERNAL GENERAL,178.80,BUSINESS SERVICES-NOT ELSEWHERE CLASSIFIED,,
16/07/2019,ROW VOLUNTEERS WEST                     ,SHELL BURNT CM 199,PETROL/DIESEL ALL OFF BUSINESS,10.00,SERVICE STATIONS WITH OR WITHOUT ANCILLARY SERVICE,,
16/07/2019,DOWNLANDS COUNTRYSIDE PROJECT,SUMUP   CAPITAL ON THE,UPKEEP OF GROUNDS,13.80,"CLEANING, GARMENT, AND LAUNDRY SERVICES",,
16/07/2019,BURBANK COMMUNITY HOME,W M MORRISON STORE,PURCHASE OF FOOD (RAW MATERIALS),8.50,"GROCERY STORES, SUPERMARKETS",,
16/07/2019,BURBANK COMMUNITY HOME,W M MORRISON STORE,"CLOTHING, UNIFORM AND LAUNDRY",14.00,"GROCERY STORES, SUPERMARKETS",,
16/07/2019,SOLD DAY TO DAY OPERATIONS,AMZNMKTPLACE,EQUIPMENT,19.98,MISCELLANEOUS AND SPECIALTY RETAIL STORES,,
16/07/2019,ACL CENTRAL EXPENDITURE,AMZNMKTPLACE,EQUIPMENT,7.95,MISCELLANEOUS AND SPECIALTY RETAIL STORES,,
16/07/2019,ACL CENTRAL EXPENDITURE,AMZNMKTPLACE,EQUIPMENT,16.99,MISCELLANEOUS AND SPECIALTY RETAIL STORES,,
16/07/2019,ABBEYWOOD,AMAZON.CO.UK MH0GO7FN4,DAY TO DAY MAINTENANCE,9.96,DIRECT MARKETING-OTHER DIRECT MARKETERS/NOT ELSEW.,,
17/07/2019,LOCAL DELIVERY GROUP,ARCO LTD,EQUIPMENT,133.32,MEN'S/WOMEN'S/CHILDREN'S UNIFORMS/COMMERCIAL CLOTH,,
17/07/2019,TRANSPORT,CALLANCOTE LTD,OPERATIONAL FIRE EQUIPMENT,710.40,INDUSTRIAL SUPPLIES NOT ELSEWHERE CLASSIFIED,,
17/07/2019,CHALKMEAD,AMZNMKTPLACE AMAZON.CO,DAY TO DAY MAINTENANCE,14.79,MISCELLANEOUS AND SPECIALTY RETAIL STORES,,
17/07/2019,ENSEMBLES & TOURS,WESTMINSTER MUSIC,EXT SCH RESOURCES - COMMUNITY,120.00,FINES,,
17/07/2019,KARIBU COMMUNITY HOME,SPORTSDIRECT.COM,EQUIPMENT,12.97,SPORTING GOODS STORES,,
17/07/2019,EXTENDED HOPE,TESCO STORE 2590,PURCHASE OF FOOD (RAW MATERIALS),92.21,"GROCERY STORES, SUPERMARKETS",,
17/07/2019,BURBANK COMMUNITY HOME,COSTA COFFEE 43037185,REFRESHMENT COSTS,2.95,FAST FOOD RESTAURANTS,,
17/07/2019,LEGAL EXPENSES CHILD ADULT EDUC TEAM,GEN REGISTER OFFICE,FEES,15.00,GOVERNMENT SERVICES-NOT ELSEWHERE CLASSIFIED,,
17/07/2019,RUTH HOUSE,AMZNMKTPLACE,EQUIPMENT,7.45,MISCELLANEOUS AND SPECIALTY RETAIL STORES,,
17/07/2019,RUTH HOUSE,GIFFGAFF,TELECOMMUNICATION CHARGES,6.00,TELECOM INCL PREPAID/RECURRING PHONE SVCS,,
17/07/2019,RUTH HOUSE,AMZNMKTPLACE,EQUIPMENT,8.32,MISCELLANEOUS AND SPECIALTY RETAIL STORES,,
17/07/2019,RUTH HOUSE,NOWTV.COM/BILLINGHELP,EDUC VISITS/HOLS/CAMPS/TOYS,33.99,"CABLE, SATELLITE, OTHER PAY TELEVISION, RADIO SVCS",,
17/07/2019,RUTH HOUSE,W M MORRISON STORE,EQUIPMENT,31.00,"GROCERY STORES, SUPERMARKETS",,
17/07/2019,BIRCHLANDS,AMZNMKTPLACE AMAZON.CO,EQUIPMENT,111.60,MISCELLANEOUS AND SPECIALTY RETAIL STORES,,
17/07/2019,ORCHARD COURT,SCREWFIX DIRECT,EQUIPMENT,339.10,HOME SUPPLY WAREHOUSE STORES,,
17/07/2019,FAMILIES TANDRIDGE,TESCO STORE 2560,EQUIPMENT,7.60,"GROCERY STORES, SUPERMARKETS",,
17/07/2019,ACL CENTRAL EXPENDITURE,AMZNMKTPLACE,EQUIPMENT,11.48,MISCELLANEOUS AND SPECIALTY RETAIL STORES,,
17/07/2019,ACL CENTRAL EXPENDITURE,AMAZON.CO.UK MH4W96ZZ4,EQUIPMENT,8.86,DIRECT MARKETING-OTHER DIRECT MARKETERS/NOT ELSEW.,,
17/07/2019,TRANSPORT,W B FLOOR MACHINES,EQUIPMENT,127.63,INDUSTRIAL SUPPLIES NOT ELSEWHERE CLASSIFIED,,
17/07/2019,CORE ACTIVITY                           ,MAILCHIMP    MONTHLY,COMPUTER SOFTWARE,40.64,DIRECT MARKETING-CONTINUITY/SUBSCRIPTION MERCHANTS,,
17/07/2019,HOPE SERVICE - WEST,TESCO STORES 4502,PURCHASE OF FOOD (RAW MATERIALS),2.64,"GROCERY STORES, SUPERMARKETS",,
17/07/2019,LOWER MOLE COUNTRYSIDE PROJECT,SCREWFIX DIRECT,EQUIPMENT,39.98,HOME SUPPLY WAREHOUSE STORES,,
17/07/2019,CHALKMEAD,AMZNMKTPLACE AMAZON.CO,E25 CATERING EQUIPMENT,24.00,MISCELLANEOUS AND SPECIALTY RETAIL STORES,,
17/07/2019,ISPSB - ADAPTATIONS & IMPROVEMENTS,AMZNMKTPLACE AMAZON.CO,EDUC VISITS/HOLS/CAMPS/TOYS,3.68,MISCELLANEOUS AND SPECIALTY RETAIL STORES,,
17/07/2019,ISPSB - ADAPTATIONS & IMPROVEMENTS,AMZNMKTPLACE AMAZON.CO,EDUC VISITS/HOLS/CAMPS/TOYS,3.69,MISCELLANEOUS AND SPECIALTY RETAIL STORES,,
17/07/2019,ISPSB - ADAPTATIONS & IMPROVEMENTS,PETA UK LTD,EDUC VISITS/HOLS/CAMPS/TOYS,60.60,HARDWARE EQUIPMENT AND SUPPLIES,,
17/07/2019,APPLEWOOD,LISCLARE LIMITED,EQUIPMENT,718.80,DENTAL/LAB/MED/OPHTHALMIC HOSP EQUIP & SUPPLIES,,
17/07/2019,APPLEWOOD,LISCLARE LIMITED,EQUIPMENT,655.79,DENTAL/LAB/MED/OPHTHALMIC HOSP EQUIP & SUPPLIES,,
17/07/2019,APPLEWOOD,ARJO UK LIMITED,EQUIPMENT,104.40,DENTAL/LAB/MED/OPHTHALMIC HOSP EQUIP & SUPPLIES,,
17/07/2019,BURBANK COMMUNITY HOME,SAINSBURYS TO YOU 0686,PURCHASE OF FOOD (RAW MATERIALS),285.83,"GROCERY STORES, SUPERMARKETS",,
17/07/2019,IMT SUPPORT FOR FIRE & RESCUE,HOMEBASE LTD 247,COMPUTER HARDWARE,53.43,"BUILDING MATERIALS, LUMBER STORES",,
17/07/2019,SOLD DAY TO DAY OPERATIONS,AMZNMKTPLACE,EQUIPMENT,19.46,MISCELLANEOUS AND SPECIALTY RETAIL STORES,,
17/07/2019,SOLD DAY TO DAY OPERATIONS,SAINSBURYS 2053,REFRESHMENT COSTS,44.45,"GROCERY STORES, SUPERMARKETS",,
17/07/2019,ASSET PLANNING - OPERATIONS,BRITISH STANDARDS,BOOKS,823.20,BUSINESS SERVICES-NOT ELSEWHERE CLASSIFIED,,
17/07/2019,HILLSIDE,SAINSBURYS 0675,PURCHASE OF FOOD (RAW MATERIALS),40.54,"GROCERY STORES, SUPERMARKETS",,
17/07/2019,ACL CENTRAL EXPENDITURE,SOLARWINDS MSP,COMPUTER SOFTWARE,35.99,"COMPUTERS, COMPUTER PERIPHERAL EQUIPMENT, SOFTWARE",,
17/07/2019,HOPE SERVICE - WEST,TESCO STORES 6320,PURCHASE OF FOOD (RAW MATERIALS),20.05,"GROCERY STORES, SUPERMARKETS",,
17/07/2019,HOPE SERVICE - WEST,WELCOME BREAK STARBUCK,REFRESHMENT COSTS,12.05,"MISC FOOD STORE-CONVENIENCE,MRKT,SPLTY,VENDNG MACS",,
17/07/2019,CHILDREN'S RIGHTS TEAM,DOMINOS PIZZA UK & IRE,REFRESHMENT COSTS,59.98,"EATING PLACES, RESTAURANTS",,
17/07/2019,AD ECONOMY TRANSPORT AND PLANNING,WWW.BACKCS.CO.UK,EQUIPMENT,64.74,DENTAL/LAB/MED/OPHTHALMIC HOSP EQUIP & SUPPLIES,,
17/07/2019,ACL CENTRAL EXPENDITURE,AMZNMKTPLACE,COMPUTER HARDWARE,13.48,MISCELLANEOUS AND SPECIALTY RETAIL STORES,,
17/07/2019,BOOKS - ADULT FICTION                   ,THE COBHAM BOOKSHOP,LIBRARY RESOURCES,15.28,BOOK STORES,,
17/07/2019,ACL CENTRAL EXPENDITURE,AMAZON.CO.UK MH9XG2LY4,EQUIPMENT,16.80,DIRECT MARKETING-OTHER DIRECT MARKETERS/NOT ELSEW.,,
17/07/2019,ACL CENTRAL EXPENDITURE,AMZNMKTPLACE,EQUIPMENT,66.85,MISCELLANEOUS AND SPECIALTY RETAIL STORES,,
17/07/2019,TRANSPORT,AMAZON PRIME MH9H97L74,STATIONERY,7.99,DIRECT MARKETING-CONTINUITY/SUBSCRIPTION MERCHANTS,,
17/07/2019,TRANSPORT,AMZNMKTPLACE,OPERATIONAL FIRE EQUIPMENT,75.00,MISCELLANEOUS AND SPECIALTY RETAIL STORES,,
17/07/2019,PE/CDT MAINTENANCE OVERHEADS,MARGNOR FASTENERS,EQUIPMENT,47.45,MISCELLANEOUS AND SPECIALTY RETAIL STORES,,
17/07/2019,PE/CDT MAINTENANCE OVERHEADS,WWW.ARCO.CO.UK,EQUIPMENT,57.59,INDUSTRIAL SUPPLIES NOT ELSEWHERE CLASSIFIED,,
17/07/2019,SHELL UK LICENSING,WIRRAL MBC,FEES,452.00,GOVERNMENT SERVICES-NOT ELSEWHERE CLASSIFIED,,
17/07/2019,SHELL UK LICENSING,CHESHIRE EAST CRIM ECO,FEES,870.00,GOVERNMENT SERVICES-NOT ELSEWHERE CLASSIFIED,,
17/07/2019,SHELL UK LICENSING,"CASTLE B,COUNCIL",FEES,113.00,"CLUBS-CNTRY,MBRSHIP(ATHLET,REC,SPRTS,PRIVATE GOLF",,
17/07/2019,PROGRAMME TEAM,AMAZON.CO.UK MH62O7LV4,EQUIPMENT,27.00,DIRECT MARKETING-OTHER DIRECT MARKETERS/NOT ELSEW.,,
17/07/2019,KARIBU COMMUNITY HOME,1ST PLACE,EQUIPMENT,432.00,"UTLTS-ELCTRC, GAS, HEATING OIL, SANITARY, WATER",,
17/07/2019,KARIBU COMMUNITY HOME,AMZNMKTPLACE,EQUIPMENT,33.90,MISCELLANEOUS AND SPECIALTY RETAIL STORES,,
17/07/2019,SOUTH WEST OUTREACH,SAINSBURYS TO YOU 0652,PURCHASE OF FOOD (RAW MATERIALS),18.55,"GROCERY STORES, SUPERMARKETS",,
17/07/2019,SOUTH WEST OUTREACH,SAINSBURYS TO YOU 0652,PURCHASE OF FOOD (RAW MATERIALS),93.70,"GROCERY STORES, SUPERMARKETS",,
17/07/2019,SE CARE - CP & COURT LAC,UNIQUE SKILLS COACHING,OTHER COMMUNITY CARE VOL,75.00,PROFESSIONAL SERVICES-NOT ELSEWHERE CLASSIFIED,,
17/07/2019,CHILDREN WITH DISABILITIES TEAM EAST,THE OLD REINDEER,INDEPENDENT LIVING PLACEMENTS,65.00,"BAR,LOUNGE,DISCO,NIGHTCLUB,TAVERN-ALCOHOLIC DRINKS",,
17/07/2019,TARGETED INTERVENTION,TEAM SPORT FARNBOROUGH,EDUC VISITS/HOLS/CAMPS/TOYS,120.00,"AMUSEMENT PARKS,CARNIVALS,CIRCUS,FORTUNE TELLERS",,
17/07/2019,TARGETED INTERVENTION,SQUIRES GARDEN CENTRE,EDUC VISITS/HOLS/CAMPS/TOYS,9.50,LAWN AND GARDEN SUPPLY STORES,,
17/07/2019,ACL CENTRAL EXPENDITURE,AMZNMKTPLACE,EQUIPMENT,3.60,MISCELLANEOUS AND SPECIALTY RETAIL STORES,,
17/07/2019,ABBEYWOOD,AMAZON.CO.UK MH3092LU4,PURCHASE OF FOOD (RAW MATERIALS),32.53,DIRECT MARKETING-OTHER DIRECT MARKETERS/NOT ELSEW.,,
17/07/2019,HEATHSIDE,AMZNMKTPLACE,PURCHASE OF BUILDING MATERIALS,33.90,MISCELLANEOUS AND SPECIALTY RETAIL STORES,,
17/07/2019,HEATHSIDE,AMZNMKTPLACE,SECURITY ALARM MAINTENANCE,8.99,MISCELLANEOUS AND SPECIALTY RETAIL STORES,,
17/07/2019,HEATHSIDE,AMZNMKTPLACE,PURCHASE OF BUILDING MATERIALS,92.60,MISCELLANEOUS AND SPECIALTY RETAIL STORES,,
17/07/2019,FAIRCROFT COMMUNITY HOME,CARLUCCIOS COBHAM,REFRESHMENT COSTS,27.65,"EATING PLACES, RESTAURANTS",,
17/07/2019,CHEYNE WALK COMMUNITY HOME,TESCO-STORES 6647,PURCHASE OF FOOD (RAW MATERIALS),199.07,"GROCERY STORES, SUPERMARKETS",,
17/07/2019,ACL CENTRAL EXPENDITURE,TESCO STORE 2160,REFRESHMENT COSTS,58.10,"GROCERY STORES, SUPERMARKETS",,
17/07/2019,ACL CENTRAL EXPENDITURE,WAITROSE 181,REFRESHMENT COSTS,3.14,"GROCERY STORES, SUPERMARKETS",,
17/07/2019,ACL CENTRAL EXPENDITURE,TESCO STORE 2160,REFRESHMENT COSTS,-1.38,"GROCERY STORES, SUPERMARKETS",,
17/07/2019,ACL CENTRAL EXPENDITURE,ALDI STORES LTD,REFRESHMENT COSTS,5.58,"GROCERY STORES, SUPERMARKETS",,
17/07/2019,ROW VOLUNTEERS WEST                     ,METHOLD VEHICLE HIRE,HIRE OF VEHICLES,40.00,AUTOMOBILE RENTAL AGENCY-NOT ELSEWHERE CLASSIFIED,,
17/07/2019,KARIBU COMMUNITY HOME,AMZNMKTPLACE,EQUIPMENT,55.00,MISCELLANEOUS AND SPECIALTY RETAIL STORES,,
18/07/2019,KARIBU COMMUNITY HOME,BP WOODCOTE S/SERVE,DESCRIPTION &AWARD LONG SERVICE,17.00,SERVICE STATIONS WITH OR WITHOUT ANCILLARY SERVICE,,
18/07/2019,NW NIL RECOURSE TO PUBLIC FUNDS CARE,PREMIER INN,INDEPENDENT LIVING PLACEMENTS,647.50,PREMIER INN,,
18/07/2019,HOPE SERVICE - WEST,NBX CRAGGY ISLAND,EDUC VISITS/HOLS/CAMPS/TOYS,75.00,RECREATION SERVICES (NOT ELSEWHERE CLASSIFIED),,
18/07/2019,CHALKMEAD,EUROCELL,DAY TO DAY MAINTENANCE,63.13,"BUILDING MATERIALS, LUMBER STORES",,
18/07/2019,CHALKMEAD,TOOLSTATION LTD,DAY TO DAY MAINTENANCE,63.21,HARDWARE STORES,,
18/07/2019,STRATEGIC DIRECTOR,AMZNMKTPLACE,MISCELLANEOUS STAFF TRAVEL,36.72,MISCELLANEOUS AND SPECIALTY RETAIL STORES,,
18/07/2019,STRATEGIC DIRECTOR,AMZNMKTPLACE,EQUIPMENT,53.82,MISCELLANEOUS AND SPECIALTY RETAIL STORES,,
18/07/2019,RUTH HOUSE,HOME BARGAINS BYFLEET,EQUIPMENT,280.75,HARDWARE STORES,,
18/07/2019,RUTH HOUSE,AMZNMKTPLACE,EQUIPMENT,7.99,MISCELLANEOUS AND SPECIALTY RETAIL STORES,,
18/07/2019,RUTH HOUSE,AMZNMKTPLACE,EQUIPMENT,27.98,MISCELLANEOUS AND SPECIALTY RETAIL STORES,,
18/07/2019,RUTH HOUSE,AMZNMKTPLACE,EQUIPMENT,34.97,MISCELLANEOUS AND SPECIALTY RETAIL STORES,,
18/07/2019,MEADOWSIDE,SCREWFIX DIRECT,DAY TO DAY MAINTENANCE,12.99,HOME SUPPLY WAREHOUSE STORES,,
18/07/2019,SE CARE - CP & COURT LAC,HM PASSPORT OFFICE,OTHER COMMUNITY CARE VOL,92.50,GOVERNMENT SERVICES-NOT ELSEWHERE CLASSIFIED,,
18/07/2019,NE CARE - LAC,TRAVELODGE,OTHER COMMUNITY CARE VOL,119.50,TRAVELODGE,,
18/07/2019,HOPE SERVICE - WEST,SAINSBURYS TO YOU 0686,PURCHASE OF FOOD (RAW MATERIALS),40.85,"GROCERY STORES, SUPERMARKETS",,
18/07/2019,FAMILIES ELMBRIDGE,MOLESEY PET & AQUATIC,EQUIPMENT,15.00,PET SHOPS - PET FOODS AND SUPPLIES,,
18/07/2019,ACL CENTRAL EXPENDITURE,AMZNMKTPLACE AMAZON.CO,EQUIPMENT,49.99,MISCELLANEOUS AND SPECIALTY RETAIL STORES,,
18/07/2019,HOPE SERVICE - WEST,SAINSBURYS TO YOU 0683,PURCHASE OF FOOD (RAW MATERIALS),82.15,"GROCERY STORES, SUPERMARKETS",,
18/07/2019,ISPSB - ADAPTATIONS & IMPROVEMENTS,AMZNMKTPLACE AMAZON.CO,EDUC VISITS/HOLS/CAMPS/TOYS,10.45,MISCELLANEOUS AND SPECIALTY RETAIL STORES,,
18/07/2019,SOLD CATERING,TESCO STORES,PURCHASE OF FOOD (RAW MATERIALS),23.18,"GROCERY STORES, SUPERMARKETS",,
18/07/2019,MALLOW CRESCENT,SPORTSDIRECT.COM,EQUIPMENT,-130.99,SPORTING GOODS STORES,,
18/07/2019,HOPE SERVICE - WEST,KFC,REFRESHMENT COSTS,6.38,FAST FOOD RESTAURANTS,,
18/07/2019,LIBERTAS COMMUNITY HOME,HOMEBASE 267,DAY TO DAY MAINTENANCE,72.00,HOME SUPPLY WAREHOUSE STORES,,
18/07/2019,LOWER MOLE COUNTRYSIDE PROJECT,ENGINEERING & HIRE LIM,EQUIPMENT,158.52,"ARCHITECTURAL, ENGINEERING, AND SURVEYING SERVICES",,
18/07/2019,HOPE SERVICE - WEST,SAINSBURYS SACAT(4409),PURCHASE OF FOOD (RAW MATERIALS),1.35,"GROCERY STORES, SUPERMARKETS",,
18/07/2019,SOLD ESTATES MANAGEMENT,SCREWFIX DIRECT,EQUIPMENT,133.01,HOME SUPPLY WAREHOUSE STORES,,
18/07/2019,BIKEABILITY - CYCLE TRAINING,AMAZON.CO.UK MH1VZ9ND4,EQUIPMENT,11.99,DIRECT MARKETING-OTHER DIRECT MARKETERS/NOT ELSEW.,,
18/07/2019,BIKEABILITY - CYCLE TRAINING,THE BIKEABILITY TRUST,EQUIPMENT,"2,403.96",STATIONERY/OFFICE SUPPLIES/PRINTING & WRITING PAP.,,
18/07/2019,ASSET INVESTMENT & REGAN,AMZNMKTPLACE,EQUIPMENT,28.12,MISCELLANEOUS AND SPECIALTY RETAIL STORES,,
18/07/2019,ARUNDEL,TESCO STORES 5999,REFRESHMENT COSTS,99.90,"GROCERY STORES, SUPERMARKETS",,
18/07/2019,PE/CDT MAINTENANCE OVERHEADS,SCREWFIX DIRECT,EQUIPMENT,296.18,HOME SUPPLY WAREHOUSE STORES,,
18/07/2019,TS SERVICE MANAGEMENT,AMAZON.CO.UK MH3E57ZE4,EQUIPMENT,9.99,DIRECT MARKETING-OTHER DIRECT MARKETERS/NOT ELSEW.,,
18/07/2019,TS SERVICE MANAGEMENT,AMAZON.CO.UK MH4LZ1ND4,EQUIPMENT,9.99,DIRECT MARKETING-OTHER DIRECT MARKETERS/NOT ELSEW.,,
18/07/2019,TS SERVICE MANAGEMENT,AMAZON.CO.UK MH9D63NF4,EQUIPMENT,9.99,DIRECT MARKETING-OTHER DIRECT MARKETERS/NOT ELSEW.,,
18/07/2019,SERVICE DELIVERY RESOURCES,MARKS&SPENCER PLC,REFRESHMENT COSTS,86.00,"GROCERY STORES, SUPERMARKETS",,
18/07/2019,TRAINING AND DEVELOPMENT,THE ROYAL MARITIME CLU,TRAINING EXPENSES EXTERNAL GENERAL,396.00,"LODGING-HOTELS,MOTELS,RESORTS-NOT CLASSIFIED",,
18/07/2019,TRAINING AND DEVELOPMENT,JURYS INN WATERFRONT B,SUBSISTENCE AND CONFERENCE EXPENSES,374.00,"LODGING-HOTELS,MOTELS,RESORTS-NOT CLASSIFIED",,
18/07/2019,HILLSIDE,SAINSBURYS SACAT 0784,PURCHASE OF FOOD (RAW MATERIALS),3.00,"GROCERY STORES, SUPERMARKETS",,
18/07/2019,HILLSIDE,SAINSBURYS SACAT 0784,PURCHASE OF FOOD (RAW MATERIALS),25.05,"GROCERY STORES, SUPERMARKETS",,
18/07/2019,FAIRCROFT COMMUNITY HOME,STARBUCKS,REFRESHMENT COSTS,3.80,FAST FOOD RESTAURANTS,,
18/07/2019,FAIRCROFT COMMUNITY HOME,ROSE CAR PARK,MISCELLANEOUS STAFF TRAVEL,3.40,GOVERNMENT SERVICES-NOT ELSEWHERE CLASSIFIED,,
18/07/2019,,PIRANHA COMICS,EQUIPMENT,21.98,BOOK STORES,,
18/07/2019,FAIRCROFT COMMUNITY HOME,MCDONALDS,REFRESHMENT COSTS,6.41,FAST FOOD RESTAURANTS,,
18/07/2019,SHELL UK LICENSING,BASSETLAW D.C.,FEES,305.00,GOVERNMENT SERVICES-NOT ELSEWHERE CLASSIFIED,,
18/07/2019,SHELL UK LICENSING,PAYMENT TO HDC,FEES,644.00,GOVERNMENT SERVICES-NOT ELSEWHERE CLASSIFIED,,
18/07/2019,SHELL UK LICENSING,SCC FRONTLINE/CALL CEN,FEES,"1,469.00",GOVERNMENT SERVICES-NOT ELSEWHERE CLASSIFIED,,
18/07/2019,SHELL UK LICENSING,SE SHARED SERVICES,FEES,375.00,SCHOOLS & EDUCATIONAL SVC-NOT ELSEWHERE CLASSIFIED,,
18/07/2019,MENTAL HEALTH MANAGEMENT TEAM,WORTHING COUNTRY C,EQUIPMENT,75.00,FINES,,
18/07/2019,COBHAM CHILDRENS CENTRE,WAITROSE 176,REFRESHMENT COSTS,15.32,"GROCERY STORES, SUPERMARKETS",,
18/07/2019,NATIONAL TRADING STANDARDS SCAM TEAM,TRADING STANDARDS INST,PURCHASE CARD TRANSACTION LOG DEFAULT,90.00,DIRECT MARKETING-COMBINATION CATALOG/RETAIL MERCH.,,
18/07/2019,NATIONAL TRADING STANDARDS SCAM TEAM,C & CB HOTELS LIMITED,PURCHASE CARD TRANSACTION LOG DEFAULT,238.50,"LODGING-HOTELS,MOTELS,RESORTS-NOT CLASSIFIED",,
18/07/2019,SHELL UK LICENSING,BRENTWOOD BOROUGH COUN,FEES,192.00,GOVERNMENT SERVICES-NOT ELSEWHERE CLASSIFIED,,
18/07/2019,SHELL UK LICENSING,GATESHEAD COUNCIL INT,FEES,113.00,GOVERNMENT SERVICES-NOT ELSEWHERE CLASSIFIED,,
18/07/2019,SHELL UK LICENSING,GATESHEAD COUNCIL INT,FEES,113.00,GOVERNMENT SERVICES-NOT ELSEWHERE CLASSIFIED,,
18/07/2019,SHELL UK LICENSING,WWW.TUNBRIDGEWELLS.GOV,FEES,113.00,GOVERNMENT SERVICES-NOT ELSEWHERE CLASSIFIED,,
18/07/2019,SHELL UK LICENSING,HAMPSHIRE COUNTY COUNC,FEES,750.00,GOVERNMENT SERVICES-NOT ELSEWHERE CLASSIFIED,,
18/07/2019,NW LAC AND LEAVING CARE,WWW.ANYVAN.COM,OTHER COMMUNITY CARE VOL,109.00,"FREIGHT CARRIER,TRUCKING-LCL/LNG DIST, MVG/STORAGE",,
18/07/2019,STRATEGIC DIRECTOR,ANDREW PAGE,EQUIPMENT,49.32,"AUTOMOTIVE PARTS, ACCESSORIES STORES",,
18/07/2019,TARGETED INTERVENTION,SQUIRES GARDEN CENTRE,EDUC VISITS/HOLS/CAMPS/TOYS,7.00,LAWN AND GARDEN SUPPLY STORES,,
18/07/2019,ACL CENTRAL EXPENDITURE,AMAZON.CO.UK MH0ZA5N24,EQUIPMENT,41.70,DIRECT MARKETING-OTHER DIRECT MARKETERS/NOT ELSEW.,,
18/07/2019,FIRE & RESCUE COMMUNITY SAFETY,DOWNLAND VETERINARY GR,PURCHASE CARD TRANSACTION LOG DEFAULT,313.49,VETERINARY SERVICES,,
18/07/2019,TARGETED INTERVENTION,LIGHTWATER CAFE,EDUC VISITS/HOLS/CAMPS/TOYS,6.10,"EATING PLACES, RESTAURANTS",,
18/07/2019,ABBEYWOOD,AMZNMKTPLACE AMAZON.CO,DAY TO DAY MAINTENANCE,9.98,MISCELLANEOUS AND SPECIALTY RETAIL STORES,,
18/07/2019,ABBEYWOOD,AMZNMKTPLACE AMAZON.CO,FURNITURE,324.98,MISCELLANEOUS AND SPECIALTY RETAIL STORES,,
18/07/2019,ABBEYWOOD,COMPLETE CARE SHOP,FURNITURE,116.75,MISCELLANEOUS GENERAL MERCHANDISE,,
18/07/2019,ABBEYWOOD,AMZNMKTPLACE AMAZON.CO,FURNITURE,72.99,MISCELLANEOUS AND SPECIALTY RETAIL STORES,,
18/07/2019,ABBEYWOOD,AMZNMKTPLACE AMAZON.CO,MEDICAL EXPENSES,51.54,MISCELLANEOUS AND SPECIALTY RETAIL STORES,,
18/07/2019,HEATHSIDE,AMAZON.CO.UK MH3KO7ZQ4,DAY TO DAY MAINTENANCE,19.48,DIRECT MARKETING-OTHER DIRECT MARKETERS/NOT ELSEW.,,
18/07/2019,HEATHSIDE,NURSECALLMATS.CO.UK,MEDICAL EXPENSES,108.00,"EQUIP, FURNITURE, HOME FURNSHNGS STRS (EXCPT APPL)",,
18/07/2019,FAIRCROFT COMMUNITY HOME,MCDONALDS,REFRESHMENT COSTS,1.99,FAST FOOD RESTAURANTS,,
18/07/2019,ADOPTION TEAM,AMZNMKTPLACE,EQUIPMENT,89.99,MISCELLANEOUS AND SPECIALTY RETAIL STORES,,
18/07/2019,ADOPTION TEAM,WWW.SPEAKIT.INFO,EQUIPMENT,297.60,"OFFICE, SCHOOL SUPPLY, AND STATIONERY STORES",,
18/07/2019,SOLD CURRICULUM PROGRAMME DELIVERY,SWINLEY BIKE HUB LTD,CURRICULUM CONSUMABLES,40.00,MOTORCYCLE SHOPS AND DEALERS,,
18/07/2019,SOLD CURRICULUM PROGRAMME DELIVERY,3C_ INDIGO PARK HIGH S,EDUC VISITS/HOLS/CAMPS/TOYS,2.00,AUTOMOBILE PARKING LOTS AND GARAGES,,
18/07/2019,ARUNDEL,AMAZON.CO.UK MH88Q9ZF4,EQUIPMENT,34.99,DIRECT MARKETING-OTHER DIRECT MARKETERS/NOT ELSEW.,,
18/07/2019,ARUNDEL,AMZNMKTPLACE,EQUIPMENT,10.99,MISCELLANEOUS AND SPECIALTY RETAIL STORES,,
18/07/2019,ARUNDEL,AMZNMKTPLACE,EQUIPMENT,6.75,MISCELLANEOUS AND SPECIALTY RETAIL STORES,,
18/07/2019,ARUNDEL,AMAZON.CO.UK MH8XB4N04,EQUIPMENT,38.98,DIRECT MARKETING-OTHER DIRECT MARKETERS/NOT ELSEW.,,
18/07/2019,DOWNLANDS COUNTRYSIDE PROJECT,HOMEBASE LTD 247,PURCHASE OF BUILDING MATERIALS,22.00,HOME SUPPLY WAREHOUSE STORES,,
18/07/2019,EXTENDED HOPE,TESCO STORE 2590,PURCHASE OF FOOD (RAW MATERIALS),58.45,"GROCERY STORES, SUPERMARKETS",,
18/07/2019,COMMUNICATIONS,GOOGLE  ADS2060179426,PUBLICITY,500.00,DIRECT MARKETING-CONTINUITY/SUBSCRIPTION MERCHANTS,,
18/07/2019,COMMUNICATIONS - PUBLICITY,FURNITURE@WORK LIMITED,EQUIPMENT,81.00,"EQUIP, FURNITURE, HOME FURNSHNGS STRS (EXCPT APPL)",,
18/07/2019,CHALKMEAD,AMZNMKTPLACE,E25 CATERING EQUIPMENT,29.20,MISCELLANEOUS AND SPECIALTY RETAIL STORES,,
18/07/2019,CHALKMEAD,AMZNMKTPLACE,E25 CATERING EQUIPMENT,64.95,MISCELLANEOUS AND SPECIALTY RETAIL STORES,,
18/07/2019,ACL CENTRAL EXPENDITURE,AMAZON.CO.UK MH49O8N24,COMPUTER HARDWARE,87.61,DIRECT MARKETING-OTHER DIRECT MARKETERS/NOT ELSEW.,,
19/07/2019,TRANSPORT,BOOKER LIMITED REDHILL,DESCRIPTION &AWARD LONG SERVICE,221.26,CATERERS,,
19/07/2019,ISPSB - ADAPTATIONS & IMPROVEMENTS,AMZNMKTPLACE AMAZON.CO,EQUIPMENT,12.19,MISCELLANEOUS AND SPECIALTY RETAIL STORES,,
19/07/2019,APPLEWOOD,ASDA GROCERIES ONLINE,PURCHASE OF FOOD (RAW MATERIALS),178.29,"GROCERY STORES, SUPERMARKETS",,
19/07/2019,CS BUSINESS SUPPORT EAST,THE WOKING HOTEL,DESCRIPTION &AWARD LONG SERVICE,997.80,"LODGING-HOTELS,MOTELS,RESORTS-NOT CLASSIFIED",,
19/07/2019,APPLEWOOD,ASDA GROCERIES ONLINE,PURCHASE OF FOOD (RAW MATERIALS),-3.47,"GROCERY STORES, SUPERMARKETS",,
19/07/2019,LOWER MOLE COUNTRYSIDE PROJECT,SAINSBURYS SACAT 0683,REFRESHMENT COSTS,17.10,"GROCERY STORES, SUPERMARKETS",,
19/07/2019,SOLD MARKETING TEAM,AMZNMKTPLACE AMAZON.CO,EQUIPMENT,29.20,MISCELLANEOUS AND SPECIALTY RETAIL STORES,,
19/07/2019,HILLSIDE,SAINSBURYS SACAT 0784,PURCHASE OF FOOD (RAW MATERIALS),18.60,"GROCERY STORES, SUPERMARKETS",,
19/07/2019,LIBERTAS COMMUNITY HOME,SAINSBURYS SACAT 0652,PURCHASE OF FOOD (RAW MATERIALS),13.10,"GROCERY STORES, SUPERMARKETS",,
19/07/2019,CHILDREN'S RIGHTS TEAM,CANVA  PRO MONTHLY,COMPUTER SOFTWARE,10.67,PHOTOGRAPHIC STUDIOS,,
19/07/2019,WOODLANDS COMMUNITY HOME,WICKES WOKING,EQUIPMENT,13.98,HOME SUPPLY WAREHOUSE STORES,,
19/07/2019,RUTH HOUSE,AMZNMKTPLACE,EQUIPMENT,50.00,MISCELLANEOUS AND SPECIALTY RETAIL STORES,,
19/07/2019,RUTH HOUSE,AMZNMKTPLACE,EQUIPMENT,50.00,MISCELLANEOUS AND SPECIALTY RETAIL STORES,,
19/07/2019,RUTH HOUSE,WWW.PARENTMAIL.CO.,PURCHASE OF FOOD (RAW MATERIALS),70.00,SCHOOLS & EDUCATIONAL SVC-NOT ELSEWHERE CLASSIFIED,,
19/07/2019,RUTH HOUSE,WWW.PARENTMAIL.CO.,PURCHASE OF FOOD (RAW MATERIALS),80.00,SCHOOLS & EDUCATIONAL SVC-NOT ELSEWHERE CLASSIFIED,,
19/07/2019,HOPE SERVICE - WEST,AMZNMKTPLACE AMAZON.CO,MEDICAL EXPENSES,3.49,MISCELLANEOUS AND SPECIALTY RETAIL STORES,,
19/07/2019,BIKEABILITY - CYCLE TRAINING,HAMPSHIRE TOILET HIRE,EQUIPMENT,354.00,"EQUIPMENT RENTAL&LEASING SVS, FURNTURE/TOOL RENTAL",,
19/07/2019,PE/CDT MAINTENANCE OVERHEADS,KAYOSPRUCE LIMITED,ITEMS PURCHASED FOR RE-SALE,195.53,BOAT DEALERS,,
19/07/2019,ARUNDEL,TESCO STORES 5999,REFRESHMENT COSTS,185.07,"GROCERY STORES, SUPERMARKETS",,
19/07/2019,LEAP BUDGET,AMZNMKTPLACE,CURRICULUM EQUIPMENT AND FURNITURE,8.03,MISCELLANEOUS AND SPECIALTY RETAIL STORES,,
19/07/2019,LEAP BUDGET,AMZNMKTPLACE,CURRICULUM EQUIPMENT AND FURNITURE,12.49,MISCELLANEOUS AND SPECIALTY RETAIL STORES,,
19/07/2019,NW CARE - LAC,ALLPAY  TOTO ENERGY,CHILDREN ACT SEC 24 PAYMENTS,10.00,"ORGANIZATIONS, CHARITABLE AND SOCIAL SERVICES",,
19/07/2019,NW CARE - LAC,ALLPAY  TOTO ENERGY,CHILDREN ACT SEC 24 PAYMENTS,10.00,"ORGANIZATIONS, CHARITABLE AND SOCIAL SERVICES",,
19/07/2019,SERVICE DELIVERY RESOURCES,TESCO STORES 6999,REFRESHMENT COSTS,17.38,"GROCERY STORES, SUPERMARKETS",,
19/07/2019,IMT MANAGEMENT TEAM,AMAZON PRIME MH6W583M4,SUBSCRIPTIONS,7.99,DIRECT MARKETING-CONTINUITY/SUBSCRIPTION MERCHANTS,,
19/07/2019,FAMILIES REIGATE AND BANSTREAD,ASDA SUPERSTORE,DESCRIPTION &AWARD LONG SERVICE,38.95,"GROCERY STORES, SUPERMARKETS",,
19/07/2019,SOUTH WEST OUTREACH,AMZNMKTPLACE,EQUIPMENT,2.68,MISCELLANEOUS AND SPECIALTY RETAIL STORES,,
19/07/2019,CHEYNE WALK COMMUNITY HOME,PANDORA,EQUIPMENT,99.00,"CLOCK, JEWELRY, WATCH, AND SILVERWARE STORE",,
19/07/2019,RUTH HOUSE,WWW.ARGOS.CO.UK,EQUIPMENT,510.93,DISCOUNT STORES,,
19/07/2019,MEADOWSIDE,SCREWFIX DIRECT,DAY TO DAY MAINTENANCE,59.55,HOME SUPPLY WAREHOUSE STORES,,
19/07/2019,MEADOWSIDE,WWW.ARGOS.CO.UK,FURNITURE,21.95,DISCOUNT STORES,,
19/07/2019,NE CARE - LAC,NATIONAL EXPRESS LIMIT,NON-STAFF RELATED TRANSPORT COSTS,30.00,BUS LINES,,
19/07/2019,SOLD MANAGEMENT AND OVERHEADS,AMZNMKTPLACE,BOOKS,40.00,MISCELLANEOUS AND SPECIALTY RETAIL STORES,,
19/07/2019,SOLD MANAGEMENT AND OVERHEADS,EASYJET,TRAINING EXPENSES EXTERNAL GENERAL,65.98,EASYJET,,
19/07/2019,SOLD MANAGEMENT AND OVERHEADS,EB  OUTDOORSTOGETHER 2,TRAINING EXPENSES EXTERNAL GENERAL,240.00,BUSINESS SERVICES-NOT ELSEWHERE CLASSIFIED,,
19/07/2019,HOPE SERVICE - WEST,SAINSBURYS SACAT(4409),NEWSPAPER AND PERIODICALS,4.60,"GROCERY STORES, SUPERMARKETS",,
19/07/2019,HOPE SERVICE - WEST,SAINSBURYS SACAT(4409),PURCHASE OF FOOD (RAW MATERIALS),3.95,"GROCERY STORES, SUPERMARKETS",,
19/07/2019,VIRTUAL SERVICE MANAGER,AMZNMKTPLACE AMAZON.CO,STATIONERY,58.00,MISCELLANEOUS AND SPECIALTY RETAIL STORES,,
19/07/2019,TRANSPORT,BADGEMASTER LIMITED,STATIONERY,28.26,"COMMERCIAL ART, GRAPHICS, PHOTOGRAPHY",,
19/07/2019,TARGETED INTERVENTION,SOVEREIGN SNOOKER LTD,EDUC VISITS/HOLS/CAMPS/TOYS,6.11,"CLUBS-CNTRY,MBRSHIP(ATHLET,REC,SPRTS,PRIVATE GOLF",,
19/07/2019,ACL CENTRAL EXPENDITURE,AMAZON PRIME MH1C373T4,EQUIPMENT,7.99,DIRECT MARKETING-CONTINUITY/SUBSCRIPTION MERCHANTS,,
19/07/2019,ACL CENTRAL EXPENDITURE,PAYPAL  YIWUSHIYONG,EQUIPMENT,2.30,ACCESSORY AND APPAREL STORES-MISCELLANEOUS,,
19/07/2019,ACL CENTRAL EXPENDITURE,PAYPAL  MS TOOLS,EQUIPMENT,12.98,"AUTOMOTIVE PARTS, ACCESSORIES STORES",,
19/07/2019,ACL CENTRAL EXPENDITURE,PAYPAL  HAIRDRESSER,EQUIPMENT,4.44,BARBER AND BEAUTY SHOPS,,
19/07/2019,DOWNLANDS COUNTRYSIDE PROJECT,FAIRALLS (BUILDERS ME,EQUIPMENT,123.23,"BUILDING MATERIALS, LUMBER STORES",,
19/07/2019,CHEYNE WALK COMMUNITY HOME,TESCO STORE 2560,PURCHASE OF FOOD (RAW MATERIALS),17.95,"GROCERY STORES, SUPERMARKETS",,
19/07/2019,CHEYNE WALK COMMUNITY HOME,COUNTY MALL CAR PARK,CAR ALLOWANCES,2.50,AUTOMOBILE PARKING LOTS AND GARAGES,,
19/07/2019,CHEYNE WALK COMMUNITY HOME,SUPERDRUG STORES PLC,EQUIPMENT,23.98,"DRUG STORES, PHARMACIES",,
19/07/2019,CHEYNE WALK COMMUNITY HOME,CLINTONS 175,EQUIPMENT,11.03,"GIFT, CARD, NOVELTY AND SOUVENIR SHOPS",,
19/07/2019,TRANSPORT,AMZNMKTPLACE,VEHICLE REPAIRS AND MAINTENANCE,33.22,MISCELLANEOUS AND SPECIALTY RETAIL STORES,,
19/07/2019,TRANSPORT,ASH SAFETY,VEHICLE REPAIRS AND MAINTENANCE,137.22,INDUSTRIAL SUPPLIES NOT ELSEWHERE CLASSIFIED,,
19/07/2019,TRANSPORT,TADWORTH TYRE SPECIALI,VEHICLE REPAIRS AND MAINTENANCE,48.00,AUTOMOTIVE TIRE STORES,,
19/07/2019,KESWICK,B & Q 1076,DAY TO DAY MAINTENANCE,7.57,"BUILDING MATERIALS, LUMBER STORES",,
19/07/2019,CHEYNE WALK COMMUNITY HOME,SAINSBURYS SACAT 2325,DAY TO DAY MAINTENANCE,0.50,"GROCERY STORES, SUPERMARKETS",,
19/07/2019,CHEYNE WALK COMMUNITY HOME,POUNDLAND LTD 1244,PURCHASE OF FOOD (RAW MATERIALS),4.00,DISCOUNT STORES,,
19/07/2019,HERITAGE PUBLIC SERVICE,W M MORRISON STORE,REFRESHMENT COSTS,1.32,"GROCERY STORES, SUPERMARKETS",,
19/07/2019,BURBANK COMMUNITY HOME,SAINSBURYS SACAT 0004,EQUIPMENT,2.75,"GROCERY STORES, SUPERMARKETS",,
19/07/2019,BURBANK COMMUNITY HOME,W M MORRISON STORE,REFRESHMENT COSTS,4.00,"GROCERY STORES, SUPERMARKETS",,
19/07/2019,SW CARE - LAC,TNT_DIRECT,FEES,59.98,"COURIER SVC-AIR & GROUND, FREIGHT FORWARDERS",,
19/07/2019,CHALKMEAD,MERSTHAM GLASS LTD,DAY TO DAY MAINTENANCE,3.50,"CONTRACTORS,SPECIAL TRADE-NOT ELSEWHERE CLASSIFIED",,
19/07/2019,STRATEGIC DIRECTOR,AMZNMKTPLACE,EQUIPMENT,169.00,MISCELLANEOUS AND SPECIALTY RETAIL STORES,,
19/07/2019,STRATEGIC DIRECTOR,AMZNMKTPLACE,EQUIPMENT,25.65,MISCELLANEOUS AND SPECIALTY RETAIL STORES,,
19/07/2019,FAIRCROFT COMMUNITY HOME,EVERYMAN,REFRESHMENT COSTS,13.60,MOTION PICTURE THEATERS,,
19/07/2019,FAIRCROFT COMMUNITY HOME,WWW.EVERYMAN.COM,EDUC VISITS/HOLS/CAMPS/TOYS,44.10,MOTION PICTURE THEATERS,,
19/07/2019,WOODLANDS COMMUNITY HOME,SHAFTESBURY-THEATR,EDUC VISITS/HOLS/CAMPS/TOYS,83.00,"THEATRICAL PRODUCERS(EXCL MOTION PIX),TICKET AGNCY",,
19/07/2019,ISPSB - ADAPTATIONS & IMPROVEMENTS,AMZNMKTPLACE,EDUC VISITS/HOLS/CAMPS/TOYS,23.98,MISCELLANEOUS AND SPECIALTY RETAIL STORES,,
19/07/2019,KARIBU COMMUNITY HOME,AMZNMKTPLACE,EQUIPMENT,33.98,MISCELLANEOUS AND SPECIALTY RETAIL STORES,,
19/07/2019,ABBEYWOOD,AMAZON.CO.UK MH6426NR4,DAY TO DAY MAINTENANCE,65.00,DIRECT MARKETING-OTHER DIRECT MARKETERS/NOT ELSEW.,,
20/07/2019,WOODLANDS COMMUNITY HOME,MCDONALDS,PURCHASE OF FOOD (RAW MATERIALS),14.71,FAST FOOD RESTAURANTS,,
20/07/2019,WOODLANDS COMMUNITY HOME,PUMPKIN CAFE,REFRESHMENT COSTS,9.06,"PACKAGE STORES, BEER, WINE, LIQUOR",,
20/07/2019,SOLD MARKETING TEAM,AMZNMKTPLACE AMAZON.CO,EQUIPMENT,5.99,MISCELLANEOUS AND SPECIALTY RETAIL STORES,,
20/07/2019,HILLSIDE,SAINSBURYS TO YOU 0673,PURCHASE OF FOOD (RAW MATERIALS),9.60,"GROCERY STORES, SUPERMARKETS",,
20/07/2019,HILLSIDE,SAINSBURYS TO YOU 0673,PURCHASE OF FOOD (RAW MATERIALS),170.58,"GROCERY STORES, SUPERMARKETS",,
20/07/2019,RUTH HOUSE,AMZNMKTPLACE,EQUIPMENT,15.99,MISCELLANEOUS AND SPECIALTY RETAIL STORES,,
20/07/2019,LEAP BUDGET,AMZNMKTPLACE,CURRICULUM EQUIPMENT AND FURNITURE,3.73,MISCELLANEOUS AND SPECIALTY RETAIL STORES,,
20/07/2019,LEAP BUDGET,AMZNMKTPLACE,CURRICULUM EQUIPMENT AND FURNITURE,3.68,MISCELLANEOUS AND SPECIALTY RETAIL STORES,,
20/07/2019,LEAP BUDGET,AMZNMKTPLACE,CURRICULUM EQUIPMENT AND FURNITURE,1.49,MISCELLANEOUS AND SPECIALTY RETAIL STORES,,
20/07/2019,TS SERVICE MANAGEMENT,NORTON  AP1286696347,SUBSCRIPTIONS,99.99,DIRECT MARKETING-CONTINUITY/SUBSCRIPTION MERCHANTS,,
20/07/2019,KARIBU COMMUNITY HOME,1ST PLACE,EDUC VISITS/HOLS/CAMPS/TOYS,48.00,"UTLTS-ELCTRC, GAS, HEATING OIL, SANITARY, WATER",,
20/07/2019,KARIBU COMMUNITY HOME,THORPE PARK RESORT FIN,EDUC VISITS/HOLS/CAMPS/TOYS,74.00,TOURIST ATTRACTIONS AND EXHIBITS,,
20/07/2019,TRAINING AND DEVELOPMENT,ITC CONSULTANCY,TRAINING EXPENSES EXTERNAL GENERAL,12.00,OTHER SERVICES (NOT ELSEWHERE CLASSIFIED),,
20/07/2019,RUTH HOUSE,SAINSBURYS TO YOU 0686,PURCHASE OF FOOD (RAW MATERIALS),15.20,"GROCERY STORES, SUPERMARKETS",,
20/07/2019,RUTH HOUSE,SAINSBURYS TO YOU 0686,PURCHASE OF FOOD (RAW MATERIALS),168.45,"GROCERY STORES, SUPERMARKETS",,
20/07/2019,CHEYNE WALK COMMUNITY HOME,MOONPIGUK,EQUIPMENT,27.14,"GIFT, CARD, NOVELTY AND SOUVENIR SHOPS",,
20/07/2019,RECRUITMENT,FACEBK  D7PF5MEPS2,STAFF ADVERTISING ,13.88,ADVERTISING SERVICES,,
20/07/2019,DOWNLANDS COUNTRYSIDE PROJECT,TESCO STORES,REFRESHMENT COSTS,10.50,"GROCERY STORES, SUPERMARKETS",,
20/07/2019,EXTENDED HOPE,ATIF SUPERSTORE LIMITE,PURCHASE OF FOOD (RAW MATERIALS),10.37,"GROCERY STORES, SUPERMARKETS",,
20/07/2019,STRATEGIC DIRECTOR,WCC PARKING MOBILE,NON-STAFF RELATED TRANSPORT COSTS,0.90,AUTOMOBILE PARKING LOTS AND GARAGES,,
20/07/2019,STRATEGIC DIRECTOR,WINCHESTER CATHEDRAL,EDUC VISITS/HOLS/CAMPS/TOYS,25.00,"ORGANIZATIONS, CHARITABLE AND SOCIAL SERVICES",,
20/07/2019,STRATEGIC DIRECTOR,WINCHESTER CATHEDRAL,EDUC VISITS/HOLS/CAMPS/TOYS,7.50,CATERERS,,
20/07/2019,HAVEN GUILDFORD,SOUTHERN CO-OP 0394,REFRESHMENT COSTS,4.70,DEPARTMENT STORES,,
20/07/2019,COMMUNICATIONS - SURREY MATTERS,AMZNMKTPLACE,COMPUTER HARDWARE,24.25,MISCELLANEOUS AND SPECIALTY RETAIL STORES,,
20/07/2019,WOODLANDS COMMUNITY HOME,WOKING BOROUGH COUNCIL,NON-STAFF RELATED TRANSPORT COSTS,11.40,GOVERNMENT SERVICES-NOT ELSEWHERE CLASSIFIED,,
20/07/2019,WOODLANDS COMMUNITY HOME,BELLA ITALIA,PURCHASE OF FOOD (RAW MATERIALS),42.04,"EATING PLACES, RESTAURANTS",,
21/07/2019,WOODLANDS COMMUNITY HOME,NATIONAL EXPRESS LIMIT,NON-STAFF RELATED TRANSPORT COSTS,41.60,BUS LINES,,
21/07/2019,LIBERTAS COMMUNITY HOME,SAINSBURYS 0670,PURCHASE OF FOOD (RAW MATERIALS),99.70,"GROCERY STORES, SUPERMARKETS",,
21/07/2019,PSSS VISUALLY IMPAIRED,AMAZON PRIME MH1RR1JW4,EQUIPMENT,7.99,DIRECT MARKETING-CONTINUITY/SUBSCRIPTION MERCHANTS,,
21/07/2019,TRANSPORT,AMZNMKTPLACE,EQUIPMENT,32.50,MISCELLANEOUS AND SPECIALTY RETAIL STORES,,
21/07/2019,TRANSPORT,AMZNMKTPLACE,EQUIPMENT,32.50,MISCELLANEOUS AND SPECIALTY RETAIL STORES,,
21/07/2019,LEAP BUDGET,AMZNMKTPLACE,CURRICULUM EQUIPMENT AND FURNITURE,19.92,MISCELLANEOUS AND SPECIALTY RETAIL STORES,,
21/07/2019,EDUCATION,AMZNMKTPLACE,EQUIPMENT,20.39,MISCELLANEOUS AND SPECIALTY RETAIL STORES,,
21/07/2019,EDUCATION,AMZNMKTPLACE,EQUIPMENT,20.39,MISCELLANEOUS AND SPECIALTY RETAIL STORES,,
21/07/2019,EDUCATION,AMZNMKTPLACE,EQUIPMENT,20.39,MISCELLANEOUS AND SPECIALTY RETAIL STORES,,
21/07/2019,KARIBU COMMUNITY HOME,BURGER KING,PURCHASE OF FOOD (RAW MATERIALS),15.78,"EATING PLACES, RESTAURANTS",,
21/07/2019,KARIBU COMMUNITY HOME,BURGER KING,PURCHASE OF FOOD (RAW MATERIALS),17.94,"EATING PLACES, RESTAURANTS",,
21/07/2019,TRAINING AND DEVELOPMENT,AMAZON.CO.UK MH54C33I4,TRAINING EXPENSES EXTERNAL GENERAL,20.00,DIRECT MARKETING-OTHER DIRECT MARKETERS/NOT ELSEW.,,
21/07/2019,MEADOWSIDE,CLINTON CARDS,STATIONERY,19.59,"GIFT, CARD, NOVELTY AND SOUVENIR SHOPS",,
21/07/2019,CHEYNE WALK COMMUNITY HOME,AMZNMKTPLACE,EQUIPMENT,26.99,MISCELLANEOUS AND SPECIALTY RETAIL STORES,,
21/07/2019,OCCUPATIONAL THERAPY,AMAZON.CO.UK MH73P1JW4,BOOKS,17.62,DIRECT MARKETING-OTHER DIRECT MARKETERS/NOT ELSEW.,,
21/07/2019,FAIRCROFT COMMUNITY HOME,WWW.FREEDOM-LEISURE.CO,EDUC VISITS/HOLS/CAMPS/TOYS,17.48,RECREATION SERVICES (NOT ELSEWHERE CLASSIFIED),,
21/07/2019,CPCS ENGAGEMENT TEAM,AMAZON.CO.UK MH03P2JK4,EQUIPMENT,36.48,DIRECT MARKETING-OTHER DIRECT MARKETERS/NOT ELSEW.,,
21/07/2019,CPCS ENGAGEMENT TEAM,AMZNMKTPLACE AMAZON.CO,EQUIPMENT,16.98,MISCELLANEOUS AND SPECIALTY RETAIL STORES,,
21/07/2019,MALLOW CRESCENT,SAINSBURYS 0670,PURCHASE OF FOOD (RAW MATERIALS),134.80,"GROCERY STORES, SUPERMARKETS",,
21/07/2019,MALLOW CRESCENT,SAINSBURYS 0670,PURCHASE OF FOOD (RAW MATERIALS),-1.90,"GROCERY STORES, SUPERMARKETS",,
21/07/2019,EXTENDED HOPE,WAVERLEY BOROUGH COUNC,NON-STAFF RELATED TRANSPORT COSTS,4.00,FINES,,
21/07/2019,EXTENDED HOPE,F.A. SECRETT LIMITED,PURCHASE OF FOOD (RAW MATERIALS),14.93,"GROCERY STORES, SUPERMARKETS",,
21/07/2019,EXTENDED HOPE,F.A. SECRETT LIMITED,PURCHASE OF FOOD (RAW MATERIALS),4.00,"GROCERY STORES, SUPERMARKETS",,
21/07/2019,STRATEGIC DIRECTOR,AMZNMKTPLACE,EQUIPMENT,54.99,MISCELLANEOUS AND SPECIALTY RETAIL STORES,,
22/07/2019,YSS YOUTH CENTRE IMPROVEMENTS,TVLICENSING.CO.UK,LICENCE FEES,154.50,"CONSULTING, MANAGEMENT, AND PUBLIC RELATIONS SVCS",,
22/07/2019,HAVEN GUILDFORD,AMZNMKTPLACE AMAZON.CO,CURRICULUM CONSUMABLES,23.97,MISCELLANEOUS AND SPECIALTY RETAIL STORES,,
22/07/2019,BUSINESS UNIT,AMZNMKTPLACE AMAZON.CO,TRAINING EXPENSES EXTERNAL GENERAL,37.12,MISCELLANEOUS AND SPECIALTY RETAIL STORES,,
22/07/2019,BUSINESS UNIT,AMZNMKTPLACE AMAZON.CO,TRAINING EXPENSES EXTERNAL GENERAL,29.99,MISCELLANEOUS AND SPECIALTY RETAIL STORES,,
22/07/2019,WOODLANDS COMMUNITY HOME,PRIMARK STORES 655,"CLOTHING, UNIFORM AND LAUNDRY",37.90,FAMILY CLOTHING STORES,,
22/07/2019,ADULT SKILLS,BEST FOR TRAINING,TRAINING EXPENSES EXTERNAL GENERAL,315.00,SCHOOLS & EDUCATIONAL SVC-NOT ELSEWHERE CLASSIFIED,,
22/07/2019,MALLOW CRESCENT,TESCO STORE 2590,PURCHASE OF FOOD (RAW MATERIALS),126.84,"GROCERY STORES, SUPERMARKETS",,
22/07/2019,LOCAL ASSISTANCE SCHEME,WEBSTER FLOORS,FURNITURE,300.00,FLOOR COVERING STORES,,
22/07/2019,TRANSPORT,COLEMAN MILNE,VEHICLE REPAIRS AND MAINTENANCE,245.08,"AUTOMOTIVE PARTS, ACCESSORIES STORES",,
22/07/2019,LOCAL ASSISTANCE SCHEME,WEBSTER FLOORS,FURNITURE,190.00,FLOOR COVERING STORES,,
22/07/2019,TRANSPORT,PEUGEOT GATWICK,VEHICLE REPAIRS AND MAINTENANCE,304.68,"AUTO & TRUCK DLRS-SALES,SVC, REPRS,PRTS, & LEASING",,
22/07/2019,SHELL UK LICENSING,LB CROYDON,FEES,864.00,GOVERNMENT SERVICES-NOT ELSEWHERE CLASSIFIED,,
22/07/2019,SHELL UK LICENSING,SPELTHORNE BC INTERNET,FEES,192.00,GOVERNMENT SERVICES-NOT ELSEWHERE CLASSIFIED,,
22/07/2019,BUSINESS UNIT,AMZNMKTPLACE AMAZON.CO,TRAINING EXPENSES EXTERNAL GENERAL,29.99,MISCELLANEOUS AND SPECIALTY RETAIL STORES,,
22/07/2019,TARGETED INTERVENTION,FREEDOM LEISURE,EDUC VISITS/HOLS/CAMPS/TOYS,9.95,GOVERNMENT SERVICES-NOT ELSEWHERE CLASSIFIED,,
22/07/2019,RUTH HOUSE,FREEDOM LEISURE,EDUC VISITS/HOLS/CAMPS/TOYS,4.75,GOVERNMENT SERVICES-NOT ELSEWHERE CLASSIFIED,,
22/07/2019,TRANSPORT,HENDY GROUP LTD (REDHI,VEHICLE REPAIRS AND MAINTENANCE,40.81,"AUTO & TRUCK DLRS-SALES,SVC, REPRS,PRTS, & LEASING",,
22/07/2019,TRANSPORT,AMZNMKTPLACE,VEHICLE REPAIRS AND MAINTENANCE,21.58,MISCELLANEOUS AND SPECIALTY RETAIL STORES,,
22/07/2019,ABBEYWOOD,B & Q 1237,EQUIPMENT,165.72,HOME SUPPLY WAREHOUSE STORES,,
22/07/2019,HEATHSIDE,NURSECALLMATS.CO.UK,EQUIPMENT,216.00,"EQUIP, FURNITURE, HOME FURNSHNGS STRS (EXCPT APPL)",,
22/07/2019,FAIRCROFT COMMUNITY HOME,BT PAY BY PHONE,TELECOMMUNICATION CHARGES,389.52,TELECOM INCL PREPAID/RECURRING PHONE SVCS,,
22/07/2019,STRATEGIC DIRECTOR,NORTHERNNETWORKING,EQUIPMENT,"2,880.00",BUSINESS SERVICES-NOT ELSEWHERE CLASSIFIED,,
22/07/2019,ACL CENTRAL EXPENDITURE,W M MORRISON STORE,REFRESHMENT COSTS,10.00,"GROCERY STORES, SUPERMARKETS",,
22/07/2019,EXTENDED HOPE,SAINSBURYS 0652,PURCHASE OF FOOD (RAW MATERIALS),100.00,"GROCERY STORES, SUPERMARKETS",,
22/07/2019,WOODLANDS COMMUNITY HOME,SAINSBURYS 0686,PURCHASE OF FOOD (RAW MATERIALS),23.23,"GROCERY STORES, SUPERMARKETS",,
22/07/2019,BURBANK COMMUNITY HOME,THORPE PARK RESORT,REFRESHMENT COSTS,12.24,RECREATION SERVICES (NOT ELSEWHERE CLASSIFIED),,
22/07/2019,BURBANK COMMUNITY HOME,BURGER KING,REFRESHMENT COSTS,20.26,"EATING PLACES, RESTAURANTS",,
22/07/2019,CHALKMEAD,SCREWFIX DIRECT,DAY TO DAY MAINTENANCE,239.92,HOME SUPPLY WAREHOUSE STORES,,
22/07/2019,CHEYNE WALK COMMUNITY HOME,PRESIDENTAL FOODS,PURCHASE OF FOOD (RAW MATERIALS),14.99,"GROCERY STORES, SUPERMARKETS",,
22/07/2019,CHEYNE WALK COMMUNITY HOME,FRESH BAZAR FOOD,PURCHASE OF FOOD (RAW MATERIALS),4.89,"GROCERY STORES, SUPERMARKETS",,
22/07/2019,FAMILIES GUILDFORD,WWW.CSKILLS.ORG,EQUIPMENT,36.00,"SCHOOLS, TRADE AND VOCATIONAL",,
22/07/2019,WOODLANDS COMMUNITY HOME,SAINSBURYS SACAT 0686,PURCHASE OF FOOD (RAW MATERIALS),8.10,"GROCERY STORES, SUPERMARKETS",,
22/07/2019,WOODLANDS COMMUNITY HOME,BURGER KING GUILDFORD,REFRESHMENT COSTS,4.90,FAST FOOD RESTAURANTS,,
22/07/2019,ASSET PLANNING - OPERATIONS,HALFORDS 0763,EQUIPMENT,11.98,BICYCLE SHOPS-SALES AND SERVICE,,
22/07/2019,MEADOWSIDE,AMAZON.CO.UK MH0D04T74,EQUIPMENT,126.00,DIRECT MARKETING-OTHER DIRECT MARKETERS/NOT ELSEW.,,
22/07/2019,ASSET PLANNING - OPERATIONS,B & Q 1029,EQUIPMENT,13.68,HOME SUPPLY WAREHOUSE STORES,,
22/07/2019,MEADOWSIDE,AMZNMKTPLACE,DAY TO DAY MAINTENANCE,59.96,MISCELLANEOUS AND SPECIALTY RETAIL STORES,,
22/07/2019,ASSET PLANNING - OPERATIONS,SCREWFIX DIR. LTD,EQUIPMENT,49.99,"BUILDING MATERIALS, LUMBER STORES",,
22/07/2019,RUTH HOUSE,ARGOS LTD,EQUIPMENT,145.90,DISCOUNT STORES,,
22/07/2019,BURBANK COMMUNITY HOME,CLS ALDERSHOT,EDUC VISITS/HOLS/CAMPS/TOYS,26.40,"CLUBS-CNTRY,MBRSHIP(ATHLET,REC,SPRTS,PRIVATE GOLF",,
22/07/2019,CS BUSINESS SUPPORT WEST,WWW.MOLEVALLEY.GOV.UK,ITEMS PURCHASED FOR RE-SALE,40.00,GOVERNMENT SERVICES-NOT ELSEWHERE CLASSIFIED,,
22/07/2019,MALLOW CRESCENT,SAINSBURYS TO YOU 0652,PURCHASE OF FOOD (RAW MATERIALS),125.59,"GROCERY STORES, SUPERMARKETS",,
22/07/2019,HOPE SERVICE - WEST,SAINSBURYS TO YOU 0686,PURCHASE OF FOOD (RAW MATERIALS),62.22,"GROCERY STORES, SUPERMARKETS",,
22/07/2019,TANDRIDGE CMHRS CARE,WORTHING COUNTRY C,FEES,75.00,FINES,,
22/07/2019,QUADRANT COURT WOKING,SCREWFIX DIRECT,EQUIPMENT,14.47,HOME SUPPLY WAREHOUSE STORES,,
22/07/2019,ACL CENTRAL EXPENDITURE,PAYPAL  TOOLSTATION,EQUIPMENT,49.48,HARDWARE STORES,,
22/07/2019,ARUNDEL,TESCO STORES 5999,REFRESHMENT COSTS,78.12,"GROCERY STORES, SUPERMARKETS",,
22/07/2019,HOPE SERVICE - WEST,SAINSBURYS TO YOU 0683,PURCHASE OF FOOD (RAW MATERIALS),41.80,"GROCERY STORES, SUPERMARKETS",,
22/07/2019,HOPE SERVICE - WEST,HORTON PARK GOLF,EDUC VISITS/HOLS/CAMPS/TOYS,7.50,"EATING PLACES, RESTAURANTS",,
22/07/2019,LOWER MOLE COUNTRYSIDE PROJECT,SP   TRACMASTER.CO.UK,EQUIPMENT,34.02,LAWN AND GARDEN SUPPLY STORES,,
22/07/2019,SOLD PROFESSIONAL TRAINING AND DEVLPMNT,BRITISHCANOEING,FEES,240.00,COMPUTER SOFTWARE STORES,,
22/07/2019,HERITAGE PUBLIC SERVICE,W M MORRISON STORE,EQUIPMENT,3.00,"GROCERY STORES, SUPERMARKETS",,
22/07/2019,SOLD MARKETING TEAM,AMZNMKTPLACE AMAZON.CO,EQUIPMENT,20.96,MISCELLANEOUS AND SPECIALTY RETAIL STORES,,
22/07/2019,HILLSIDE,SAINSBURYS SACAT 0784,PURCHASE OF FOOD (RAW MATERIALS),5.30,"GROCERY STORES, SUPERMARKETS",,
22/07/2019,NE TEACHERS,SURREY CC CARD PAY,TRAINING EXPENSES EXTERNAL GENERAL,75.00,COMPUTER NETWORK/INFORMATION SERVICES,,
22/07/2019,HOPE SERVICE - WEST,TESCO STORES 6320,PURCHASE OF FOOD (RAW MATERIALS),0.70,"GROCERY STORES, SUPERMARKETS",,
22/07/2019,LOCAL DELIVERY GROUP,AMZNMKTPLACE AMAZON.CO,EQUIPMENT,5.95,MISCELLANEOUS AND SPECIALTY RETAIL STORES,,
22/07/2019,HOPE SERVICE - WEST,AMAZON.CO.UK MH7TN1TL4,MEDICAL EXPENSES,18.90,DIRECT MARKETING-OTHER DIRECT MARKETERS/NOT ELSEW.,,
22/07/2019,TRANSPORT,BUBBLES CAR WASH,VEHICLE REPAIRS AND MAINTENANCE,16.00,CAR WASHES,,
22/07/2019,PE/CDT MAINTENANCE OVERHEADS,MARGNOR FASTENERS,EQUIPMENT,14.98,MISCELLANEOUS AND SPECIALTY RETAIL STORES,,
22/07/2019,FAIRCROFT COMMUNITY HOME,TESCO STORE 2812,PURCHASE OF FOOD (RAW MATERIALS),259.02,"GROCERY STORES, SUPERMARKETS",,
22/07/2019,MALLOW CRESCENT,TESCO STORE 2590,PURCHASE OF FOOD (RAW MATERIALS),100.13,"GROCERY STORES, SUPERMARKETS",,
22/07/2019,MALLOW CRESCENT,TESCO STORE 2590,PURCHASE OF FOOD (RAW MATERIALS),53.59,"GROCERY STORES, SUPERMARKETS",,
22/07/2019,MALLOW CRESCENT DMHS 25-30,AMAZON.CO.UK MH7AL6A54,EQUIPMENT,72.59,DIRECT MARKETING-OTHER DIRECT MARKETERS/NOT ELSEW.,,
22/07/2019,MALLOW CRESCENT,TESCO STORE 2590,PURCHASE OF FOOD (RAW MATERIALS),-1.09,"GROCERY STORES, SUPERMARKETS",,
22/07/2019,KARIBU COMMUNITY HOME,EMPARK UK LTD,NON-STAFF RELATED TRANSPORT COSTS,6.50,AUTOMOBILE PARKING LOTS AND GARAGES,,
22/07/2019,FAIRCROFT COMMUNITY HOME,HOBBYCRAFT,EQUIPMENT,15.00,"ARTIST SUPPLY STORES, CRAFT SHOPS",,
22/07/2019,SHELL UK LICENSING,WWW.SOUTHHAMS.GOV.UK,FEES,113.00,GOVERNMENT SERVICES-NOT ELSEWHERE CLASSIFIED,,
22/07/2019,HILLSIDE,SAINSBURYS SACAT 0675,"CLOTHING, UNIFORM AND LAUNDRY",48.20,"GROCERY STORES, SUPERMARKETS",,
22/07/2019,COMMUNITY ARCHAEOLOGIST PROJECT,AMZNMKTPLACE,EQUIPMENT,7.95,MISCELLANEOUS AND SPECIALTY RETAIL STORES,,
22/07/2019,MENTAL HEALTH MANAGEMENT TEAM,WORTHING COUNTRY C,EQUIPMENT,150.00,FINES,,
22/07/2019,FAMILIES WOKING,EVERYTHING BRANDED,CURRICULUM EQUIPMENT AND FURNITURE,182.88,WHOLESALE CLUBS,,
22/07/2019,FAMILIES REIGATE AND BANSTREAD,AMFBOWLING.CO.UK,EDUC VISITS/HOLS/CAMPS/TOYS,66.40,BOWLING ALLEYS,,
22/07/2019,IMT MODERN WORKER,BLS WEBHOSE,COMPUTER SERVICES,49.59,COMPUTER SOFTWARE STORES,,
22/07/2019,FAMILIES REIGATE AND BANSTREAD,OXYGEN FREEJUMPING,EDUC VISITS/HOLS/CAMPS/TOYS,100.00,"CLUBS-CNTRY,MBRSHIP(ATHLET,REC,SPRTS,PRIVATE GOLF",,
22/07/2019,LEAP BUDGET,AMZNMKTPLACE,CURRICULUM EQUIPMENT AND FURNITURE,16.99,MISCELLANEOUS AND SPECIALTY RETAIL STORES,,
23/07/2019,LOCAL ASSISTANCE SCHEME,WILKO.COM,FURNITURE,-4.00,MISCELLANEOUS GENERAL MERCHANDISE,,
23/07/2019,TRANSPORT,WWW.LOCKSONLINE.CO.UK,EQUIPMENT,172.98,BUSINESS SERVICES-NOT ELSEWHERE CLASSIFIED,,
23/07/2019,LOCAL DELIVERY GROUP,AMZNMKTPLACE AMAZON.CO,EQUIPMENT,10.48,MISCELLANEOUS AND SPECIALTY RETAIL STORES,,
23/07/2019,LOCAL ASSISTANCE SCHEME,WILKO.COM,FURNITURE,-14.00,MISCELLANEOUS GENERAL MERCHANDISE,,
23/07/2019,LEAP BUDGET,AMAZON.CO.UK MH0A24AF4,CURRICULUM EQUIPMENT AND FURNITURE,9.56,DIRECT MARKETING-OTHER DIRECT MARKETERS/NOT ELSEW.,,
23/07/2019,LEAP BUDGET,AMZNMKTPLACE,CURRICULUM EQUIPMENT AND FURNITURE,21.98,MISCELLANEOUS AND SPECIALTY RETAIL STORES,,
23/07/2019,LEAP BUDGET,AMZNMKTPLACE,CURRICULUM EQUIPMENT AND FURNITURE,24.26,MISCELLANEOUS AND SPECIALTY RETAIL STORES,,
23/07/2019,LEAP BUDGET,AMZNMKTPLACE,CURRICULUM EQUIPMENT AND FURNITURE,6.85,MISCELLANEOUS AND SPECIALTY RETAIL STORES,,
23/07/2019,LEAP BUDGET,AMZNMKTPLACE,CURRICULUM EQUIPMENT AND FURNITURE,41.80,MISCELLANEOUS AND SPECIALTY RETAIL STORES,,
23/07/2019,COMMUNITY ARCHAEOLOGIST PROJECT,AMAZON.CO.UK MH7110A44,EQUIPMENT,9.88,DIRECT MARKETING-OTHER DIRECT MARKETERS/NOT ELSEW.,,
23/07/2019,COMMUNITY ARCHAEOLOGIST PROJECT,AMZNMKTPLACE,EQUIPMENT,14.03,MISCELLANEOUS AND SPECIALTY RETAIL STORES,,
23/07/2019,COMMUNITY ARCHAEOLOGIST PROJECT,AMZNMKTPLACE AMAZON.CO,EQUIPMENT,8.84,MISCELLANEOUS AND SPECIALTY RETAIL STORES,,
23/07/2019,FAMILIES REIGATE AND BANSTREAD,AMZNMKTPLACE,CURRICULUM CONSUMABLES,8.50,MISCELLANEOUS AND SPECIALTY RETAIL STORES,,
23/07/2019,FAMILIES REIGATE AND BANSTREAD,AMZNMKTPLACE,CURRICULUM CONSUMABLES,25.46,MISCELLANEOUS AND SPECIALTY RETAIL STORES,,
23/07/2019,FAIRCROFT COMMUNITY HOME,SAINSBURYS SACAT 0687,REFRESHMENT COSTS,20.00,"GROCERY STORES, SUPERMARKETS",,
23/07/2019,FAIRCROFT COMMUNITY HOME,3C_ CP PLUS - ROYAL SU,MISCELLANEOUS STAFF TRAVEL,3.40,AUTOMOBILE PARKING LOTS AND GARAGES,,
23/07/2019,FAIRCROFT COMMUNITY HOME,PONTINS CALL CENTRE,EDUC VISITS/HOLS/CAMPS/TOYS,79.50,"LODGING-HOTELS,MOTELS,RESORTS-NOT CLASSIFIED",,
23/07/2019,FAIRCROFT COMMUNITY HOME,PONTINS CALL CENTRE,EDUC VISITS/HOLS/CAMPS/TOYS,89.00,"LODGING-HOTELS,MOTELS,RESORTS-NOT CLASSIFIED",,
23/07/2019,FAIRCROFT COMMUNITY HOME,MARKS&SPENCER PLC,REFRESHMENT COSTS,4.45,FAST FOOD RESTAURANTS,,
23/07/2019,LIBERTAS COMMUNITY HOME,CURRYS ONLINE,EQUIPMENT,89.00,ELECTRONIC SALES,,
23/07/2019,ACL CENTRAL EXPENDITURE,WWW.WARM-GLASS.CO.UK,EQUIPMENT,149.76,"ARTIST SUPPLY STORES, CRAFT SHOPS",,
23/07/2019,LOCAL ASSISTANCE SCHEME,WILKO.COM,FURNITURE,47.00,MISCELLANEOUS GENERAL MERCHANDISE,,
23/07/2019,COUNTY HALL,SCREWFIX DIRECT,EQUIPMENT,42.96,HOME SUPPLY WAREHOUSE STORES,,
23/07/2019,CHEYNE WALK COMMUNITY HOME,TESCO STORE 2560,PURCHASE OF FOOD (RAW MATERIALS),31.20,"GROCERY STORES, SUPERMARKETS",,
23/07/2019,CHEYNE WALK COMMUNITY HOME,TESCO STORE 2560,PURCHASE OF FOOD (RAW MATERIALS),6.95,"GROCERY STORES, SUPERMARKETS",,
23/07/2019,CHEYNE WALK COMMUNITY HOME,MARTIN MCCOLL,STATIONERY,9.48,"MISC FOOD STORE-CONVENIENCE,MRKT,SPLTY,VENDNG MACS",,
23/07/2019,ACL CENTRAL EXPENDITURE,TESCO STORE 2160,REFRESHMENT COSTS,61.88,"GROCERY STORES, SUPERMARKETS",,
23/07/2019,TRANSPORT,PURFLEET COMMERCIA,VEHICLE REPAIRS AND MAINTENANCE,108.00,AUTOMOTIVE SERVICE SHOPS,,
23/07/2019,TRANSPORT,THE TYRE EQUIPMENT COM,VEHICLE REPAIRS AND MAINTENANCE,111.42,AUTOMOTIVE TIRE STORES,,
23/07/2019,ABBEYWOOD,TESCO STORES 2025,DAY TO DAY MAINTENANCE,15.00,"GROCERY STORES, SUPERMARKETS",,
23/07/2019,KESWICK,CURRYS ONLINE,EQUIPMENT,119.96,ELECTRONIC SALES,,
23/07/2019,EXTENDED HOPE,T4,REFRESHMENT COSTS,11.70,"EATING PLACES, RESTAURANTS",,
23/07/2019,EXTENDED HOPE,SAINSBURYS 0828,PURCHASE OF FOOD (RAW MATERIALS),0.45,"GROCERY STORES, SUPERMARKETS",,
23/07/2019,STRATEGIC DIRECTOR,HOMEBASE LTD 069,DESCRIPTION &AWARD LONG SERVICE,560.00,HOME SUPPLY WAREHOUSE STORES,,
23/07/2019,COMMUNICATIONS,HOO HOOTSUITE INC,PUBLICITY,5.96,BUSINESS SERVICES-NOT ELSEWHERE CLASSIFIED,,
23/07/2019,CHALKMEAD,SAINSBURYS 2325,DAY TO DAY MAINTENANCE,36.10,"GROCERY STORES, SUPERMARKETS",,
23/07/2019,CHALKMEAD,ICELAND,REFRESHMENT COSTS,19.50,"GROCERY STORES, SUPERMARKETS",,
23/07/2019,CHALKMEAD,SCREWFIX DIRECT LT,DAY TO DAY MAINTENANCE,-29.99,"BUILDING MATERIALS, LUMBER STORES",,
23/07/2019,CHEYNE WALK COMMUNITY HOME,FRESH BAZAR FOOD,PURCHASE OF FOOD (RAW MATERIALS),2.46,"GROCERY STORES, SUPERMARKETS",,
23/07/2019,BARNFIELD,TESCO STORE 2560,REFRESHMENT COSTS,43.30,"GROCERY STORES, SUPERMARKETS",,
23/07/2019,FAIRCROFT COMMUNITY HOME,BURGER KING GUILDFORD,REFRESHMENT COSTS,7.16,FAST FOOD RESTAURANTS,,
23/07/2019,ASSET PLANNING - OPERATIONS,SCREWFIX DIR. LTD,EQUIPMENT,13.69,"BUILDING MATERIALS, LUMBER STORES",,
23/07/2019,RUTH HOUSE,AMZNMKTPLACE,EQUIPMENT,47.94,MISCELLANEOUS AND SPECIALTY RETAIL STORES,,
23/07/2019,RUTH HOUSE,AMZNMKTPLACE,EQUIPMENT,41.97,MISCELLANEOUS AND SPECIALTY RETAIL STORES,,
23/07/2019,CHEYNE WALK COMMUNITY HOME,AMZNMKTPLACE,EQUIPMENT,14.99,MISCELLANEOUS AND SPECIALTY RETAIL STORES,,
23/07/2019,"SE REF, ASS & INT SERVICE - HUB 1",CINEWORLD,OTHER COMMUNITY CARE VOL,24.40,"THEATRICAL PRODUCERS(EXCL MOTION PIX),TICKET AGNCY",,
23/07/2019,QUADRANT COURT WOKING,PAYPAL  FALCONWORKS,EQUIPMENT,53.76,HARDWARE STORES,,
23/07/2019,QUADRANT COURT WOKING,DRAINAGE SUPERSTORE,EQUIPMENT,38.65,MISCELLANEOUS AND SPECIALTY RETAIL STORES,,
23/07/2019,QUADRANT COURT WOKING,SCREWFIX DIRECT,EQUIPMENT,36.99,HOME SUPPLY WAREHOUSE STORES,,
23/07/2019,STRATEGIC LEADERSHIP (CEO & ACEO),WWW.EMAP.COM,SUBSCRIPTIONS,-272.00,MISCELLANEOUS PUBLISHING AND PRINTING,,
23/07/2019,CHEYNE WALK COMMUNITY HOME,MARSTON GROUP LTD,VEHICLE RUNNING COSTS,190.50,FINES,,
23/07/2019,ARUNDEL,TESCO STORES 5999,REFRESHMENT COSTS,119.15,"GROCERY STORES, SUPERMARKETS",,
23/07/2019,LOCAL DELIVERY GROUP,AMAZON.CO.UK MH9Z64EJ4,EQUIPMENT,26.06,DIRECT MARKETING-OTHER DIRECT MARKETERS/NOT ELSEW.,,
23/07/2019,MAYFORD CENTRE - BUSINESS,GUILDFORD LOCK AND SAF,EQUIPMENT,315.60,"HAT CLEANING SHOPS, SHOE REPAIR SHOPS, SHOE SHINE",,
23/07/2019,APPLEWOOD,AMZNMKTPLACE,EQUIPMENT,6.98,MISCELLANEOUS AND SPECIALTY RETAIL STORES,,
23/07/2019,BURBANK COMMUNITY HOME,SAINSBURYS TO YOU 0686,PURCHASE OF FOOD (RAW MATERIALS),278.57,"GROCERY STORES, SUPERMARKETS",,
23/07/2019,SOLD MARKETING TEAM,AMZNMKTPLACE AMAZON.CO,EQUIPMENT,5.99,MISCELLANEOUS AND SPECIALTY RETAIL STORES,,
23/07/2019,WOODLANDS COMMUNITY HOME,SAINSBURYS 0686,PURCHASE OF FOOD (RAW MATERIALS),9.85,"GROCERY STORES, SUPERMARKETS",,
23/07/2019,WOODLANDS COMMUNITY HOME,SAINSBURYS 0686,PURCHASE OF FOOD (RAW MATERIALS),41.30,"GROCERY STORES, SUPERMARKETS",,
23/07/2019,HOPE SERVICE - WEST,RONTEC KINGSCROFT,VEHICLE RUNNING COSTS,48.48,SERVICE STATIONS WITH OR WITHOUT ANCILLARY SERVICE,,
23/07/2019,HOPE SERVICE - WEST,TESCO STORES 4342,REFRESHMENT COSTS,11.18,"GROCERY STORES, SUPERMARKETS",,
23/07/2019,LOCAL DELIVERY GROUP,AMAZON.CO.UK MH1AP6E64,EQUIPMENT,26.49,DIRECT MARKETING-OTHER DIRECT MARKETERS/NOT ELSEW.,,
23/07/2019,WOODLANDS COMMUNITY HOME,HOMEBASE LTD 084,DAY TO DAY MAINTENANCE,50.65,HOME SUPPLY WAREHOUSE STORES,,
23/07/2019,LIBRARIES PLANNING INFRASTUCTURE CONBTN,AMZNMKTPLACE AMAZON.CO,CE02 FURNITURE AND EQUIPMENT,177.83,MISCELLANEOUS AND SPECIALTY RETAIL STORES,,
23/07/2019,ACL CENTRAL EXPENDITURE,AMZNMKTPLACE,EQUIPMENT,30.73,MISCELLANEOUS AND SPECIALTY RETAIL STORES,,
23/07/2019,TRANSPORT,AMZNMKTPLACE,OPERATIONAL FIRE EQUIPMENT,193.68,MISCELLANEOUS AND SPECIALTY RETAIL STORES,,
23/07/2019,CLOSED LANDFILL,WWW.COLGLO.CO.UK,EQUIPMENT,186.66,PLUMBING AND HEATING EQUIPMENT,,
23/07/2019,PE/CDT MAINTENANCE OVERHEADS,DELTA RUBBER LTD,ITEMS PURCHASED FOR RE-SALE,623.94,MISCELLANEOUS AND SPECIALTY RETAIL STORES,,
23/07/2019,PE/CDT MAINTENANCE OVERHEADS,HALFORDS 0731,EQUIPMENT,4.50,BICYCLE SHOPS-SALES AND SERVICE,,
23/07/2019,MAYFORD HOUSE WOKING,BRITISH GAS OTP,ELECTRICITY,40.00,"UTLTS-ELCTRC, GAS, HEATING OIL, SANITARY, WATER",,
23/07/2019,45 WOODMANSTERNE LA WALLINGTON,UTILITY WAREHOUSE,GAS,180.92,"UTLTS-ELCTRC, GAS, HEATING OIL, SANITARY, WATER",,
23/07/2019,WOKING CORONERS COURT,WWW.CORONAENERGY.C,GAS,94.50,CHEMICALS/ALLIED PRODUCTS NOT ELSEWHERE CLASSIFIED,,
23/07/2019,TRANSPORT,AMZNMKTPLACE,OPERATIONAL FIRE EQUIPMENT,33.50,MISCELLANEOUS AND SPECIALTY RETAIL STORES,,
24/07/2019,NW CARE - NON-LAC CP & COURT,GEN REGISTER OFFICE,OTHER COMMUNITY CARE VOL,-38.75,GOVERNMENT SERVICES-NOT ELSEWHERE CLASSIFIED,,
24/07/2019,HAVEN,WWW.YMCA175.COM,REFRESHMENT COSTS,140.00,BUSINESS SERVICES-NOT ELSEWHERE CLASSIFIED,,
24/07/2019,WOODLANDS COMMUNITY HOME,TVLICENSING.CO.UK,SUBSCRIPTIONS,154.50,"CONSULTING, MANAGEMENT, AND PUBLIC RELATIONS SVCS",,
24/07/2019,TRANSPORT,AMZNMKTPLACE,VEHICLE REPAIRS AND MAINTENANCE,12.59,MISCELLANEOUS AND SPECIALTY RETAIL STORES,,
24/07/2019,FAIRCROFT COMMUNITY HOME,CAMBER SANDS,REFRESHMENT COSTS,16.76,"LODGING-HOTELS,MOTELS,RESORTS-NOT CLASSIFIED",,
24/07/2019,TRANSPORT,HENDY GROUP LTD (REDHI,VEHICLE REPAIRS AND MAINTENANCE,63.94,"AUTO & TRUCK DLRS-SALES,SVC, REPRS,PRTS, & LEASING",,
24/07/2019,TRANSPORT,SAFEQUIP LTD,VEHICLE REPAIRS AND MAINTENANCE,108.00,BUSINESS SERVICES-NOT ELSEWHERE CLASSIFIED,,
24/07/2019,TRANSPORT,HENDY GROUP LTD (REDHI,VEHICLE REPAIRS AND MAINTENANCE,-63.94,"AUTO & TRUCK DLRS-SALES,SVC, REPRS,PRTS, & LEASING",,
24/07/2019,HEATHSIDE,TESCO STORE 2160,E25 CATERING EQUIPMENT,52.50,"GROCERY STORES, SUPERMARKETS",,
24/07/2019,HEATHSIDE,CURRYS S/S,EQUIPMENT,59.98,ELECTRONIC SALES,,
24/07/2019,HEATHSIDE,HOMEBASE LTD 084,EQUIPMENT,90.00,HOME SUPPLY WAREHOUSE STORES,,
24/07/2019,HEATHSIDE,HOMEBASE,E25 CATERING EQUIPMENT,105.00,HOME SUPPLY WAREHOUSE STORES,,
24/07/2019,STRATEGIC DIRECTOR,ARGOS LTD,EQUIPMENT,89.97,DISCOUNT STORES,,
24/07/2019,CHEYNE WALK COMMUNITY HOME,TESCO-STORES 6647,PURCHASE OF FOOD (RAW MATERIALS),224.70,"GROCERY STORES, SUPERMARKETS",,
24/07/2019,CHEYNE WALK COMMUNITY HOME,TESCO-STORES 6647,PURCHASE OF FOOD (RAW MATERIALS),-0.34,"GROCERY STORES, SUPERMARKETS",,
24/07/2019,TARGETED INTERVENTION,TEAM SPORT FARNBOROUGH,EDUC VISITS/HOLS/CAMPS/TOYS,14.00,"AMUSEMENT PARKS,CARNIVALS,CIRCUS,FORTUNE TELLERS",,
24/07/2019,TARGETED INTERVENTION,TEAM SPORT FARNBOROUGH,EDUC VISITS/HOLS/CAMPS/TOYS,8.00,"AMUSEMENT PARKS,CARNIVALS,CIRCUS,FORTUNE TELLERS",,
24/07/2019,TARGETED INTERVENTION,TEAM SPORT FARNBOROUGH,EDUC VISITS/HOLS/CAMPS/TOYS,3.50,"AMUSEMENT PARKS,CARNIVALS,CIRCUS,FORTUNE TELLERS",,
24/07/2019,CHALKMEAD,ICELAND,REFRESHMENT COSTS,11.50,"GROCERY STORES, SUPERMARKETS",,
24/07/2019,LEGAL EXPENSES - CORPORATE GROUP,WORTHING COUNTRY C,LEGAL EXPENSES,226.00,FINES,,
24/07/2019,TARGETED INTERVENTION,HALFORDS 0950,VEHICLE RUNNING COSTS,39.30,BICYCLE SHOPS-SALES AND SERVICE,,
24/07/2019,WOODLANDS COMMUNITY HOME,SAINSBURYS 0686,PURCHASE OF FOOD (RAW MATERIALS),25.20,"GROCERY STORES, SUPERMARKETS",,
24/07/2019,WOODLANDS COMMUNITY HOME,SAINSBURYS 0686,EQUIPMENT,1.75,"GROCERY STORES, SUPERMARKETS",,
24/07/2019,WOODLANDS COMMUNITY HOME,SAINSBURYS 0686,PURCHASE OF FOOD (RAW MATERIALS),98.45,"GROCERY STORES, SUPERMARKETS",,
24/07/2019,WOODLANDS COMMUNITY HOME,AMZNMKTPLACE,EQUIPMENT,14.38,MISCELLANEOUS AND SPECIALTY RETAIL STORES,,
24/07/2019,WOODLANDS COMMUNITY HOME,HOMEBASE LTD 084,EQUIPMENT,72.00,HOME SUPPLY WAREHOUSE STORES,,
24/07/2019,WOODLANDS COMMUNITY HOME,ARGOS BROOKWOOD IN,EDUC VISITS/HOLS/CAMPS/TOYS,69.99,DISCOUNT STORES,,
24/07/2019,CHEYNE WALK COMMUNITY HOME,AMZNMKTPLACE,EQUIPMENT,13.99,MISCELLANEOUS AND SPECIALTY RETAIL STORES,,
24/07/2019,WOODLANDS COMMUNITY HOME,MCDONALDS,PURCHASE OF FOOD (RAW MATERIALS),15.22,"EATING PLACES, RESTAURANTS",,
24/07/2019,FIRE & RESCUE COMMUNITY SAFETY,MARTIN MCCOLL,REFRESHMENT COSTS,3.79,"MISC FOOD STORE-CONVENIENCE,MRKT,SPLTY,VENDNG MACS",,
24/07/2019,STRATEGIC DIRECTOR,LIDL GB HERSHAM,DESCRIPTION &AWARD LONG SERVICE,25.05,"GROCERY STORES, SUPERMARKETS",,
24/07/2019,ASSET PLANNING - OPERATIONS,ANDREW PAGE,VEHICLE REPAIRS AND MAINTENANCE,38.97,"AUTOMOTIVE PARTS, ACCESSORIES STORES",,
24/07/2019,RUTH HOUSE,GIFFGAFF,TELECOMMUNICATION CHARGES,6.00,TELECOM INCL PREPAID/RECURRING PHONE SVCS,,
24/07/2019,RUTH HOUSE,AMZNMKTPLACE AMAZON.CO,EQUIPMENT,135.00,MISCELLANEOUS AND SPECIALTY RETAIL STORES,,
24/07/2019,RUTH HOUSE,SAINSBURYS TO YOU 0686,PURCHASE OF FOOD (RAW MATERIALS),44.90,"GROCERY STORES, SUPERMARKETS",,
24/07/2019,RUTH HOUSE,SAINSBURYS TO YOU 0686,PURCHASE OF FOOD (RAW MATERIALS),118.30,"GROCERY STORES, SUPERMARKETS",,
24/07/2019,RUTH HOUSE,GIFFGAFF,TELECOMMUNICATION CHARGES,6.00,TELECOM INCL PREPAID/RECURRING PHONE SVCS,,
24/07/2019,ACL CENTRAL EXPENDITURE,AMAZON.CO.UK MH7E25EG4,EQUIPMENT,13.78,DIRECT MARKETING-OTHER DIRECT MARKETERS/NOT ELSEW.,,
24/07/2019,ACL CENTRAL EXPENDITURE,AMZNMKTPLACE,EQUIPMENT,29.98,MISCELLANEOUS AND SPECIALTY RETAIL STORES,,
24/07/2019,ACL CENTRAL EXPENDITURE,AMZNMKTPLACE,EQUIPMENT,26.33,MISCELLANEOUS AND SPECIALTY RETAIL STORES,,
24/07/2019,ACL CENTRAL EXPENDITURE,AMZNMKTPLACE,EQUIPMENT,86.90,MISCELLANEOUS AND SPECIALTY RETAIL STORES,,
24/07/2019,ACL CENTRAL EXPENDITURE,W P NOTCUTT LTD,EQUIPMENT,127.68,"BUILDING MATERIALS, LUMBER STORES",,
24/07/2019,ACL CENTRAL EXPENDITURE,W P NOTCUTT LTD,EQUIPMENT,279.30,"BUILDING MATERIALS, LUMBER STORES",,
24/07/2019,ACL CENTRAL EXPENDITURE,TTS ONLINE ORDER,EQUIPMENT,63.12,SCHOOLS & EDUCATIONAL SVC-NOT ELSEWHERE CLASSIFIED,,
24/07/2019,NW CARE - NON-LAC CP & COURT,GEN REGISTER OFFICE,OTHER COMMUNITY CARE VOL,45.25,GOVERNMENT SERVICES-NOT ELSEWHERE CLASSIFIED,,
24/07/2019,N REGIONAL STAFF,AMAZON.CO.UK MH5HB7EA4,TRAINING EXPENSES EXTERNAL GENERAL,47.92,DIRECT MARKETING-OTHER DIRECT MARKETERS/NOT ELSEW.,,
24/07/2019,HOPE SERVICE - WEST,SAINSBURYS TO YOU 0683,PURCHASE OF FOOD (RAW MATERIALS),98.55,"GROCERY STORES, SUPERMARKETS",,
24/07/2019,LOWER MOLE COUNTRYSIDE PROJECT,SAINSBURYS 0683,REFRESHMENT COSTS,52.25,"GROCERY STORES, SUPERMARKETS",,
24/07/2019,LOWER MOLE COUNTRYSIDE PROJECT,JEWSON EPSOM,PURCHASE OF BUILDING MATERIALS,59.40,"BUILDING MATERIALS, LUMBER STORES",,
24/07/2019,LOWER MOLE COUNTRYSIDE PROJECT,WICKES EPSOM,PURCHASE OF BUILDING MATERIALS,49.97,"BUILDING MATERIALS, LUMBER STORES",,
24/07/2019,SURREY HILLS AONB,POST OFFICE COUNTER,POSTAGE AND COURIER CHARGES,79.00,POSTAL SERVICES-GOVERNMENT ONLY,,
24/07/2019,MISC EDCAT SUPPORT,WWW.PARAGON.NET.UK RT,COMPUTER SERVICES,8.63,DIRECT MARKETING-CONTINUITY/SUBSCRIPTION MERCHANTS,,
24/07/2019,SOLD MANAGEMENT AND OVERHEADS,AMZNMKTPLACE AMAZON.CO,CURRICULUM EQUIPMENT AND FURNITURE,79.85,MISCELLANEOUS AND SPECIALTY RETAIL STORES,,
24/07/2019,DEPUTYSHIP TEAM,SURREY CC CARD PAY,3RD PARTY PAYMENTS PRIVATE INDIV,11.00,COMPUTER NETWORK/INFORMATION SERVICES,,
24/07/2019,ACL CENTRAL EXPENDITURE,COOKSON PRECIOUS M,EQUIPMENT,82.37,"PRECIOUS STONES AND METALS, WATCHES AND JEWELRY",,
24/07/2019,SE CARE - LAC,SURREY CC CARD PAY,OTHER COMMUNITY CARE VOL,105.00,COMPUTER NETWORK/INFORMATION SERVICES,,
24/07/2019,QUADRANT COURT WOKING,SAINSBURYS 0652,EQUIPMENT,6.00,"GROCERY STORES, SUPERMARKETS",,
24/07/2019,PROPERTY OPERATIONS TEAM,HOME BUILD CTR/CAT,TRAINING EXPENSES EXTERNAL GENERAL,10.00,HARDWARE STORES,,
24/07/2019,PROPERTY OPERATIONS TEAM,WICKES HANWORTH,TRAINING EXPENSES EXTERNAL GENERAL,26.99,HOME SUPPLY WAREHOUSE STORES,,
24/07/2019,HILLSIDE,SAINSBURYS 0675,PURCHASE OF FOOD (RAW MATERIALS),6.51,"GROCERY STORES, SUPERMARKETS",,
24/07/2019,HILLSIDE,SAINSBURYS 0675,PURCHASE OF FOOD (RAW MATERIALS),50.68,"GROCERY STORES, SUPERMARKETS",,
24/07/2019,HILLSIDE,SAINSBURYS 0675,"CLOTHING, UNIFORM AND LAUNDRY",10.00,"GROCERY STORES, SUPERMARKETS",,
24/07/2019,SUPERFAST BROADBAND ECONOMIC DEVELOPMENT,LAYERSHIFT,DESCRIPTION &AWARD LONG SERVICE,60.00,COMPUTER NETWORK/INFORMATION SERVICES,,
24/07/2019,HAVEN YTH CENTRE,SAINSBURYS SACAT 2325,REFRESHMENT COSTS,4.73,"GROCERY STORES, SUPERMARKETS",,
24/07/2019,SHELL UK LICENSING,WWW.DEVON.GOV.UK,FEES,180.00,"COLLEGES, UNIV, PRO SCHOOLS, JUNIOR COLLEGES",,
24/07/2019,ENSEMBLES & TOURS,ACP  MUSIC-ROOM_GBP,CURRIC BOOKS,35.82,MISCELLANEOUS PUBLISHING AND PRINTING,,
24/07/2019,LIBERTAS COMMUNITY HOME,MARKS&SPENCER PLC,EDUC VISITS/HOLS/CAMPS/TOYS,205.00,"GROCERY STORES, SUPERMARKETS",,
24/07/2019,SOUTH WEST OUTREACH,SAINSBURYS TO YOU 0652,PURCHASE OF FOOD (RAW MATERIALS),26.15,"GROCERY STORES, SUPERMARKETS",,
24/07/2019,SOUTH WEST OUTREACH,SAINSBURYS TO YOU 0652,PURCHASE OF FOOD (RAW MATERIALS),88.60,"GROCERY STORES, SUPERMARKETS",,
24/07/2019,CHEYNE WALK COMMUNITY HOME,FUNKYHAMPERS COM,PURCHASE OF FOOD (RAW MATERIALS),27.98,TELECOMMUNICATION EQUIPMENT INCL TELEPHONE SALES,,
24/07/2019,CHEYNE WALK COMMUNITY HOME,LLOYDS PHARMACY,EQUIPMENT,5.20,"DRUG STORES, PHARMACIES",,
24/07/2019,NE CARE - CP & COURT LAC,HOUNSLOW.GOV.UK,OTHER COMMUNITY CARE VOL,11.00,GOVERNMENT SERVICES-NOT ELSEWHERE CLASSIFIED,,
24/07/2019,NE CARE - CP & COURT LAC,HOUNSLOW.GOV.UK,OTHER COMMUNITY CARE VOL,11.00,GOVERNMENT SERVICES-NOT ELSEWHERE CLASSIFIED,,
24/07/2019,NE CARE - CP & COURT LAC,HOUNSLOW.GOV.UK,OTHER COMMUNITY CARE VOL,11.00,GOVERNMENT SERVICES-NOT ELSEWHERE CLASSIFIED,,
24/07/2019,NE CARE - CP & COURT LAC,HOUNSLOW.GOV.UK,OTHER COMMUNITY CARE VOL,11.00,GOVERNMENT SERVICES-NOT ELSEWHERE CLASSIFIED,,
24/07/2019,CPCS ENGAGEMENT TEAM,AMAZON.CO.UK MH9EK8EJ4,EQUIPMENT,331.97,DIRECT MARKETING-OTHER DIRECT MARKETERS/NOT ELSEW.,,
24/07/2019,YSS YOUTH CENTRE IMPROVEMENTS,AMAZON.CO.UK MH3TP8EJ4,EQUIPMENT,44.47,DIRECT MARKETING-OTHER DIRECT MARKETERS/NOT ELSEW.,,
24/07/2019,CHEYNE WALK COMMUNITY HOME,AMZNMKTPLACE,EQUIPMENT,12.99,MISCELLANEOUS AND SPECIALTY RETAIL STORES,,
25/07/2019,HOPE SERVICE - WEST,WWW.NISBETS.COM,DESCRIPTION &AWARD LONG SERVICE,60.37,DIRECT MARKETING-CATALOG MERCHANTS,,
25/07/2019,COVEHAM,JOHN LEWIS,EQUIPMENT,260.00,DEPARTMENT STORES,,
25/07/2019,CHEYNE WALK COMMUNITY HOME,AMZNMKTPLACE AMAZON.CO,EQUIPMENT,24.49,MISCELLANEOUS AND SPECIALTY RETAIL STORES,,
25/07/2019,NW SECTION 17 CARE,PREMIER INN,INDEPENDENT LIVING PLACEMENTS,63.00,PREMIER INN,,
25/07/2019,KARIBU COMMUNITY HOME,AMZNMKTPLACE AMAZON.CO,DESCRIPTION &AWARD LONG SERVICE,16.98,MISCELLANEOUS AND SPECIALTY RETAIL STORES,,
25/07/2019,FAMILIES REIGATE AND BANSTREAD,MCDONALDS,REFRESHMENT COSTS,75.40,FAST FOOD RESTAURANTS,,
25/07/2019,GUILDFORD CMHRS CARE,WORTHING COUNTRY C,FEES,75.00,FINES,,
25/07/2019,CHEYNE WALK COMMUNITY HOME,ARGOS RETAIL GROUP,EQUIPMENT,105.00,DISCOUNT STORES,,
25/07/2019,FAIRCROFT COMMUNITY HOME,LB HOUNSLOW,MISCELLANEOUS STAFF TRAVEL,2.80,AUTOMOBILE PARKING LOTS AND GARAGES,,
25/07/2019,FAIRCROFT COMMUNITY HOME,DUNES BAR AND RESTAURA,CHILDCARE CATERING,20.05,"EATING PLACES, RESTAURANTS",,
25/07/2019,SW CARE - NON-LAC CP & COURT,WWW.ARGOS.CO.UK,FURNITURE,175.95,DISCOUNT STORES,,
25/07/2019,FAMILIES TANDRIDGE,WAITROSE 178,REFRESHMENT COSTS,2.35,"GROCERY STORES, SUPERMARKETS",,
25/07/2019,FAIRCROFT COMMUNITY HOME,MCDONALDS,REFRESHMENT COSTS,12.41,FAST FOOD RESTAURANTS,,
25/07/2019,FAIRCROFT COMMUNITY HOME,MCDONALDS,REFRESHMENT COSTS,4.17,FAST FOOD RESTAURANTS,,
25/07/2019,RUTH HOUSE,ARGOS RETAIL GROUP,EQUIPMENT,13.99,DISCOUNT STORES,,
25/07/2019,RUTH HOUSE,PAYPAL  DEBORAHANNE,EDUC VISITS/HOLS/CAMPS/TOYS,450.00,PROFESSIONAL SERVICES-NOT ELSEWHERE CLASSIFIED,,
25/07/2019,BURBANK COMMUNITY HOME,ARGOS LTD,EQUIPMENT,60.00,DISCOUNT STORES,,
25/07/2019,BURBANK COMMUNITY HOME,ARGOS LTD,EQUIPMENT,225.93,DISCOUNT STORES,,
25/07/2019,BURBANK COMMUNITY HOME,SPORTSDIRECT 234,"CLOTHING, UNIFORM AND LAUNDRY",10.98,SPORTING GOODS STORES,,
25/07/2019,SE CARE - LAC,WWW.ARGOS.CO.UK,OTHER COMMUNITY CARE VOL,91.91,DISCOUNT STORES,,
25/07/2019,TRANSPORT,AMZNMKTPLACE,FURNITURE,459.98,MISCELLANEOUS AND SPECIALTY RETAIL STORES,,
25/07/2019,TRANSPORT,AMZNMKTPLACE,FURNITURE,759.96,MISCELLANEOUS AND SPECIALTY RETAIL STORES,,
25/07/2019,WOODLANDS COMMUNITY HOME,SAINSBURYS 0686,CLEANING MATERIALS,114.30,"GROCERY STORES, SUPERMARKETS",,
25/07/2019,WOODLANDS COMMUNITY HOME,SAINSBURYS 0686,PURCHASE OF FOOD (RAW MATERIALS),1.00,"GROCERY STORES, SUPERMARKETS",,
25/07/2019,WOODLANDS COMMUNITY HOME,SAINSBURYS 0686,PURCHASE OF FOOD (RAW MATERIALS),32.55,"GROCERY STORES, SUPERMARKETS",,
25/07/2019,LIBERTAS COMMUNITY HOME,SAINSBURYS 0670,PURCHASE OF FOOD (RAW MATERIALS),107.64,"GROCERY STORES, SUPERMARKETS",,
25/07/2019,LOWER MOLE COUNTRYSIDE PROJECT,SIMPLY BEARINGS,EQUIPMENT,6.50,"AUTOMOTIVE PARTS, ACCESSORIES STORES",,
25/07/2019,PROGRAMME TEAM,AMZNMKTPLACE,EQUIPMENT,29.23,MISCELLANEOUS AND SPECIALTY RETAIL STORES,,
25/07/2019,EQUIPMENT SCC BUDGET,METCALFE CATERING,EQUIPMENT,315.95,"EQUIP, FURNITURE, HOME FURNSHNGS STRS (EXCPT APPL)",,
25/07/2019,EQUIPMENT SCC BUDGET,FIRSTCHOICE CATERING S,EQUIPMENT,94.14,INDUSTRIAL SUPPLIES NOT ELSEWHERE CLASSIFIED,,
25/07/2019,HOPE SERVICE - WEST,WILKO RETAIL LIMITED,E25 CATERING EQUIPMENT,14.25,MISCELLANEOUS GENERAL MERCHANDISE,,
25/07/2019,PE/CDT MAINTENANCE OVERHEADS,EURO CAR PARTS P,ITEMS PURCHASED FOR RE-SALE,40.00,"AUTOMOTIVE PARTS, ACCESSORIES STORES",,
25/07/2019,SW LOOKED AFTER TEAM,WWW.LINDY.CO.UK,OTHER COMMUNITY CARE VOL,52.98,"COMP PROGRAMING,DATA PRCSNG,INTGRTD SYS DSGN SRVS",,
25/07/2019,EDUCATION,AMAZON.CO.UK MH69201D4,EQUIPMENT,31.68,DIRECT MARKETING-OTHER DIRECT MARKETERS/NOT ELSEW.,,
25/07/2019,TS SERVICE MANAGEMENT,AMZNMKTPLACE,EQUIPMENT,14.23,MISCELLANEOUS AND SPECIALTY RETAIL STORES,,
25/07/2019,TS SERVICE MANAGEMENT,AMZNMKTPLACE,EQUIPMENT,8.23,MISCELLANEOUS AND SPECIALTY RETAIL STORES,,
25/07/2019,KARIBU COMMUNITY HOME,AMZNMKTPLACE AMAZON.CO,DESCRIPTION &AWARD LONG SERVICE,3.95,MISCELLANEOUS AND SPECIALTY RETAIL STORES,,
25/07/2019,KARIBU COMMUNITY HOME,AMZNMKTPLACE AMAZON.CO,EDUC VISITS/HOLS/CAMPS/TOYS,33.99,MISCELLANEOUS AND SPECIALTY RETAIL STORES,,
25/07/2019,FAMILIES REIGATE AND BANSTREAD,AMF BOWLING,REFRESHMENT COSTS,9.55,"CLUBS-CNTRY,MBRSHIP(ATHLET,REC,SPRTS,PRIVATE GOLF",,
25/07/2019,FAMILIES GUILDFORD,ASDA STORES,PURCHASE OF FOOD (RAW MATERIALS),11.80,"GROCERY STORES, SUPERMARKETS",,
25/07/2019,TS SERVICE MANAGEMENT,AMZNMKTPLACE,EQUIPMENT,11.97,MISCELLANEOUS AND SPECIALTY RETAIL STORES,,
25/07/2019,TS SERVICE MANAGEMENT,WWW.ARCO.CO.UK,EQUIPMENT,34.85,INDUSTRIAL SUPPLIES NOT ELSEWHERE CLASSIFIED,,
25/07/2019,SECTOR MANAGER,AMZNMKTPLACE AMAZON.CO,LIBRARY RESOURCES,20.17,MISCELLANEOUS AND SPECIALTY RETAIL STORES,,
25/07/2019,SECTOR MANAGER,AMZNMKTPLACE AMAZON.CO,LIBRARY RESOURCES,9.18,MISCELLANEOUS AND SPECIALTY RETAIL STORES,,
25/07/2019,FAIRCROFT COMMUNITY HOME,LAGUNA GIFT SHOP,EDUC VISITS/HOLS/CAMPS/TOYS,38.49,"GIFT, CARD, NOVELTY AND SOUVENIR SHOPS",,
25/07/2019,FAIRCROFT COMMUNITY HOME,LAGUNA GIFT SHOP,EDUC VISITS/HOLS/CAMPS/TOYS,48.99,"GIFT, CARD, NOVELTY AND SOUVENIR SHOPS",,
25/07/2019,FAIRCROFT COMMUNITY HOME,LAGUNA GIFT SHOP,EDUC VISITS/HOLS/CAMPS/TOYS,7.70,"GIFT, CARD, NOVELTY AND SOUVENIR SHOPS",,
25/07/2019,FAIRCROFT COMMUNITY HOME,CAMBER SANDS,REFRESHMENT COSTS,22.55,"LODGING-HOTELS,MOTELS,RESORTS-NOT CLASSIFIED",,
25/07/2019,FAIRCROFT COMMUNITY HOME,CAMBER SANDS,EDUC VISITS/HOLS/CAMPS/TOYS,22.35,"LODGING-HOTELS,MOTELS,RESORTS-NOT CLASSIFIED",,
25/07/2019,EXTENDED HOPE,TESCO STORE 2590,PURCHASE OF FOOD (RAW MATERIALS),118.05,"GROCERY STORES, SUPERMARKETS",,
25/07/2019,FAIRCROFT COMMUNITY HOME,EL MEXICANA,REFRESHMENT COSTS,6.69,FAST FOOD RESTAURANTS,,
25/07/2019,SW CARE - CP & COURT LAC,AMAZON.CO.UK,FEES,-150.00,DIRECT MARKETING-OTHER DIRECT MARKETERS/NOT ELSEW.,,
25/07/2019,CHALKMEAD,ICELAND,REFRESHMENT COSTS,16.60,"GROCERY STORES, SUPERMARKETS",,
25/07/2019,STRATEGIC DIRECTOR,AMZNMKTPLACE,DESCRIPTION &AWARD LONG SERVICE,39.73,MISCELLANEOUS AND SPECIALTY RETAIL STORES,,
25/07/2019,FAIRCROFT COMMUNITY HOME,KFC,REFRESHMENT COSTS,9.46,FAST FOOD RESTAURANTS,,
25/07/2019,ASSET PLANNING - OPERATIONS,POST OFFICE COUNTER,POSTAGE AND COURIER CHARGES,15.40,POSTAL SERVICES-GOVERNMENT ONLY,,
25/07/2019,RUTH HOUSE,BT BILL PAYMENT 2,TELECOMMUNICATION CHARGES,45.47,TELECOMMUNICATION EQUIPMENT INCL TELEPHONE SALES,,
25/07/2019,MEADOWSIDE,LONGACRES GARDEN CENTR,DAY TO DAY MAINTENANCE,23.92,LAWN AND GARDEN SUPPLY STORES,,
25/07/2019,NW CARE - LAC,HTTP://WWW.AKTIVACAMPS,EDUC VISITS/HOLS/CAMPS/TOYS,229.50,CHILD CARE SERVICES,,
25/07/2019,NW FOSTERING CARE,HTTP://WWW.AKTIVACAMPS,EDUC VISITS/HOLS/CAMPS/TOYS,229.50,CHILD CARE SERVICES,,
25/07/2019,FOOD PURCHASE JUN                       ,PAPA JOHNS,REFRESHMENT COSTS,118.92,"EATING PLACES, RESTAURANTS",,
25/07/2019,ARUNDEL,TESCO STORES 5999,REFRESHMENT COSTS,110.69,"GROCERY STORES, SUPERMARKETS",,
25/07/2019,TRANSPORT,AMZNMKTPLACE,FURNITURE,55.98,MISCELLANEOUS AND SPECIALTY RETAIL STORES,,
25/07/2019,BARNFIELD,AMZNMKTPLACE,EQUIPMENT,10.78,MISCELLANEOUS AND SPECIALTY RETAIL STORES,,
26/07/2019,ACL CENTRAL EXPENDITURE,CURRYS ONLINE,EQUIPMENT,149.00,ELECTRONIC SALES,,
26/07/2019,ARUNDEL,TESCO STORES 5999,REFRESHMENT COSTS,174.81,"GROCERY STORES, SUPERMARKETS",,
26/07/2019,SURREY HILLS AONB,AMZNMKTPLACE,EQUIPMENT,40.00,MISCELLANEOUS AND SPECIALTY RETAIL STORES,,
26/07/2019,BURBANK COMMUNITY HOME,3C_ WOKING BOROUGH COU,DESCRIPTION &AWARD LONG SERVICE,2.80,AUTOMOBILE PARKING LOTS AND GARAGES,,
26/07/2019,BURBANK COMMUNITY HOME,NEW LOOK 1792,DESCRIPTION &AWARD LONG SERVICE,7.99,WOMEN'S READY TO WEAR STORES,,
26/07/2019,BURBANK COMMUNITY HOME,POUNDLAND LTD,DESCRIPTION &AWARD LONG SERVICE,6.10,DISCOUNT STORES,,
26/07/2019,BURBANK COMMUNITY HOME,H & M,DESCRIPTION &AWARD LONG SERVICE,37.03,MEN'S AND WOMEN'S CLOTHING STORES,,
26/07/2019,BURBANK COMMUNITY HOME,MCDONALDS,DESCRIPTION &AWARD LONG SERVICE,1.88,FAST FOOD RESTAURANTS,,
26/07/2019,HOPE SERVICE - WEST,GUILDFORD LOCK AND SAF,CURRICULUM CONSUMABLES,150.00,"HAT CLEANING SHOPS, SHOE REPAIR SHOPS, SHOE SHINE",,
26/07/2019,PROGRAMME TEAM,AMZNMKTPLACE,EQUIPMENT,108.19,MISCELLANEOUS AND SPECIALTY RETAIL STORES,,
26/07/2019,ACL CENTRAL EXPENDITURE,AMZNMKTPLACE,EQUIPMENT,16.14,MISCELLANEOUS AND SPECIALTY RETAIL STORES,,
26/07/2019,ACL CENTRAL EXPENDITURE,AMZNMKTPLACE,EQUIPMENT,4.85,MISCELLANEOUS AND SPECIALTY RETAIL STORES,,
26/07/2019,ACL CENTRAL EXPENDITURE,AMZNMKTPLACE AMAZON.CO,EQUIPMENT,7.00,MISCELLANEOUS AND SPECIALTY RETAIL STORES,,
26/07/2019,ACL CENTRAL EXPENDITURE,AMZNMKTPLACE AMAZON.CO,EQUIPMENT,126.14,MISCELLANEOUS AND SPECIALTY RETAIL STORES,,
26/07/2019,ACL CENTRAL EXPENDITURE,AMZNMKTPLACE AMAZON.CO,EQUIPMENT,16.23,MISCELLANEOUS AND SPECIALTY RETAIL STORES,,
26/07/2019,ACL CENTRAL EXPENDITURE,AMZNMKTPLACE AMAZON.CO,EQUIPMENT,3.97,MISCELLANEOUS AND SPECIALTY RETAIL STORES,,
26/07/2019,ACL CENTRAL EXPENDITURE,AMZNMKTPLACE AMAZON.CO,EQUIPMENT,5.00,MISCELLANEOUS AND SPECIALTY RETAIL STORES,,
26/07/2019,ACL CENTRAL EXPENDITURE,AMZNMKTPLACE AMAZON.CO,EQUIPMENT,4.34,MISCELLANEOUS AND SPECIALTY RETAIL STORES,,
26/07/2019,SW CARE - LAC,TRAVELODGE,OTHER COMMUNITY CARE PRIV,102.00,TRAVELODGE,,
26/07/2019,SOLD ESTATES MANAGEMENT,MOLE VALLEY MOWERS,UPKEEP OF GROUNDS,35.60,LAWN AND GARDEN SUPPLY STORES,,
26/07/2019,SOLD ESTATES MANAGEMENT,SCREWFIX DIR.LTD,DAY TO DAY MAINTENANCE,101.98,"BUILDING MATERIALS, LUMBER STORES",,
26/07/2019,CHEYNE WALK COMMUNITY HOME,DART-CHARGE,NON-STAFF RELATED TRANSPORT COSTS,5.00,"BRIDGE AND ROAD FEES, TOLLS",,
26/07/2019,TS SERVICE MANAGEMENT,WARWICKSHIRE COUNTY CO,SUBSISTENCE AND CONFERENCE EXPENSES,150.00,GOVERNMENT SERVICES-NOT ELSEWHERE CLASSIFIED,,
26/07/2019,KARIBU COMMUNITY HOME,TESCO STORE 2812,PURCHASE OF FOOD (RAW MATERIALS),403.83,"GROCERY STORES, SUPERMARKETS",,
26/07/2019,SFRS TRAINING,REIGATE MANOR HOTEL,TRAINING EXPENSES EXTERNAL GENERAL,392.00,"LODGING-HOTELS,MOTELS,RESORTS-NOT CLASSIFIED",,
26/07/2019,FAMILIES WOKING,WAITROSE 181,REFRESHMENT COSTS,8.00,"GROCERY STORES, SUPERMARKETS",,
26/07/2019,LIBRARY SHELVING                        ,AMZNMKTPLACE,MEDICAL EXPENSES,7.90,MISCELLANEOUS AND SPECIALTY RETAIL STORES,,
26/07/2019,SHELL UK LICENSING,NEWPORT CITY COUNCIL,FEES,111.00,GOVERNMENT SERVICES-NOT ELSEWHERE CLASSIFIED,,
26/07/2019,SURREY ARTS GENERAL,AMZNMKTPLACE,EQUIPMENT,85.98,MISCELLANEOUS AND SPECIALTY RETAIL STORES,,
26/07/2019,LIBRARIES PLANNING INFRASTUCTURE CONBTN,AMZNMKTPLACE,CE02 FURNITURE AND EQUIPMENT,38.00,MISCELLANEOUS AND SPECIALTY RETAIL STORES,,
26/07/2019,ARUNDEL,AFRICAN FOOD CENTRE,REFRESHMENT COSTS,41.93,"GROCERY STORES, SUPERMARKETS",,
26/07/2019,FAIRCROFT COMMUNITY HOME,BURGER KING,REFRESHMENT COSTS,15.98,"EATING PLACES, RESTAURANTS",,
26/07/2019,RECRUITMENT,TOTALJOBS GROUP LTD,EQUIPMENT,"1,428.05",MISCELLANEOUS PUBLISHING AND PRINTING,,
26/07/2019,FAIRCROFT COMMUNITY HOME,CAMBER SANDS,CHILDCARE CATERING,17.85,"LODGING-HOTELS,MOTELS,RESORTS-NOT CLASSIFIED",,
26/07/2019,RUTH HOUSE,WWW.UKSIGNSHOP.COM,EQUIPMENT,31.97,MISCELLANEOUS PUBLISHING AND PRINTING,,
26/07/2019,SURREY THE GREAT WAR,IWM,EDUC VISITS/HOLS/CAMPS/TOYS,50.40,RECREATION SERVICES (NOT ELSEWHERE CLASSIFIED),,
26/07/2019,ARUNDEL,VENDA BRAZIL,REFRESHMENT COSTS,68.00,"GROCERY STORES, SUPERMARKETS",,
26/07/2019,EXTENDED HOPE,HOBBYCRAFT,CURRICULUM CONSUMABLES,26.65,"ARTIST SUPPLY STORES, CRAFT SHOPS",,
26/07/2019,EXTENDED HOPE,ODEON,EDUC VISITS/HOLS/CAMPS/TOYS,100.00,MOTION PICTURE THEATERS,,
26/07/2019,EXTENDED HOPE,ODEON,REFRESHMENT COSTS,3.88,MOTION PICTURE THEATERS,,
26/07/2019,BURBANK COMMUNITY HOME,TICKETOFFICESALE,EDUC VISITS/HOLS/CAMPS/TOYS,47.10,PASSENGER RAILWAYS,,
26/07/2019,CHEYNE WALK COMMUNITY HOME,SAVERS HEALTH & BEAUTY,EQUIPMENT,13.59,"DRUG STORES, PHARMACIES",,
26/07/2019,CHEYNE WALK COMMUNITY HOME,SAVERS HEALTH & BEAUTY,EQUIPMENT,4.27,"DRUG STORES, PHARMACIES",,
26/07/2019,NW CARE - LAC,BRITANNIA,INDEPENDENT LIVING PLACEMENTS,209.00,"LODGING-HOTELS,MOTELS,RESORTS-NOT CLASSIFIED",,
26/07/2019,ARUNDEL,WAITROSE 202,DESCRIPTION &AWARD LONG SERVICE,14.19,"GROCERY STORES, SUPERMARKETS",,
26/07/2019,WOODLANDS COMMUNITY HOME,AMZNMKTPLACE AMAZON.CO,EQUIPMENT,41.96,MISCELLANEOUS AND SPECIALTY RETAIL STORES,,
26/07/2019,ASSET PLANNING - OPERATIONS,POST OFFICE COUNTER,POSTAGE AND COURIER CHARGES,2.26,POSTAL SERVICES-GOVERNMENT ONLY,,
26/07/2019,RUTH HOUSE,SAINSBURYS TO YOU 0686,PURCHASE OF FOOD (RAW MATERIALS),63.80,"GROCERY STORES, SUPERMARKETS",,
26/07/2019,RUTH HOUSE,SAINSBURYS TO YOU 0686,PURCHASE OF FOOD (RAW MATERIALS),160.80,"GROCERY STORES, SUPERMARKETS",,
27/07/2019,FOSTERING SERVICE CENTRAL COSTS,HOLIDAY INN CORBY,OTHER COMMUNITY CARE VOL,663.50,"LODGING-HOTELS,MOTELS,RESORTS-NOT CLASSIFIED",,
27/07/2019,ACL CENTRAL EXPENDITURE,AMZNMKTPLACE,EQUIPMENT,12.90,MISCELLANEOUS AND SPECIALTY RETAIL STORES,,
27/07/2019,ARUNDEL,BETTAMEATS,REFRESHMENT COSTS,91.94,"FREEZER, LOCKER MEAT PROVISIONERS",,
27/07/2019,ARUNDEL,ASDA SUPERSTORE,REFRESHMENT COSTS,6.60,"GROCERY STORES, SUPERMARKETS",,
27/07/2019,ARUNDEL,TESCO STORES 5999,REFRESHMENT COSTS,-0.80,"GROCERY STORES, SUPERMARKETS",,
27/07/2019,WOODLANDS COMMUNITY HOME,CURRYS SUPERSTORE 2324,EQUIPMENT,123.97,ELECTRONIC SALES,,
27/07/2019,ACL CENTRAL EXPENDITURE,AMZNMKTPLACE,EQUIPMENT,17.00,MISCELLANEOUS AND SPECIALTY RETAIL STORES,,
27/07/2019,ACL CENTRAL EXPENDITURE,AMZNMKTPLACE,EQUIPMENT,15.90,MISCELLANEOUS AND SPECIALTY RETAIL STORES,,
27/07/2019,ACL CENTRAL EXPENDITURE,AMZNMKTPLACE AMAZON.CO,EQUIPMENT,14.76,MISCELLANEOUS AND SPECIALTY RETAIL STORES,,
27/07/2019,RUTH HOUSE,FREEDOM LEISURE,EDUC VISITS/HOLS/CAMPS/TOYS,9.50,GOVERNMENT SERVICES-NOT ELSEWHERE CLASSIFIED,,
27/07/2019,FAIRCROFT COMMUNITY HOME,BLUE REEF AQUARIUM,EDUC VISITS/HOLS/CAMPS/TOYS,29.75,"AQUARIUMS, DOLPHINARIUMS, AND SEAQUARIUMS",,
27/07/2019,FAIRCROFT COMMUNITY HOME,CAMBER SANDS,PURCHASE OF FOOD (RAW MATERIALS),5.44,"LODGING-HOTELS,MOTELS,RESORTS-NOT CLASSIFIED",,
27/07/2019,FAIRCROFT COMMUNITY HOME,DUNES BAR AND RESTAURA,CHILDCARE CATERING,32.40,"EATING PLACES, RESTAURANTS",,
27/07/2019,HAVEN GUILDFORD,WAITROSE 542,REFRESHMENT COSTS,4.44,"GROCERY STORES, SUPERMARKETS",,
27/07/2019,WOODLANDS COMMUNITY HOME,AMAZON.CO.UK MH5PH01C4,EQUIPMENT,37.49,DIRECT MARKETING-OTHER DIRECT MARKETERS/NOT ELSEW.,,
27/07/2019,WOODLANDS COMMUNITY HOME,NATIONAL EXPRESS LIMIT,NON-STAFF RELATED TRANSPORT COSTS,48.00,BUS LINES,,
27/07/2019,HILLSIDE,SAINSBURYS TO YOU 0675,PURCHASE OF FOOD (RAW MATERIALS),21.35,"GROCERY STORES, SUPERMARKETS",,
27/07/2019,HILLSIDE,SAINSBURYS TO YOU 0675,PURCHASE OF FOOD (RAW MATERIALS),178.17,"GROCERY STORES, SUPERMARKETS",,
27/07/2019,HILLSIDE,SAINSBURYS TO YOU 0675,PURCHASE OF FOOD (RAW MATERIALS),-5.00,"GROCERY STORES, SUPERMARKETS",,
28/07/2019,SW TARGETTED YOUTH SUPPORT,AMZNMKTPLACE AMAZON.CO,EQUIPMENT,9.99,MISCELLANEOUS AND SPECIALTY RETAIL STORES,,
28/07/2019,RUTH HOUSE,AMZNMKTPLACE AMAZON.CO,EQUIPMENT,29.95,MISCELLANEOUS AND SPECIALTY RETAIL STORES,,
28/07/2019,EXTENDED HOPE,DISCLOSURE & BARRING,LICENCE FEES,13.00,GOVERNMENT SERVICES-NOT ELSEWHERE CLASSIFIED,,
28/07/2019,ACL CENTRAL EXPENDITURE,AMZNMKTPLACE AMAZON.CO,EQUIPMENT,13.85,MISCELLANEOUS AND SPECIALTY RETAIL STORES,,
28/07/2019,ACL CENTRAL EXPENDITURE,AMZNMKTPLACE AMAZON.CO,EQUIPMENT,16.39,MISCELLANEOUS AND SPECIALTY RETAIL STORES,,
28/07/2019,ACL CENTRAL EXPENDITURE,AMAZON.CO.UK MH1376PS4,EQUIPMENT,40.00,DIRECT MARKETING-OTHER DIRECT MARKETERS/NOT ELSEW.,,
28/07/2019,NE EDUCATION PSYCHOLOGISTS,AMAZON.CO.UK MH5WW5G54,BOOKS,21.99,DIRECT MARKETING-OTHER DIRECT MARKETERS/NOT ELSEW.,,
28/07/2019,LIBERTAS COMMUNITY HOME,SAINSBURYS TO YOU 0652,PURCHASE OF FOOD (RAW MATERIALS),51.72,"GROCERY STORES, SUPERMARKETS",,
28/07/2019,WOODLANDS COMMUNITY HOME,DUNELM LTD,EQUIPMENT,74.50,"DRAPERY, UPOLSTERY, AND WINDOW COVERINGS STORES",,
28/07/2019,ACL CENTRAL EXPENDITURE,AMAZON.CO.UK MH93M4PJ4,EQUIPMENT,54.59,DIRECT MARKETING-OTHER DIRECT MARKETERS/NOT ELSEW.,,
28/07/2019,ACL CENTRAL EXPENDITURE,AMZNMKTPLACE,EQUIPMENT,46.61,MISCELLANEOUS AND SPECIALTY RETAIL STORES,,
28/07/2019,ACL CENTRAL EXPENDITURE,AMZNMKTPLACE,EQUIPMENT,3.99,MISCELLANEOUS AND SPECIALTY RETAIL STORES,,
28/07/2019,ACL CENTRAL EXPENDITURE,AMZNMKTPLACE,EQUIPMENT,120.32,MISCELLANEOUS AND SPECIALTY RETAIL STORES,,
28/07/2019,ACL CENTRAL EXPENDITURE,AMZNMKTPLACE,EQUIPMENT,85.07,MISCELLANEOUS AND SPECIALTY RETAIL STORES,,
28/07/2019,ACL CENTRAL EXPENDITURE,AMZNMKTPLACE,EQUIPMENT,31.98,MISCELLANEOUS AND SPECIALTY RETAIL STORES,,
28/07/2019,FIRE SERVICES IT,AMZNMKTPLACE,COMPUTER HARDWARE,18.99,MISCELLANEOUS AND SPECIALTY RETAIL STORES,,
28/07/2019,S.D. EAST AREA MANAGEMENT TEAM,SHELL,REFRESHMENT COSTS,18.80,SERVICE STATIONS WITH OR WITHOUT ANCILLARY SERVICE,,
28/07/2019,HOPE SERVICE - WEST,AMZNMKTPLACE,DESCRIPTION &AWARD LONG SERVICE,5.79,MISCELLANEOUS AND SPECIALTY RETAIL STORES,,
28/07/2019,RUTH HOUSE,COR  EA DIGITICKETS,EDUC VISITS/HOLS/CAMPS/TOYS,21.90,TOURIST ATTRACTIONS AND EXHIBITS,,
28/07/2019,FAIRCROFT COMMUNITY HOME,CAMBER SANDS,CHILDCARE CATERING,17.85,"LODGING-HOTELS,MOTELS,RESORTS-NOT CLASSIFIED",,
28/07/2019,RUTH HOUSE,AMAZON.CO.UK MH6I35G64,EQUIPMENT,58.74,DIRECT MARKETING-OTHER DIRECT MARKETERS/NOT ELSEW.,,
28/07/2019,MALLOW CRESCENT,SAINSBURYS TO YOU 0652,PURCHASE OF FOOD (RAW MATERIALS),177.86,"GROCERY STORES, SUPERMARKETS",,
28/07/2019,EXTENDED HOPE,SQUIRES GARDEN CENTRE,REFRESHMENT COSTS,11.85,LAWN AND GARDEN SUPPLY STORES,,
28/07/2019,EXTENDED HOPE,F.A. SECRETT LIMITED,PURCHASE OF FOOD (RAW MATERIALS),6.93,"GROCERY STORES, SUPERMARKETS",,
28/07/2019,CHEYNE WALK COMMUNITY HOME,TESCO STORES 2683,PURCHASE OF FOOD (RAW MATERIALS),7.59,"GROCERY STORES, SUPERMARKETS",,
28/07/2019,ARUNDEL,WAITROSE 202,DESCRIPTION &AWARD LONG SERVICE,18.10,"GROCERY STORES, SUPERMARKETS",,
28/07/2019,RUTH HOUSE,NOWTV.COM/BILLINGHELP,EDUC VISITS/HOLS/CAMPS/TOYS,7.99,"CABLE, SATELLITE, OTHER PAY TELEVISION, RADIO SVCS",,
28/07/2019,RUTH HOUSE,NOWTV.COM/BILLINGHELP,EDUC VISITS/HOLS/CAMPS/TOYS,11.99,"CABLE, SATELLITE, OTHER PAY TELEVISION, RADIO SVCS",,
28/07/2019,RUTH HOUSE,AMZNMKTPLACE AMAZON.CO,EQUIPMENT,42.99,MISCELLANEOUS AND SPECIALTY RETAIL STORES,,
28/07/2019,RUTH HOUSE,AMZNMKTPLACE AMAZON.CO,EQUIPMENT,61.99,MISCELLANEOUS AND SPECIALTY RETAIL STORES,,
28/07/2019,BURBANK COMMUNITY HOME,ASDA  STORES 4775,PURCHASE OF FOOD (RAW MATERIALS),5.88,"GROCERY STORES, SUPERMARKETS",,
29/07/2019,SW LOOKED AFTER TEAM,FLYBE.COM QELKM4       0,MISCELLANEOUS STAFF TRAVEL,399.05,"AIR CARRIERS, AIRLINES-NOT ELSEWHERE CLASSIFIED",,
29/07/2019,RUTH HOUSE,PRIMARK,"CLOTHING, UNIFORM AND LAUNDRY",89.50,FAMILY CLOTHING STORES,,
29/07/2019,CHEYNE WALK COMMUNITY HOME,AMZNMKTPLACE AMAZON.CO,EQUIPMENT,33.98,MISCELLANEOUS AND SPECIALTY RETAIL STORES,,
29/07/2019,ACL CENTRAL EXPENDITURE,FABRICLANDB,EQUIPMENT,38.45,PROFESSIONAL SERVICES-NOT ELSEWHERE CLASSIFIED,,
29/07/2019,TRAINING CHILDREN'S,PAYPAL  KIRWINMACLE,BOOKS,278.20,BOOK STORES,,
29/07/2019,SECTOR MANAGER,AMZNMKTPLACE AMAZON.CO,ITEMS PURCHASED FOR RE-SALE,15.03,MISCELLANEOUS AND SPECIALTY RETAIL STORES,,
29/07/2019,RUTH HOUSE,AMZNMKTPLACE AMAZON.CO,EQUIPMENT,36.99,MISCELLANEOUS AND SPECIALTY RETAIL STORES,,
29/07/2019,SW CARE - LAC,HM PASSPORT,LEGAL EXPENSES,122.00,GOVERNMENT SERVICES-NOT ELSEWHERE CLASSIFIED,,
29/07/2019,CHALKMEAD,AMZNMKTPLACE,UPKEEP OF GROUNDS,13.99,MISCELLANEOUS AND SPECIALTY RETAIL STORES,,
29/07/2019,SOLD DAY TO DAY OPERATIONS,AMAZON.CO.UK MH6A77XQ4,DESCRIPTION &AWARD LONG SERVICE,129.40,DIRECT MARKETING-OTHER DIRECT MARKETERS/NOT ELSEW.,,
29/07/2019,RUTH HOUSE,ARGOS LTD,"CLOTHING, UNIFORM AND LAUNDRY",125.36,DISCOUNT STORES,,
29/07/2019,MALLOW CRESCENT,TESCO STORE 2590,PURCHASE OF FOOD (RAW MATERIALS),111.53,"GROCERY STORES, SUPERMARKETS",,
29/07/2019,MALLOW CRESCENT,TESCO STORE 2590,PURCHASE OF FOOD (RAW MATERIALS),69.39,"GROCERY STORES, SUPERMARKETS",,
29/07/2019,HILLSIDE,SAINSBURYS 0675,PURCHASE OF FOOD (RAW MATERIALS),44.36,"GROCERY STORES, SUPERMARKETS",,
29/07/2019,FAMILIES WOKING,ASDA STORES 4823,PURCHASE OF FOOD (RAW MATERIALS),32.90,"GROCERY STORES, SUPERMARKETS",,
29/07/2019,FAMILIES MOLE VALLEY,AMZNMKTPLACE,EQUIPMENT,18.99,MISCELLANEOUS AND SPECIALTY RETAIL STORES,,
29/07/2019,SW TARGETTED YOUTH SUPPORT,AMZNMKTPLACE AMAZON.CO,EQUIPMENT,15.98,MISCELLANEOUS AND SPECIALTY RETAIL STORES,,
29/07/2019,B & C FOOD SAMPLING                     ,AMAZON.CO.UK MH9615XN4,EQUIPMENT,26.22,DIRECT MARKETING-OTHER DIRECT MARKETERS/NOT ELSEW.,,
29/07/2019,GUILDFORD CMHRS CARE,TRAVELODGE,MISCELLANEOUS STAFF TRAVEL,822.50,TRAVELODGE,,
29/07/2019,SE TARGETTED YOUTH SUPPORT,BAKER ROSS,EQUIPMENT,233.56,"ARTIST SUPPLY STORES, CRAFT SHOPS",,
29/07/2019,BARNFIELD,NRS HEALTHCARE,EQUIPMENT,169.90,DENTAL/LAB/MED/OPHTHALMIC HOSP EQUIP & SUPPLIES,,
29/07/2019,FAMILIES TANDRIDGE,STACKS,REFRESHMENT COSTS,6.94,HARDWARE STORES,,
29/07/2019,FAMILIES TANDRIDGE,THEWORKS.CO.UK,EQUIPMENT,2.50,DISCOUNT STORES,,
29/07/2019,FAMILIES TANDRIDGE,WM MORRISONS STORE,PURCHASE OF FOOD (RAW MATERIALS),22.67,"GROCERY STORES, SUPERMARKETS",,
29/07/2019,FAMILIES TANDRIDGE,SPORTSDIRECT 748,EQUIPMENT,7.98,SPORTING GOODS STORES,,
29/07/2019,TARGETED INTERVENTION,MAGNA CARTA MOT,VEHICLE REPAIRS AND MAINTENANCE,474.00,AUTOMOTIVE SERVICE SHOPS,,
29/07/2019,WOODLANDS COMMUNITY HOME,AMAZON.CO.UK MH7RJ7GB4,EQUIPMENT,45.42,DIRECT MARKETING-OTHER DIRECT MARKETERS/NOT ELSEW.,,
29/07/2019,RUTH HOUSE,GIFFGAFF,TELECOMMUNICATION CHARGES,6.00,TELECOM INCL PREPAID/RECURRING PHONE SVCS,,
29/07/2019,RUTH HOUSE,POUNDLAND LTD,EQUIPMENT,13.00,DISCOUNT STORES,,
29/07/2019,LIBERTAS COMMUNITY HOME,SQ  TOP TABLE,PURCHASE OF FOOD (RAW MATERIALS),108.00,CATERERS,,
29/07/2019,MALLOW CRESCENT,TESCO STORE 2590,PURCHASE OF FOOD (RAW MATERIALS),110.89,"GROCERY STORES, SUPERMARKETS",,
29/07/2019,KARIBU COMMUNITY HOME,THORPE PARK /ENT/,EDUC VISITS/HOLS/CAMPS/TOYS,408.00,"AMUSEMENT PARKS,CARNIVALS,CIRCUS,FORTUNE TELLERS",,
29/07/2019,NE CARE - CP & COURT LAC,HM PASSPORT,OTHER COMMUNITY CARE VOL,254.00,GOVERNMENT SERVICES-NOT ELSEWHERE CLASSIFIED,,
29/07/2019,FOSTERING SERVICE CENTRAL COSTS,SAINSBURYS,REFRESHMENT COSTS,11.00,"GROCERY STORES, SUPERMARKETS",,
29/07/2019,FOSTERING SERVICE CENTRAL COSTS,SAINSBURYS,REFRESHMENT COSTS,11.00,"GROCERY STORES, SUPERMARKETS",,
29/07/2019,SE CARE - NON-LAC CP & COURT,GEN REGISTER OFFICE,OTHER COMMUNITY CARE VOL,36.00,GOVERNMENT SERVICES-NOT ELSEWHERE CLASSIFIED,,
29/07/2019,RUTH HOUSE,CO OP GROUP FOOD,PURCHASE OF FOOD (RAW MATERIALS),4.40,"GROCERY STORES, SUPERMARKETS",,
29/07/2019,TRANSPORT,HENDY GROUP LTD (REDHI,EQUIPMENT,63.94,"AUTO & TRUCK DLRS-SALES,SVC, REPRS,PRTS, & LEASING",,
29/07/2019,CHEYNE WALK COMMUNITY HOME,TESCO-STORES 6647,MEDICAL EXPENSES,74.90,"GROCERY STORES, SUPERMARKETS",,
29/07/2019,FAIRCROFT COMMUNITY HOME,TESCO STORE 2160,EQUIPMENT,60.60,"GROCERY STORES, SUPERMARKETS",,
29/07/2019,FAIRCROFT COMMUNITY HOME,TESCO STORE 2812,PURCHASE OF FOOD (RAW MATERIALS),234.25,"GROCERY STORES, SUPERMARKETS",,
29/07/2019,BURBANK COMMUNITY HOME,COSTA EXPRESS  UK,DESCRIPTION &AWARD LONG SERVICE,2.15,"MISC FOOD STORE-CONVENIENCE,MRKT,SPLTY,VENDNG MACS",,
29/07/2019,BURBANK COMMUNITY HOME,COSTA EXPRESS  UK,REFRESHMENT COSTS,2.75,"MISC FOOD STORE-CONVENIENCE,MRKT,SPLTY,VENDNG MACS",,
29/07/2019,BURBANK COMMUNITY HOME,COSTA EXPRESS  UK,DESCRIPTION &AWARD LONG SERVICE,2.90,"MISC FOOD STORE-CONVENIENCE,MRKT,SPLTY,VENDNG MACS",,
29/07/2019,BURBANK COMMUNITY HOME,COSTA EXPRESS  UK,DESCRIPTION &AWARD LONG SERVICE,2.55,"MISC FOOD STORE-CONVENIENCE,MRKT,SPLTY,VENDNG MACS",,
29/07/2019,BURBANK COMMUNITY HOME,THE BIG KAHUNA (IOW) L,DESCRIPTION &AWARD LONG SERVICE,34.45,FAST FOOD RESTAURANTS,,
29/07/2019,CONSORT HOUSE REDHILL,B & Q 1155,EQUIPMENT,31.45,HOME SUPPLY WAREHOUSE STORES,,
29/07/2019,MALLOW CRESCENT,SAINSBURYS TO YOU 0652,PURCHASE OF FOOD (RAW MATERIALS),116.00,"GROCERY STORES, SUPERMARKETS",,
29/07/2019,ACL CENTRAL EXPENDITURE,AMZNMKTPLACE AMAZON.CO,EQUIPMENT,54.99,MISCELLANEOUS AND SPECIALTY RETAIL STORES,,
29/07/2019,ACL CENTRAL EXPENDITURE,AMZNMKTPLACE,EQUIPMENT,8.88,MISCELLANEOUS AND SPECIALTY RETAIL STORES,,
29/07/2019,ACL CENTRAL EXPENDITURE,VITRUM SIGNUM,EQUIPMENT,89.64,"ARTIST SUPPLY STORES, CRAFT SHOPS",,
29/07/2019,FAIRCROFT COMMUNITY HOME,HARRIS AND HOOLE  BROO,REFRESHMENT COSTS,20.80,"EATING PLACES, RESTAURANTS",,
29/07/2019,RUTH HOUSE,AMZNMKTPLACE,EQUIPMENT,23.99,MISCELLANEOUS AND SPECIALTY RETAIL STORES,,
29/07/2019,LOWER MOLE COUNTRYSIDE PROJECT,J E HOMEWOOD AND SON,PURCHASE OF BUILDING MATERIALS,216.00,"DURABLE GOODS, NOT ELSEWHERE CLASSIFIED",,
29/07/2019,EXTENDED HOPE,WILDWOOD,EDUC VISITS/HOLS/CAMPS/TOYS,80.00,RECREATION SERVICES (NOT ELSEWHERE CLASSIFIED),,
29/07/2019,FAIRMOUNT HOUSE LEATHERHEAD,SCREWFIX DIRECT,EQUIPMENT,20.98,HOME SUPPLY WAREHOUSE STORES,,
29/07/2019,CHAIRMAN,AMZNMKTPLACE AMAZON.CO,EQUIPMENT,61.48,MISCELLANEOUS AND SPECIALTY RETAIL STORES,,
29/07/2019,HOPE SERVICE - WEST,SAINSBURYS TO YOU 0683,PURCHASE OF FOOD (RAW MATERIALS),67.10,"GROCERY STORES, SUPERMARKETS",,
29/07/2019,WOODLANDS COMMUNITY HOME,SAINSBURYS 0686,PURCHASE OF FOOD (RAW MATERIALS),43.60,"GROCERY STORES, SUPERMARKETS",,
29/07/2019,WOODLANDS COMMUNITY HOME,SAINSBURYS SACAT 0686,3RD PARTY PAYMENTS PRIVATE INDIV,6.25,"GROCERY STORES, SUPERMARKETS",,
29/07/2019,WOODLANDS COMMUNITY HOME,SAINSBURYS SACAT 0686,EQUIPMENT,4.00,"GROCERY STORES, SUPERMARKETS",,
29/07/2019,WOODLANDS COMMUNITY HOME,CURRYS SUPERSTORE 2324,EQUIPMENT,428.96,ELECTRONIC SALES,,
29/07/2019,MALLOW CRESCENT,AMZNMKTPLACE,EQUIPMENT,33.49,MISCELLANEOUS AND SPECIALTY RETAIL STORES,,
29/07/2019,ACL CENTRAL EXPENDITURE,AMZNMKTPLACE AMAZON.CO,EQUIPMENT,158.79,MISCELLANEOUS AND SPECIALTY RETAIL STORES,,
29/07/2019,ACL CENTRAL EXPENDITURE,AMZNMKTPLACE AMAZON.CO,EQUIPMENT,7.15,MISCELLANEOUS AND SPECIALTY RETAIL STORES,,
29/07/2019,SERVICE DELIVERY RESOURCES,AMAZON.CO.UK MH4OT0X74,CLEANING MATERIALS,48.00,DIRECT MARKETING-OTHER DIRECT MARKETERS/NOT ELSEW.,,
29/07/2019,SERVICE DELIVERY RESOURCES,AMAZON.CO.UK MH5CZ0XN4,CLEANING MATERIALS,22.50,DIRECT MARKETING-OTHER DIRECT MARKETERS/NOT ELSEW.,,
